Workbook

Sheet Summary
A1: RURAL UTILITIES SERVICE
A2: WATER AND WASTE LOAN AND GRANT PROGRAM
A3: PREDEVELOPMENT PLANNING GRANTS (PPG)
A4: ALLEVIATE HEALTH RISKS FOR COLONIAS OR ON TRIBAL LANDS
A5: EMERGENCY COMMUNITY WATER ASSISTANCE GRANTS (ECWAG)
A6: RURAL AND NATIVE ALASKAN VILLAGES GRANTS (RAVG-REGULAR)
A7: RURAL AND NATIVE ALASKAN VILLAGES GRANTS - PREDEVELOPMENT PLANNING GRANTS (RAVG PPG)
A8: INFORMATION COLLECTION BURDEN HOURS
A9: OMB # 0572 - 0121
A10: 2024-11-18
A12: For FR Notice
B13: WWLG | C13: WWPPG | D13: Colonias | E13: Tribal Lands | F13: ECWAG | G13: RAVG - REG | H13: RAVG PPG | I13: Total
A14: Estimated No. of Total Respondents (Applicants) | B14: ='12 BH Collection WWLG'!$C$7 -> 525 | C14: ='12 BH Collection WWPPG'!$C$8 -> 27 | D14: ='12 BH Collection Colonias'!$C$8 -> 9 | E14: ='12 BH Collection Tribal Lands'!$C$8 -> 11 | F14: ='12 BH Collection ECWAG'!$C$8 -> 41 | G14: ='12 BH Collection RAVG-Reg'!$C$8 -> 23 | H14: ='12 BH Collection RAVG PPG'!$C$8 -> 20 | I14: =SUM(B14:H14) -> 656
A15: Estimated No. of Total Awards (Awardees) | B15: ='12 BH Collection WWLG'!$K$7 -> 255 | C15: ='12 BH Collection WWPPG'!$K$8 -> 24 | D15: ='12 BH Collection Colonias'!$K$8 -> 9 | E15: ='12 BH Collection Tribal Lands'!$K$8 -> 11 | F15: ='12 BH Collection ECWAG'!$K$8 -> 41 | G15: ='12 BH Collection RAVG-Reg'!$K$8 -> 14 | H15: ='12 BH Collection RAVG PPG'!$K$8 -> 20 | I15: =SUM(B15:H15) -> 374
A16: Total Responses | B16: ='12 BH Collection WWLG'!$G$9 -> 24,811 | C16: ='12 BH Collection WWPPG'!$G$10 -> 518 | D16: ='12 BH Collection Colonias'!$G$10 -> 596 | E16: ='12 BH Collection Tribal Lands'!$G$10 -> 723 | F16: ='12 BH Collection ECWAG'!$G$10 -> 1,967 | G16: ='12 BH Collection RAVG-Reg'!$G$10 -> 1,138 | H16: ='12 BH Collection RAVG PPG'!$G$10 -> 364 | I16: =SUM(B16:H16) -> 30,117
A17: Estimated Total Hours | B17: ='12 BH Collection WWLG'!$I$9 -> 93,550 | C17: ='12 BH Collection WWPPG'!$I$10 -> 1,311 | D17: ='12 BH Collection Colonias'!$I$10 -> 1,895 | E17: ='12 BH Collection Tribal Lands'!$I$10 -> 2,334 | F17: ='12 BH Collection ECWAG'!$I$10 -> 5,336 | G17: ='12 BH Collection RAVG-Reg'!$I$10 -> 4,048 | H17: ='12 BH Collection RAVG PPG'!$I$10 -> 726 | I17: =SUM(B17:H17) -> 109,200
A18: Total Cost | B18: ='12 BH Collection WWLG'!K9 -> $7,016,250 | C18: ='12 BH Collection WWPPG'!K10 -> $98,325 | D18: ='12 BH Collection Colonias'!K10 -> $142,125 | E18: ='12 BH Collection Tribal Lands'!K10 -> $175,050 | F18: ='12 BH Collection ECWAG'!K10 -> $400,200 | G18: ='12 BH Collection RAVG-Reg'!K10 -> $303,600 | H18: ='12 BH Collection RAVG PPG'!K10 -> $54,450 | I18: =SUM(B18:H18) -> $8,190,000
A19: Average Hours Per Response | B19: =B17/B16 -> 3.771 | C19: =C17/C16 -> 2.531 | D19: 3.180 | E19: 3.228 | F19: 2.713 | G19: 3.557 | H19: 1.995 | I19: 3.6258591
A20: Number of Responses Per Respondent | B20: =B16/B14 -> 47.259 | C20: =C16/C14 -> 19.185 | D20: 66.222 | E20: 65.727 | F20: 47.976 | G20: 49.478 | H20: 18.200 | I20: 45.910
A22: Supporting Statement Tables:
A23: Table 12.1
B24: WWLG | C24: WWPPG | D24: Colonias | E24: Tribal Lands | F24: ECWAG | G24: RAVG - REG | H24: RAVG PPG | I24: Total
A25: Total Respondents (Applicants) | B25: ='12 BH Collection WWLG'!$C$7 -> 525 | C25: ='12 BH Collection WWPPG'!$C$8 -> 27 | D25: ='12 BH Collection Colonias'!$C$8 -> 9 | E25: ='12 BH Collection Tribal Lands'!$C$8 -> 11 | F25: ='12 BH Collection ECWAG'!$C$8 -> 41 | G25: ='12 BH Collection RAVG-Reg'!$C$8 -> 23 | H25: ='12 BH Collection RAVG PPG'!$C$8 -> 20 | I25: =SUM(B25:H25) -> 656
A26: Total Awards (Awardees) | B26: ='12 BH Collection WWLG'!$K$7 -> 255 | C26: ='12 BH Collection WWPPG'!$K$8 -> 24 | D26: ='12 BH Collection Colonias'!$K$8 -> 9 | E26: ='12 BH Collection Tribal Lands'!$K$8 -> 11 | F26: ='12 BH Collection ECWAG'!$K$8 -> 41 | G26: ='12 BH Collection RAVG-Reg'!$K$8 -> 14 | H26: ='12 BH Collection RAVG PPG'!$K$8 -> 20 | I26: =SUM(B26:H26) -> 374
A27: Annual Responses | B27: ='12 BH Collection WWLG'!$G$9 -> 24,811 | C27: ='12 BH Collection WWPPG'!$G$10 -> 518 | D27: ='12 BH Collection Colonias'!$G$10 -> 596 | E27: ='12 BH Collection Tribal Lands'!$G$10 -> 723 | F27: ='12 BH Collection ECWAG'!$G$10 -> 1,967 | G27: ='12 BH Collection RAVG-Reg'!$G$10 -> 1,138 | H27: ='12 BH Collection RAVG PPG'!$G$10 -> 364 | I27: =SUM(B27:H27) -> 30,117
A28: Total Hours | B28: ='12 BH Collection WWLG'!$I$9 -> 93,550 | C28: ='12 BH Collection WWPPG'!$I$10 -> 1,311 | D28: ='12 BH Collection Colonias'!$I$10 -> 1,895 | E28: ='12 BH Collection Tribal Lands'!$I$10 -> 2,334 | F28: ='12 BH Collection ECWAG'!$I$10 -> 5,336 | G28: ='12 BH Collection RAVG-Reg'!$I$10 -> 4,048 | H28: ='12 BH Collection RAVG PPG'!$I$10 -> 726 | I28: =SUM(B28:H28) -> 109,200
A29: Cost Per Hours | B29: ='12 Est Prof Wage Rate'!G35 -> $75.00
A30: Total Annual Cost | B30: =B28*$B$29 -> $7,016,250 | C30: =C28*$B$29 -> $98,325 | D30: $142,125 | E30: $175,050 | F30: $400,200 | G30: $303,600 | H30: $54,450 | I30: =SUM(B30:H30) -> $8,190,000
A32: Total Hours - Reporting | B32: =B17-B36 -> 93,295 | C32: =C17-C36 -> 1,287 | D32: =D17-D36 -> 1,886 | E32: =E17-E36 -> 2,323 | F32: =F17-F36 -> 5,295 | G32: =G17-G36 -> 4,034 | H32: =H17-H36 -> 706 | I32: =SUM(B32:H32) -> 108,826 | K32: =I17-I36 -> 108,826 | L32: =K32-I32 -> 0
A33: Total Responses - Reporting | B33: =B16-B37 -> 24,556 | C33: =C16-C37 -> 494 | D33: =D16-D37 -> 587 | E33: =E16-E37 -> 712 | F33: =F16-F37 -> 1,926 | G33: =G16-G37 -> 1,124 | H33: =H16-H37 -> 344 | I33: =SUM(B33:H33) -> 29,743 | K33: =I16-I36 -> 29,743 | L33: =K33-I33 -> 0
A34: Average Hours per Response | B34: =B32/B33 -> 3.7993 | C34: =C32/C33 -> 2.6053 | D34: 3.2129 | E34: 3.2626 | F34: 2.7492 | G34: 3.5890 | H34: 2.0523 | I34: 3.6588777
A36: Total Hours - Record Keeping | B36: 255 | C36: 24 | D36: 9 | E36: 11 | F36: 41 | G36: 14 | H36: 20 | I36: =SUM(B36:H36) -> 374
A37: Total Responses - Record Keeping | B37: 255 | C37: 24 | D37: 9 | E37: 11 | F37: 41 | G37: 14 | H37: 20 | I37: =SUM(B37:H37) -> 374
A38: Average Hours per Record Keeping | B38: =B37/B36 -> 1 | C38: =C37/C36 -> 1 | D38: 1 | E38: 1 | F38: 1 | G38: 1 | H38: 1 | I38: 1
A40: Table 14.1
B41: WWLG | C41: WWPPG | D41: Colonias | E41: Tribal Lands | F41: ECWAG | G41: RAVG - REG | H41: RAVG PPG | I41: Total
A42: Step 1: Application | B42: ='14 Ann Cost to Fed Gov Est WWLG'!K22 -> $9,443,371 | C42: ='14 Ann Cost toFedGovEst WWPPG'!K23 -> $485,659 | D42: ='14 AnnCost toFedGovEst Colonias'!K23 -> $161,886 | E42: ='14 AnnCost toFedGovEst Tribal'!K23 -> $197,861 | F42: ='14 AnnCost toFedGovEst ECWAG'!K23 -> $0 | G42: ='14 AnnCost toFedGovEst RAVGReg'!K23 -> $413,710 | H42: ='14 Ann Cost toFedGovEst RAVGPPG'!K23 -> $359,747 | I42: =SUM(B42:H42) -> $11,062,234
A43: Step 2: Application Review | B43: ='14 Ann Cost to Fed Gov Est WWLG'!K30 -> $3,206,217 | C43: ='14 Ann Cost toFedGovEst WWPPG'!K31 -> $301,762 | D43: ='14 AnnCost toFedGovEst Colonias'!K31 -> $113,161 | E43: ='14 AnnCost toFedGovEst Tribal'!K31 -> $138,307 | F43: ='14 AnnCost toFedGovEst ECWAG'!K24 -> $515,509 | G43: ='14 AnnCost toFedGovEst RAVGReg'!K31 -> $176,028 | H43: ='14 Ann Cost toFedGovEst RAVGPPG'!K31 -> $251,468 | I43: =SUM(B43:H43) -> $4,702,452
A44: Step 3: Grant Award | B44: ='14 Ann Cost to Fed Gov Est WWLG'!K37 -> $3,867,671 | C44: ='14 Ann Cost toFedGovEst WWPPG'!K38 -> $0 | D44: ='14 AnnCost toFedGovEst Colonias'!K38 -> $136,506 | E44: ='14 AnnCost toFedGovEst Tribal'!K38 -> $166,841 | F44: ='14 AnnCost toFedGovEst ECWAG'!K31 -> $621,861 | G44: ='14 AnnCost toFedGovEst RAVGReg'!K38 -> $212,343 | H44: ='14 Ann Cost toFedGovEst RAVGPPG'!K38 -> $0 | I44: $5,005,222
A45: Total Cost to Federal Government | B45: =SUM(B42:B44) -> $16,517,259 | C45: =SUM(C42:C44) -> $787,421 | D45: $411,553 | E45: $503,009 | F45: $1,137,370 | G45: $802,081 | H45: $611,215 | I45: $20,769,908
A47: Table 13.1
A48: Document Type | B48: Total Est. # of Docs | C48: Est. % Mailed | D48: Est. # of Docs Mailed | E48: Est. Mailing Cost | F48: Total Mailing Cost
A49: PER | B49: =525+9+11+23 -> 568 | C49: 5% | D49: =ROUND((B49*C49),0) -> 28 | E49: $15 | F49: =D49*E49 -> $420
A50: Environmental Documentation - Categorical Exclusion with Report | B50: =315+5+7+14 -> 341 | C50: 5% | D50: =ROUND((B50*C50),0) -> 17 | E50: $12 | F50: =D50*E50 -> $204
A51: Environmental Documentation - Environmental Assessment | B51: =53+1+1+2 -> 57 | C51: 10% | D51: 6 | E51: $15 | F51: $90
A52: Construction Contract Documents | B52: =240+6+9+31+12 -> 298 | C52: 20% | D52: 60 | E52: $20 | F52: $1,200
A53: Audits and Year End Financial Reports | B53: =765+72+9+11+123+42+20 -> 1,042 | C53: 20% | D53: 208 | E53: $15 | F53: $3,120
E54: Total | F54: =SUM(F49:F53) -> $5,034

Sheet 12 BH Collection WWLG
A1: RURAL UTILITIES SERVICE
A2: WATER AND WASTE LOAN AND GRANT PROGRAM
A3: INFORMATION COLLECTION BURDEN HOURS
A4: OMB # 0572 - 0121
A5: 2024-11-18
A7: Estimated No. of Total Respondents (Applicants) | C7: 525 | J7: Estimated No. of Total Awards (Awardees) | K7: 255
A8: Average hours per response | C8: =I9/G9 -> 3.771 | J8: Number of responses per respondent | K8: =G9/C7 -> 47.26
A9: Gray Columns have automatic formulas. DO NOT input numbers in these columns. | F9: TOTAL | G9: =SUM(G13:G95) -> 24,811 | I9: =SUM(I13:I95) -> 93,550 | K9: =SUM(K13:K95) -> $7,016,250
A10: (A) | B10: (B) | C10: (C) | D10: (D) | E10: (E) | F10: (F) | G10: (G) | H10: (H) | I10: (I) | J10: (J) | K10: (K)
A11: Regulation Reference | B11: Title | C11: Form No. (If Any) | D11: % of Respondents Line Item is Applicable To | E11: Estimated # of Respondents | F11: Reports Filed Annually | G11: Total Responses (E) x (F) | H11: Estimated # of Hours Per Response | I11: Estimated Total Hours (G) x (H) | J11: Prof. Wage Rate | K11: Total Cost (I) x (J)
A12: APPLICATION/ELGIBILITY
A13: 1780.1(d) | B13: Documentation of Income Survey | C13: Written | D13: 10% | E13: =ROUND(($C$7*D13),0) -> 53 | F13: 1 | G13: =E13*F13 -> 53 | H13: 8.00 | I13: =ROUND((G13*H13),0) -> 424 | J13: ='12 Est Prof Wage Rate'!$G$35 -> $75.00 | K13: =IF((J13*I13)="","",(J13*I13)) -> $31,800
A14: 1780.1(f) | B14: Relationship or association ith RUS employees | C14: Written | D14: 100% | E14: =ROUND(($C$7*D14),0) -> 525 | F14: 1 | G14: =E14*F14 -> 525 | H14: 0.25 | I14: =ROUND((G14*H14),0) -> 131 | J14: ='12 Est Prof Wage Rate'!$G$35 -> $75.00 | K14: $9,825
A15: 1780.1(h) | B15: Evidence proposed facility will be consistent with development plans | C15: Written | D15: 100% | E15: 525 | F15: 1 | G15: =E15*F15 -> 525 | H15: 1.00 | I15: 525 | J15: ='12 Est Prof Wage Rate'!$G$35 -> $75.00 | K15: =IF((J15*I15)="","",(J15*I15)) -> $39,375
A16: 1780.7(d) & 1780.33(d) | B16: Statement of availability to obtain credit elsewhere | C16: Written | D16: 100% | E16: 525 | F16: 1 | G16: 525 | H16: 1.00 | I16: 525 | J16: ='12 Est Prof Wage Rate'!$G$35 -> $75.00 | K16: $39,375
A17: 1780.7(g) | B17: Evidence No Outstanding Judgement Obtained | C17: Written | D17: 100% | E17: 525 | F17: 1 | G17: =E17*F17 -> 525 | H17: 0.25 | I17: 131 | J17: ='12 Est Prof Wage Rate'!$G$35 -> $75.00 | K17: =IF((J17*I17)="","",(J17*I17)) -> $9,825
A18: 1780.9(g)(2) | B18: Agreement between Applicant and Individual Users for Water or Sewer service provided through individual installations or small clusters of users within an Applicant's service area | C18: Written | D18: 10% | E18: 53 | F18: 1 | G18: =E18*F18 -> 53 | H18: 1.00 | I18: 53 | J18: ='12 Est Prof Wage Rate'!$G$35 -> $75.00 | K18: =IF((J18*I18)="","",(J18*I18)) -> $3,975
A19: 1780.11(a)(2) | B19: Notification of service statement | C19: Written | D19: 15% | E19: 79 | F19: 1 | G19: =E19*F19 -> 79 | H19: 1.00 | I19: 79 | J19: ='12 Est Prof Wage Rate'!$G$35 -> $75.00 | K19: =IF((J19*I19)="","",(J19*I19)) -> $5,925
A20: 1780.14(a) | B20: Security- Public Bodies- General Obligation and Revenue Bonds | C20: Written | D20: 85% | E20: 446 | F20: 1 | G20: 446 | H20: 4.00 | I20: 1,784 | J20: ='12 Est Prof Wage Rate'!$G$35 -> $75.00 | K20: $133,800
A21: 1780.14(b) | B21: Security- Not-For-Profit- Liens on property and Financing Stmt. | C21: Written | D21: 15% | E21: 79 | F21: 1 | G21: 79 | H21: 4.00 | I21: 316 | J21: ='12 Est Prof Wage Rate'!$G$35 -> $75.00 | K21: $23,700
A22: 1780.19 | B22: Evidence of Public Notice of Intent | C22: Written | D22: 100% | E22: 525 | F22: 1 | G22: 525 | H22: 2.00 | I22: 1,050 | J22: ='12 Est Prof Wage Rate'!$G$35 -> $75.00 | K22: $78,750
A23: 1780.31(c) | B23: Eligibility Determination Request in lieu of application | C23: Written | D23: 0% | E23: 0 | F23: 1 | G23: =E23*F23 -> 0 | I23: 0 | J23: ='12 Est Prof Wage Rate'!$G$35 -> $75.00 | K23: =IF((J23*I23)="","",(J23*I23)) -> $0
A24: 1780.33(b) | B24: Intergovernmental comments | C24: Written | D24: 99% | E24: 520 | F24: 1 | G24: 520 | H24: 1.00 | I24: 520 | J24: ='12 Est Prof Wage Rate'!$G$35 -> $75.00 | K24: $39,000
A25: 1780.33(c) | B25: Preliminary engineering report | C25: Written | D25: 100% | E25: 525 | F25: 1 | G25: 525 | H25: 40.00 | I25: 21,000 | J25: ='12 Est Prof Wage Rate'!$G$35 -> $75.00 | K25: $1,575,000
A26: 1780.33(e) | B26: Supporting documentation | C26: Written | D26: 100% | E26: 525 | F26: 1 | G26: 525 | H26: 4.00 | I26: 2,100 | J26: ='12 Est Prof Wage Rate'!$G$35 -> $75.00 | K26: $157,500
A27: 1780.33(f) | B27: Environmental Documentation - Categorical exclusion without report | C27: Written | D27: 30% | E27: 158 | F27: 1 | G27: 158 | H27: 1.00 | I27: 158 | J27: ='12 Est Prof Wage Rate'!$G$35 -> $75.00 | K27: $11,850
A28: 1780.33(f) | B28: Environmental Documentation - Categorical exclusion with report | C28: Written | D28: 60% | E28: 315 | F28: 1 | G28: =E28*F28 -> 315 | H28: 20.00 | I28: 6,300 | J28: ='12 Est Prof Wage Rate'!$G$35 -> $75.00 | K28: =IF((J28*I28)="","",(J28*I28)) -> $472,500
A29: 1780.33(f) | B29: Environmental Documentation - Environmental Assessment | C29: Written | D29: 10% | E29: 53 | F29: 1 | G29: 53 | H29: 50.00 | I29: 2,650 | J29: ='12 Est Prof Wage Rate'!$G$35 -> $75.00 | K29: $198,750
A30: 1780.33(f) | B30: Environmental Documentation - Environmental Impact Statement | C30: Written | D30: 0% | E30: 0 | F30: 1 | G30: 0 | H30: 150.00 | I30: 0 | J30: ='12 Est Prof Wage Rate'!$G$35 -> $75.00 | K30: $0
A31: 1780.33(h)(7) | B31: Certification for Contracts, Grants, and Loans (Regarding Lobbying) | C31: Written | D31: 100% | E31: 525 | F31: 1 | G31: 525 | H31: 0.25 | I31: 131 | J31: ='12 Est Prof Wage Rate'!$G$35 -> $75.00 | K31: $9,825
A32: 1780.33(h)(8) | B32: Certification on Tying Arrangements | C32: Written | D32: 100% | E32: 525 | F32: 1 | G32: 525 | H32: 0.25 | I32: 131 | J32: ='12 Est Prof Wage Rate'!$G$35 -> $75.00 | K32: $9,825
A33: 1780.39(b)(1) | B33: Agreement for Engineering Services - Agency standard - EJCDC E-500 | C33: Written | D33: 99% | E33: 517 | F33: 1 | G33: 517 | H33: 8.00 | I33: 4,136 | J33: ='12 Est Prof Wage Rate'!$G$35 -> $75.00 | K33: =IF((J33*I33)="","",(J33*I33)) -> $310,200
A34: 1780.39(b)(1) | B34: Agreement for Engineering Services - Agency standard - EJCDC E-520 | C34: Written | D34: 1% | E34: 5 | F34: 1 | G34: 5 | H34: 6.00 | I34: 30 | J34: ='12 Est Prof Wage Rate'!$G$35 -> $75.00 | K34: =IF((J34*I34)="","",(J34*I34)) -> $2,250
A35: 1780.39(b)(1) | B35: Agreement for Engineering Services - Agency standard - EJCDC E-525 | C35: Written | D35: 0% | E35: 0 | F35: 1 | G35: 0 | H35: 6.00 | I35: 0 | J35: ='12 Est Prof Wage Rate'!$G$35 -> $75.00 | K35: $0
A36: 1780.39(b)(1) | B36: Agreement for Engineering and/or Architectural Services - Agency non-standard | C36: Written | D36: 0.50% | E36: 3 | F36: 1 | G36: 3 | H36: 6.00 | I36: 18 | J36: ='12 Est Prof Wage Rate'!$G$35 -> $75.00 | K36: $1,350
A37: 1780.39(b)(2) | B37: Agreements for Legal Services | C37: Written | D37: 100% | E37: 525 | F37: 1 | G37: 525 | H37: 6.00 | I37: 3,150 | J37: ='12 Est Prof Wage Rate'!$G$35 -> $75.00 | K37: $236,250
A38: 1780.39(b)(2) | B38: Agreements for Other Professional Services | C38: Written | D38: 100% | E38: 525 | F38: 1 | G38: 525 | H38: 6.00 | I38: 3,150 | J38: ='12 Est Prof Wage Rate'!$G$35 -> $75.00 | K38: =IF((J38*I38)="","",(J38*I38)) -> $236,250
A39: 1780.39(b)(3) | B39: Agreements for Bond Counsel | C39: Written | D39: 100% | E39: 525 | F39: 1 | G39: =E39*F39 -> 525 | H39: 6.00 | I39: 3,150 | J39: ='12 Est Prof Wage Rate'!$G$35 -> $75.00 | K39: =IF((J39*I39)="","",(J39*I39)) -> $236,250
A40: 1780.39(b)(4) | B40: Contracts for other services | C40: Written | D40: 25% | E40: 131 | F40: 1 | G40: 131 | H40: 2.00 | I40: 262 | J40: ='12 Est Prof Wage Rate'!$G$35 -> $75.00 | K40: $19,650
A41: 1780.39(c)(3) | B41: User Agreement - Water | C41: Written | D41: 10% | E41: 53 | F41: 1 | G41: 53 | H41: 4.00 | I41: 212 | J41: ='12 Est Prof Wage Rate'!$G$35 -> $75.00 | K41: $15,900
A42: 1780.39(c)(3) | B42: User Agreement - Sewer | C42: Written | D42: 10% | E42: 53 | F42: 1 | G42: 53 | H42: 4.00 | I42: 212 | J42: ='12 Est Prof Wage Rate'!$G$35 -> $75.00 | K42: =IF((J42*I42)="","",(J42*I42)) -> $15,900
A43: 1780.39(c)(5)(i) | B43: Positive programs to encourage connections | C43: Written | D43: 20% | E43: 105 | F43: 1 | G43: 105 | H43: 4.00 | I43: 420 | J43: ='12 Est Prof Wage Rate'!$G$35 -> $75.00 | K43: $31,500
A44: 1780.39(d) | B44: Interim financing | C44: Written | D44: 75% | E44: 394 | F44: 1 | G44: 394 | H44: 4.00 | I44: 1,576 | J44: ='12 Est Prof Wage Rate'!$G$35 -> $75.00 | K44: $118,200
A45: 1780.39(g)(3) | B45: Fidelity or employee dishonesty Bond | C45: Written | D45: 100% | E45: 525 | F45: 1 | G45: 525 | H45: 2.00 | I45: 1,050 | J45: ='12 Est Prof Wage Rate'!$G$35 -> $75.00 | K45: $78,750
A46: 1780.39(g)(4) | B46: Property insurance | C46: Written | D46: 100% | E46: 525 | F46: 1 | G46: 525 | H46: 1.00 | I46: 525 | J46: ='12 Est Prof Wage Rate'!$G$35 -> $75.00 | K46: $39,375
A47: 1780.39(g)(5) | B47: General Liability Insurance | C47: Written | D47: 100% | E47: 525 | F47: 1 | G47: 525 | H47: 1.00 | I47: 525 | J47: ='12 Est Prof Wage Rate'!$G$35 -> $75.00 | K47: $39,375
A48: 1780.39(g)(6) | B48: Flood Insurance | C48: Written | D48: 30% | E48: 158 | F48: 1 | G48: 158 | H48: 1.00 | I48: 158 | J48: ='12 Est Prof Wage Rate'!$G$35 -> $75.00 | K48: $11,850
A49: 1780.39(g)(7) | B49: Workman's compensation insurance | C49: Written | D49: 100% | E49: 525 | F49: 1 | G49: 525 | H49: 1.00 | I49: 525 | J49: ='12 Est Prof Wage Rate'!$G$35 -> $75.00 | K49: $39,375
B50: SAM Registration | C50: Written | D50: 100% | E50: 525 | F50: 1 | G50: 525 | H50: 2.00 | I50: 1,050 | J50: ='12 Est Prof Wage Rate'!$G$35 -> $75.00 | K50: $78,750
A51: APPROVAL/ACTIONS FOLLOWING OBLIGATION (USES OBLIGATION DATA)
A52: 1780.41(a)(5) | B52: Letter of Conditions | C52: Written | D52: 100% | E52: =ROUND((D52*$K$7),0) -> 255 | F52: 1 | G52: 255 | H52: 1.00 | I52: 255 | J52: ='12 Est Prof Wage Rate'!$G$35 -> $75.00 | K52: =IF((J52*I52)="","",(J52*I52)) -> $19,125
A53: 1780.44(b) | B53: Verification of Applicant Contribution | C53: Written | D53: 100% | E53: =ROUND((D53*$K$7),0) -> 255 | F53: 1 | G53: =E53*F53 -> 255 | H53: 1.00 | I53: 255 | J53: ='12 Est Prof Wage Rate'!$G$35 -> $75.00 | K53: =IF((J53*I53)="","",(J53*I53)) -> $19,125
A54: 1780.44(f) | B54: Evidence of other funds | C54: Written | D54: 100% | E54: 255 | F54: 1 | G54: 255 | H54: 1.00 | I54: 255 | J54: ='12 Est Prof Wage Rate'!$G$35 -> $75.00 | K54: $19,125
A55: 1780.44(g) | B55: Appraisal Report | C55: Written | D55: 1% | E55: 3 | F55: 1 | G55: 3 | H55: 2.00 | I55: 6 | J55: ='12 Est Prof Wage Rate'!$G$35 -> $75.00 | K55: $450
A56: 1780.44(g)(1)(ii) | B56: User Connections | C56: Written | D56: 15% | E56: 38 | F56: 1 | G56: 38 | H56: 4.00 | I56: 152 | J56: ='12 Est Prof Wage Rate'!$G$35 -> $75.00 | K56: $11,400
A57: 1780.44(g)(3) | B57: Water rights | C57: Written | D57: 15% | E57: 38 | F57: 1 | G57: 38 | H57: 4.00 | I57: 152 | J57: ='12 Est Prof Wage Rate'!$G$35 -> $75.00 | K57: $11,400
A58: 1780.44(g)(4) | B58: Lease agreement | C58: Written | D58: 15% | E58: 38 | F58: 1 | G58: 38 | H58: 4.00 | I58: 152 | J58: ='12 Est Prof Wage Rate'!$G$35 -> $75.00 | K58: $11,400
A59: 1780.45(a)(1) | B59: Promissory Note | C59: Written | D59: 15% | E59: 38 | F59: 1 | G59: 38 | H59: 0.25 | I59: 10 | J59: ='12 Est Prof Wage Rate'!$G$35 -> $75.00 | K59: $750
A60: 1780.45(a)(2) | B60: Loan Resolution (Public Bodies) | C60: Written | D60: 85% | E60: 217 | F60: 1 | G60: 217 | H60: 1.00 | I60: 217 | J60: ='12 Est Prof Wage Rate'!$G$35 -> $75.00 | K60: $16,275
A61: 1780.45(a)(2) | B61: Loan Resolution, Security Agreement | C61: Written | D61: 15% | E61: 38 | F61: 1 | G61: 38 | H61: 1.00 | I61: 38 | J61: ='12 Est Prof Wage Rate'!$G$35 -> $75.00 | K61: $2,850
A62: 1780.45(c) | B62: Water and Waste System Grant Agreement | C62: Written | D62: 65% | E62: 166 | F62: 1 | G62: 166 | H62: 1.00 | I62: 166 | J62: ='12 Est Prof Wage Rate'!$G$35 -> $75.00 | K62: $12,450
A63: 1780.47(d) & (e ) | B63: Audits and Year-End Financial Reports | C63: Written | D63: 100% | E63: 255 | F63: 3 | G63: 765 | H63: 8.00 | I63: 6,120 | J63: ='12 Est Prof Wage Rate'!$G$35 -> $75.00 | K63: $459,000
A64: 1780.47(f)(1) | B64: Management report- Quarterly Report | C64: Written | D64: 25% | E64: 64 | F64: 4 | G64: =E64*F64 -> 256 | H64: 4.00 | I64: 1,024 | J64: ='12 Est Prof Wage Rate'!$G$35 -> $75.00 | K64: =IF((J64*I64)="","",(J64*I64)) -> $76,800
A65: 1780.54 | B65: Value Engineering Study (VES) | C65: Written | D65: 1% | E65: 3 | F65: 1 | G65: 3 | H65: 20.00 | I65: 60 | J65: ='12 Est Prof Wage Rate'!$G$35 -> $75.00 | K65: $4,500
A66: 1780.57(g) and (h) | B66: Evidence of Conformity with Drinking Water and Water Pollution Control Standards | C66: Written | D66: 100% | E66: 255 | F66: 1 | G66: =E66*F66 -> 255 | H66: 1.00 | I66: 255 | J66: ='12 Est Prof Wage Rate'!$G$35 -> $75.00 | K66: =IF((J66*I66)="","",(J66*I66)) -> $19,125
A67: 1780.57(m) | B67: Exception for Metering Devices | C67: Written | D67: 5% | E67: 13 | F67: 1 | G67: =E67*F67 -> 13 | H67: 2.00 | I67: 26 | J67: ='12 Est Prof Wage Rate'!$G$35 -> $75.00 | K67: =IF((J67*I67)="","",(J67*I67)) -> $1,950
A68: 1780.63 | B68: Sewage Treatment Contract(s) | C68: Written | D68: 5% | E68: 13 | F68: 1 | G68: =E68*F68 -> 13 | H68: 8.00 | I68: 104 | J68: ='12 Est Prof Wage Rate'!$G$35 -> $75.00 | K68: =IF((J68*I68)="","",(J68*I68)) -> $7,800
B69: American Iron and Steel (AIS) Requirement Prior to Construction | C69: Written | D69: 100% | E69: 255 | F69: 1 | G69: =E69*F69 -> 255 | H69: 8.00 | I69: 2,040 | J69: ='12 Est Prof Wage Rate'!$G$35 -> $75.00 | K69: =IF((J69*I69)="","",(J69*I69)) -> $153,000
B70: Build America, Buy America Act (BABAA) Requirement Prior to Construction | C70: Written | D70: 100% | E70: 255 | F70: 1 | G70: 255 | H70: 16.00 | I70: 4,080 | J70: ='12 Est Prof Wage Rate'!$G$35 -> $75.00 | K70: $306,000
A71: ACTIONS DURING CONSTRUCTION (USES CONSTRUCTION DATA)
A72: 1780.57 | B72: Final operating permit(s) for the entire project components | C72: Written | D72: 100% | E72: 255 | F72: 1 | G72: =E72*F72 -> 255 | H72: 2.00 | I72: 510 | J72: ='12 Est Prof Wage Rate'!$G$35 -> $75.00 | K72: =IF((J72*I72)="","",(J72*I72)) -> $38,250
A73: 1780.61(a) | B73: Construction contract documents - EJCDC C-Series | C73: Written | D73: 94% | E73: 240 | F73: 1 | G73: =E73*F73 -> 240 | H73: 8.00 | I73: 1,920 | J73: ='12 Est Prof Wage Rate'!$G$35 -> $75.00 | K73: =IF((J73*I73)="","",(J73*I73)) -> $144,000
A74: 1780.61(a) | B74: Construction contract document - EJCDC C-522 for small projects | C74: Written | D74: 1% | E74: 3 | F74: 1 | G74: =E74*F74 -> 3 | H74: 6.00 | I74: 18 | J74: ='12 Est Prof Wage Rate'!$G$35 -> $75.00 | K74: =IF((J74*I74)="","",(J74*I74)) -> $1,350
A75: 1780.61(b) | B75: Certificate of Owner's Engineers Certifications | C75: Written | D75: 100% | E75: 255 | F75: 1 | G75: =E75*F75 -> 255 | H75: 1.00 | I75: 255 | J75: ='12 Est Prof Wage Rate'!$G$35 -> $75.00 | K75: =IF((J75*I75)="","",(J75*I75)) -> $19,125
A76: 1780.61(b) | B76: Certificate of Owner's Attorney Concurrence | C76: Written | D76: 96% | E76: 245 | F76: 1 | G76: 245 | H76: 8.00 | I76: 1,960 | J76: ='12 Est Prof Wage Rate'!$G$35 -> $75.00 | K76: $147,000
A77: 1780.70 | B77: Owner's Solicitation and Review of Offers - Competitive Sealed Bids | C77: Written | D77: 75% | E77: 191 | F77: 1 | G77: 191 | H77: 10.00 | I77: 1,910 | J77: ='12 Est Prof Wage Rate'!$G$35 -> $75.00 | K77: $143,250
A78: 1780.70 | B78: Owner's Solicitation and Review of Offers - Noncompetitive proposals | C78: Written | D78: 1% | E78: 3 | F78: 1 | G78: 3 | H78: 10.00 | I78: =ROUND((G78*H78),0) -> 30 | J78: ='12 Est Prof Wage Rate'!$G$35 -> $75.00 | K78: =IF((J78*I78)="","",(J78*I78)) -> $2,250
A79: 1780.70 | B79: Owner's Solicitation and Review of Offers - Alternative Delivery Methods | C79: Written | D79: 1% | E79: 3 | F79: 1 | G79: 3 | H79: 10.00 | I79: 30 | J79: ='12 Est Prof Wage Rate'!$G$35 -> $75.00 | K79: =IF((J79*I79)="","",(J79*I79)) -> $2,250
A80: 1780.70 | B80: Owner's Solicitation and Review of Offers - Small Projects | C80: Written | D80: 22% | E80: 56 | F80: 1 | G80: 56 | H80: 8.00 | I80: 448 | J80: ='12 Est Prof Wage Rate'!$G$35 -> $75.00 | K80: $33,600
A81: 1780.70 | B81: Owner's Solicitation and Review of Offers - Micro Purchases | C81: Written | D81: 1% | E81: 3 | F81: 1 | G81: 3 | H81: 4.00 | I81: 12 | J81: ='12 Est Prof Wage Rate'!$G$35 -> $75.00 | K81: $900
A82: 1780.74 | B82: Contracts awarded prior to application | C82: Written | D82: 5% | E82: 13 | F82: 1 | G82: 13 | H82: 2.00 | I82: 26 | J82: ='12 Est Prof Wage Rate'!$G$35 -> $75.00 | K82: $1,950
A83: 1780.76(a) | B83: Pre-Construction Conference | C83: Written | D83: 100% | E83: 255 | F83: 1 | G83: 255 | H83: 4.00 | I83: 1,020 | J83: ='12 Est Prof Wage Rate'!$G$35 -> $75.00 | K83: $76,500
A84: 1780.76(b) | B84: Monitoring Construction- Owner's Report | C84: Written | D84: 100% | E84: 255 | F84: 12 | G84: 3,060 | H84: 2.00 | I84: 6,120 | J84: ='12 Est Prof Wage Rate'!$G$35 -> $75.00 | K84: $459,000
A85: 1780.76(c) | B85: Resident inspector resume | C85: Written | D85: 100% | E85: 255 | F85: 1 | G85: 255 | H85: 1.00 | I85: 255 | J85: ='12 Est Prof Wage Rate'!$G$35 -> $75.00 | K85: $19,125
A86: 1780.76(d) | B86: Daily inspection report | C86: Written | D86: 100% | E86: 255 | F86: 12 | G86: 3,060 | H86: 0.50 | I86: 1,530 | J86: ='12 Est Prof Wage Rate'!$G$35 -> $75.00 | K86: $114,750
A87: 1780.83 | B87: Bond Transcript Documents | C87: Written | D87: 85% | E87: 217 | F87: 1 | G87: 217 | H87: 8.00 | I87: 1,736 | J87: ='12 Est Prof Wage Rate'!$G$35 -> $75.00 | K87: $130,200
A88: 1780.89 & .90 | B88: Multiple Advances of Agency Funds (Bond Anticipation Note) | C88: Written | D88: 15% | E88: 38 | F88: 1 | G88: 38 | H88: 2.00 | I88: 76 | J88: ='12 Est Prof Wage Rate'!$G$35 -> $75.00 | K88: $5,700
B89: Evidence that as built plans have been delivered to Owner | C89: Written | D89: 100% | E89: 255 | F89: 1 | G89: 255 | H89: 1.00 | I89: 255 | J89: ='12 Est Prof Wage Rate'!$G$35 -> $75.00 | K89: =IF((J89*I89)="","",(J89*I89)) -> $19,125
B90: Domestic Preference De Minimis List | C90: Written | D90: 50% | E90: 128 | F90: 1 | G90: 128 | H90: 3.00 | I90: 384 | J90: ='12 Est Prof Wage Rate'!$G$35 -> $75.00 | K90: $28,800
B91: Contractor's Certification of Compliance for AIS and/or BABAA | C91: Written | D91: 100% | E91: 255 | F91: 1 | G91: =E91*F91 -> 255 | H91: 0.50 | I91: 128 | J91: ='12 Est Prof Wage Rate'!$G$35 -> $75.00 | K91: =IF((J91*I91)="","",(J91*I91)) -> $9,600
B92: Manufacturer's Certification of Compliance | C92: Written | D92: 100% | E92: 255 | F92: 1 | G92: 255 | H92: 0.50 | I92: 128 | J92: ='12 Est Prof Wage Rate'!$G$35 -> $75.00 | K92: $9,600
B93: AIS and BABAA Requirements during/post construction | C93: Written | D93: 100% | E93: 255 | F93: 1 | G93: 255 | H93: 4.00 | I93: 1,020 | J93: ='12 Est Prof Wage Rate'!$G$35 -> $75.00 | K93: $76,500
A94: RECORDKEEPING
A95: 1780.47(c) | B95: Borrower shall maintain accounting records for 3 years | C95: Written | D95: 100% | E95: 255 | F95: 1 | G95: =E95*F95 -> 255 | H95: 1.00 | I95: 255 | J95: ='12 Est Prof Wage Rate'!$G$35 -> $75.00 | K95: =IF((J95*I95)="","",(J95*I95)) -> $19,125

Sheet 12 Not Inc in BH WWLG
A1: ='12 BH Collection WWLG'!A1 -> RURAL UTILITIES SERVICE
A2: ='12 BH Collection WWLG'!A2 -> WATER AND WASTE LOAN AND GRANT PROGRAM
A3: ='12 BH Collection WWLG'!A3 -> INFORMATION COLLECTION BURDEN HOURS
A4: ='12 BH Collection WWLG'!A4 -> OMB # 0572 - 0121
A5: ='12 BH Collection WWLG'!A5 -> 2024-11-18
A7: Estimated No. of Total Respondents (Applicants) | C7: 525 | J7: Estimated No. of Total Awards (Awardees) | K7: 255
A8: Average hours per response | C8: =I9/G9 -> 0.849 | J8: Number of responses per respondent | K8: =G9/C7 -> 26.43
A9: Gray Columns have automatic formulas. DO NOT input numbers in these columns. | F9: TOTAL | G9: =SUM(G13:G36) -> 13,877 | I9: =SUM(I13:I36) -> 11,784 | K9: =SUM(K13:K36) -> $883,800
A10: (A) | B10: (B) | C10: (C) | D10: (D) | E10: (E) | F10: (F) | G10: (G) | H10: (H) | I10: (I) | J10: (J) | K10: (K)
A11: Regulation Reference | B11: Title | C11: Form No. (If Any) | D11: % of Respondents Line Item is Applicable To | E11: Estimated # of Respondents | F11: Reports Filed Annually | G11: Total Responses (E) x (F) | H11: Estimated # of Hours Per Response | I11: Estimated Total Hours (G) x (H) | J11: Prof. Wage Rate | K11: Total Cost (I) x (J)
A12: APPLICATION/ELGIBILITY
A13: 1780.33(a) | B13: Application for Federal Assistance | C13: SF 424 (4040-0004) | D13: 100% | E13: =ROUND((D13*$C$7),0) -> 525 | F13: 2 | G13: =E13*F13 -> 1,050 | H13: 1.00 | I13: =ROUND((G13*H13),0) -> 1,050 | J13: ='12 Est Prof Wage Rate'!$G$35 -> $75.00 | K13: =IF((J13*I13)="","",(J13*I13)) -> $78,750
A14: 1780.33(a) | B14: Budget Information--Construction Programs | C14: SF-424C (4040-0008) | D14: 100% | E14: =ROUND((D14*$C$7),0) -> 525 | F14: 2 | G14: =E14*F14 -> 1,050 | H14: 1.00 | I14: =ROUND((G14*H14),0) -> 1,050 | J14: ='12 Est Prof Wage Rate'!$G$35 -> $75.00 | K14: =IF((J14*I14)="","",(J14*I14)) -> $78,750
A15: 1780.33(h)(1) | B15: Operating Budget | C15: RD 442-7 (0575-0015) | D15: 100% | E15: 525 | F15: 1 | G15: =E15*F15 -> 525 | H15: 5.00 | I15: 2,625 | J15: ='12 Est Prof Wage Rate'!$G$35 -> $75.00 | K15: =IF((J15*I15)="","",(J15*I15)) -> $196,875
A16: 1780.33(h)(2) | B16: Application Certification, Federal Collection Policies for Consumer or Commercial Debts | C16: RD 1910-11 (0570-0062) | D16: 85% | E16: 446 | F16: 1 | G16: 446 | H16: 0.25 | I16: 112 | J16: ='12 Est Prof Wage Rate'!$G$35 -> $75.00 | K16: $8,400
A17: 1780.33(h)(3) | B17: Equal Opportunity Agreement | C17: RD 400-1 (0575-0201) | D17: 100% | E17: 525 | F17: 1 | G17: 525 | H17: =10/60 -> 0.17 | I17: 88 | J17: ='12 Est Prof Wage Rate'!$G$35 -> $75.00 | K17: $6,600
A18: 1780.33(h)(4) | B18: Assurance Agreement | C18: RD 400-4 (0575-0201) | D18: 100% | E18: 525 | F18: 1 | G18: 525 | H18: 0.25 | I18: 131 | J18: ='12 Est Prof Wage Rate'!$G$35 -> $75.00 | K18: $9,825
A19: 1780.39(f) | B19: Resolution of Members or Stockholders | C19: RD 1942-8 (0575-0015) | D19: 15% | E19: 79 | F19: 1 | G19: =E19*F19 -> 79 | H19: 1.00 | I19: 79 | J19: ='12 Est Prof Wage Rate'!$G$35 -> $75.00 | K19: =IF((J19*I19)="","",(J19*I19)) -> $5,925
A20: APPROVAL ACTIONS FOLLOWING OBLIGATION (USES OBLIGATION DATA)
A21: 1780.41(a)(3) | B21: Balance Sheet or Financial Statement | C21: RD 442-3 (0572-0137; 0575-0015, 0200) | D21: 100% | E21: =ROUND((D21*$K$7),0) -> 255 | F21: 1 | G21: =E21*F21 -> 255 | H21: 1.00 | I21: =ROUND((G21*H21),0) -> 255 | J21: ='12 Est Prof Wage Rate'!$G$35 -> $75.00 | K21: =IF((J21*I21)="","",(J21*I21)) -> $19,125
A22: 1780.41(a)(6) | B22: Letter of Intent to Meet Conditions | C22: RD 1942-46 (0572-0137; 0575-0015; 0570-0021, 0061, 0062) | D22: 100% | E22: =ROUND((D22*$K$7),0) -> 255 | F22: 1 | G22: =E22*F22 -> 255 | H22: 1.00 | I22: 255 | J22: ='12 Est Prof Wage Rate'!$G$35 -> $75.00 | K22: =IF((J22*I22)="","",(J22*I22)) -> $19,125
A23: 1780.41(a)(7) | B23: Request for Obligation of Funds | C23: RD 1940-1 (0570-0062, 0067) | D23: 100% | E23: 255 | F23: 1 | G23: =E23*F23 -> 255 | H23: 0.25 | I23: 64 | J23: ='12 Est Prof Wage Rate'!$G$35 -> $75.00 | K23: =IF((J23*I23)="","",(J23*I23)) -> $4,800
A24: 1780.44(c) | B24: Initial Compliance Review | C24: RD 400-8 (0570-0062; 0575-0018, 0189) | D24: 100% | E24: 255 | F24: 1 | G24: =E24*F24 -> 255 | H24: 8.00 | I24: 2,040 | J24: ='12 Est Prof Wage Rate'!$G$35 -> $75.00 | K24: =IF((J24*I24)="","",(J24*I24)) -> $153,000
A25: 1780.44(g)(1)(i) | B25: Opinion of Counsel Relative to Right-of-Way and Easements | C25: RD 442-22 (0575-0015) | D25: 100% | E25: 255 | F25: 1 | G25: =E25*F25 -> 255 | H25: 1.00 | I25: 255 | J25: ='12 Est Prof Wage Rate'!$G$35 -> $75.00 | K25: =IF((J25*I25)="","",(J25*I25)) -> $19,125
A26: 1780.44(g)(2) | B26: Preliminary Title Opinion | C26: RD 1927-9 (0575-0147, 0189) | D26: 100% | E26: 255 | F26: 1 | G26: =E26*F26 -> 255 | H26: 1.50 | I26: 383 | J26: ='12 Est Prof Wage Rate'!$G$35 -> $75.00 | K26: =IF((J26*I26)="","",(J26*I26)) -> $28,725
A27: 1780.44(g)(2) | B27: Final Title Opinion | C27: RD 1927-10 (0575-0147, 0189) | D27: 100% | E27: 255 | F27: 1 | G27: 255 | H27: =20/60 -> 0.33 | I27: 85 | J27: ='12 Est Prof Wage Rate'!$G$35 -> $75.00 | K27: $6,375
A28: 1780.47(f)(2) | B28: Statement of Budget, Income, and Equity | C28: RD 442-2 (0572-0137; 0575-0015, 0200) | D28: 100% | E28: 255 | F28: 1 | G28: =E28*F28 -> 255 | H28: 2.50 | I28: 638 | J28: ='12 Est Prof Wage Rate'!$G$35 -> $75.00 | K28: =IF((J28*I28)="","",(J28*I28)) -> $47,850
A29: 1780.62 & 63 | B29: Water Purchase Contract | C29: RD 442-30 (0575-0015) | D29: 10% | E29: 26 | F29: 1 | G29: 26 | H29: 1.00 | I29: 26 | J29: ='12 Est Prof Wage Rate'!$G$35 -> $75.00 | K29: $1,950
A30: ACTIONS DURING CONSTRUCTION (USES CONSTRUCTION DATA)
A31: 1780.61(a) | B31: Compliance Statement | C31: RD 400-6 (0575-0201) | D31: 100% | E31: 255 | F31: 1 | G31: =E31*F31 -> 255 | H31: =10/60 -> 0.17 | I31: =ROUND((G31*H31),0) -> 43 | J31: ='12 Est Prof Wage Rate'!$G$35 -> $75.00 | K31: =IF((J31*I31)="","",(J31*I31)) -> $3,225
A32: 1780.75 | B32: Contractor's Final Release and Waiver of Lien | C32: RD 1924-9 (0575-0042) | D32: 100% | E32: 255 | F32: 1 | G32: =E32*F32 -> 255 | H32: 0.25 | I32: 64 | J32: ='12 Est Prof Wage Rate'!$G$35 -> $75.00 | K32: =IF((J32*I32)="","",(J32*I32)) -> $4,800
A33: 1780.75 | B33: Release by Claimants | C33: RD 1924-10 (0575-0189) | D33: 100% | E33: 255 | F33: 1 | G33: 255 | H33: 0.25 | I33: 64 | J33: ='12 Est Prof Wage Rate'!$G$35 -> $75.00 | K33: $4,800
A34: 1780.76(e) | B34: Partial Payment Estimate | C34: RD 1924-18 (0575-0042,0189) | D34: 100% | E34: 255 | F34: 12 | G34: 3,060 | H34: 0.50 | I34: 1,530 | J34: ='12 Est Prof Wage Rate'!$G$35 -> $75.00 | K34: $114,750
A35: 1780.76(f) | B35: Inspection Report | C35: RD 1924-12 (0575-0042,0189) | D35: 100% | E35: 255 | F35: 12 | G35: 3,060 | H35: 0.25 | I35: 765 | J35: ='12 Est Prof Wage Rate'!$G$35 -> $75.00 | K35: $57,375
A36: 1780.76(h)(2) | B36: Contract Change Order | C36: RD 1924-7 (0575-0042) | D36: 95% | E36: 242 | F36: 3 | G36: 726 | H36: 0.25 | I36: 182 | J36: ='12 Est Prof Wage Rate'!$G$35 -> $75.00 | K36: $13,650

Sheet 12 BH Collection WWPPG
A1: ='12 BH Collection WWLG'!A1 -> RURAL UTILITIES SERVICE
A2: ='12 BH Collection WWLG'!A2 -> WATER AND WASTE LOAN AND GRANT PROGRAM
A3: PREDEVELOPMENT PLANNING GRANTS (PPG)
A4: ='12 BH Collection WWLG'!A3 -> INFORMATION COLLECTION BURDEN HOURS
A5: ='12 BH Collection WWLG'!A4 -> OMB # 0572 - 0121
A6: ='12 BH Collection WWLG'!A5 -> 2024-11-18
A8: Estimated No. of Total Respondents (Applicants) | C8: 27 | J8: Estimated No. of Total Awards (Awardees) | K8: 24
A9: Average hours per response | C9: =I10/G10 -> 2.531 | J9: Number of responses per respondent | K9: =G10/C8 -> 19.19
A10: Gray Columns have automatic formulas. DO NOT input numbers in these columns. | F10: TOTAL | G10: =SUM(G14:G43) -> 518 | I10: =SUM(I14:I43) -> 1,311 | K10: =SUM(K14:K43) -> $98,325
A11: (A) | B11: (B) | C11: (C) | D11: (D) | E11: (E) | F11: (F) | G11: (G) | H11: (H) | I11: (I) | J11: (J) | K11: (K)
A12: Regulation Reference | B12: Title | C12: Form No. (If Any) | D12: % of Respondents Line Item is Applicable To | E12: Estimated # of Respondents | F12: Reports Filed Annually | G12: Total Responses (E) x (F) | H12: Estimated # of Hours Per Response | I12: Estimated Total Hours (G) x (H) | J12: Prof. Wage Rate | K12: Total Cost (I) x (J)
A13: APPLICATION/ELGIBILITY
A14: 1780.1(d) | B14: Documentation of Income Survey | C14: Written | D14: 5% | E14: =ROUND(($C$8*D14),0) -> 1 | F14: 1 | G14: =E14*F14 -> 1 | H14: 8.00 | I14: =ROUND((G14*H14),0) -> 8 | J14: ='12 Est Prof Wage Rate'!$G$35 -> $75.00 | K14: =IF((J14*I14)="","",(J14*I14)) -> $600
A15: 1780.1(f) | B15: Relationship or association ith RUS employees | C15: Written | D15: 100% | E15: =ROUND(($C$8*D15),0) -> 27 | F15: 1 | G15: =E15*F15 -> 27 | H15: 0.25 | I15: =ROUND((G15*H15),0) -> 7 | J15: ='12 Est Prof Wage Rate'!$G$35 -> $75.00 | K15: $525
A16: 1780.1(h) | B16: Evidence proposed facility will be consistent with development plans | C16: Written | D16: 100% | E16: 27 | F16: 1 | G16: 27 | H16: 1.00 | I16: 27 | J16: ='12 Est Prof Wage Rate'!$G$35 -> $75.00 | K16: $2,025
A17: 1780.7(d) & 1780.33(d) | B17: Statement of availability to obtain credit elsewhere | C17: Written | D17: 100% | E17: 27 | F17: 1 | G17: 27 | H17: 1.00 | I17: 27 | J17: ='12 Est Prof Wage Rate'!$G$35 -> $75.00 | K17: $2,025
A18: 1780.7(g) | B18: Evidence No Outstanding Judgement Obtained | C18: Written | D18: 100% | E18: 27 | F18: 1 | G18: 27 | H18: 0.25 | I18: 7 | J18: ='12 Est Prof Wage Rate'!$G$35 -> $75.00 | K18: $525
A19: 1780.11(a)(2) | B19: Notification of service statement | C19: Written | D19: 15% | E19: 4 | F19: 1 | G19: 4 | H19: 1.00 | I19: 4 | J19: ='12 Est Prof Wage Rate'!$G$35 -> $75.00 | K19: $300
A20: 1780.19 | B20: Evidence of Public Notice of Intent | C20: Written | D20: 100% | E20: 27 | F20: 1 | G20: 27 | H20: 2.00 | I20: 54 | J20: ='12 Est Prof Wage Rate'!$G$35 -> $75.00 | K20: $4,050
A21: 1780.33(b) | B21: Intergovernmental comments | C21: Written | D21: 100% | E21: 27 | F21: 1 | G21: 27 | H21: 1.00 | I21: 27 | J21: ='12 Est Prof Wage Rate'!$G$35 -> $75.00 | K21: $2,025
A22: 1780.33(c) | B22: Preliminary engineering report | C22: Written | D22: 0% | E22: 0 | F22: 1 | G22: 0 | H22: 40.00 | I22: 0 | J22: ='12 Est Prof Wage Rate'!$G$35 -> $75.00 | K22: $0
A23: 1780.33(e) | B23: Supporting documentation | C23: Written | D23: 100% | E23: 27 | F23: 1 | G23: 27 | H23: 4.00 | I23: 108 | J23: ='12 Est Prof Wage Rate'!$G$35 -> $75.00 | K23: $8,100
A24: 1780.33(f) | B24: Environmental Documentation - Categorical exclusion without report | C24: Written | D24: 100% | E24: 27 | F24: 1 | G24: 27 | H24: 1.00 | I24: 27 | J24: ='12 Est Prof Wage Rate'!$G$35 -> $75.00 | K24: $2,025
A25: 1780.33(f) | B25: Environmental Documentation - Categorical exclusion with report | C25: Written | D25: 0% | E25: 0 | F25: 1 | G25: 0 | H25: 20.00 | I25: 0 | J25: ='12 Est Prof Wage Rate'!$G$35 -> $75.00 | K25: $0
A26: 1780.33(f) | B26: Environmental Documentation - Environmental Assessment | C26: Written | D26: 0% | E26: 0 | F26: 1 | G26: 0 | H26: 50.00 | I26: 0 | J26: ='12 Est Prof Wage Rate'!$G$35 -> $75.00 | K26: $0
A27: 1780.33(f) | B27: Environmental Documentation - Environmental Impact Statement | C27: Written | D27: 0% | E27: 0 | F27: 1 | G27: 0 | H27: 150.00 | I27: 0 | J27: ='12 Est Prof Wage Rate'!$G$35 -> $75.00 | K27: $0
A28: 1780.33(h)(7) | B28: Certification for Contracts, Grants, and Loans (Regarding Lobbying) | C28: Written | D28: 100% | E28: 27 | F28: 1 | G28: 27 | H28: 0.25 | I28: 7 | J28: ='12 Est Prof Wage Rate'!$G$35 -> $75.00 | K28: $525
A29: 1780.39(b)(1) | B29: Agreement for Engineering Services - Agency standard - EJCDC E-500 | C29: Written | D29: 0% | E29: 0 | F29: 1 | G29: 0 | H29: 8.00 | I29: 0 | J29: ='12 Est Prof Wage Rate'!$G$35 -> $75.00 | K29: =IF((J29*I29)="","",(J29*I29)) -> $0
A30: 1780.39(b)(1) | B30: Agreement for Engineering Services - Agency standard - EJCDC E-520 | C30: Written | D30: 0% | E30: 0 | F30: 1 | G30: 0 | H30: 6.00 | I30: 0 | J30: ='12 Est Prof Wage Rate'!$G$35 -> $75.00 | K30: =IF((J30*I30)="","",(J30*I30)) -> $0
A31: 1780.39(b)(1) | B31: Agreement for Engineering Services - Agency standard - EJCDC E-525 | C31: Written | D31: 60% | E31: 16 | F31: 1 | G31: 16 | H31: 6.00 | I31: 96 | J31: ='12 Est Prof Wage Rate'!$G$35 -> $75.00 | K31: $7,200
A32: 1780.39(b)(1) | B32: Agreement for Engineering and/or Architectural Services - Agency non-standard | C32: Written | D32: 40% | E32: 11 | F32: 1 | G32: 11 | H32: 6.00 | I32: 66 | J32: ='12 Est Prof Wage Rate'!$G$35 -> $75.00 | K32: $4,950
B33: SAM Registration | C33: Written | D33: 100% | E33: 27 | F33: 1 | G33: 27 | H33: 2.00 | I33: 54 | J33: ='12 Est Prof Wage Rate'!$G$35 -> $75.00 | K33: $4,050
A34: APPROVAL/ACTIONS FOLLOWING OBLIGATION (USES OBLIGATION DATA)
A35: 1780.41(a)(5) | B35: Letter of Conditions | C35: Written | D35: 100% | E35: =ROUND((D35*$K$8),0) -> 24 | F35: 1 | G35: 24 | H35: 1.00 | I35: 24 | J35: ='12 Est Prof Wage Rate'!$G$35 -> $75.00 | K35: =IF((J35*I35)="","",(J35*I35)) -> $1,800
A36: 1780.44(b) | B36: Verification of Applicant Contribution | C36: Written | D36: 100% | E36: =ROUND((D36*$K$8),0) -> 24 | F36: 1 | G36: 24 | H36: 1.00 | I36: 24 | J36: ='12 Est Prof Wage Rate'!$G$35 -> $75.00 | K36: $1,800
A37: 1780.44(f) | B37: Evidence of other funds | C37: Written | D37: 100% | E37: 24 | F37: 1 | G37: 24 | H37: 1.00 | I37: 24 | J37: ='12 Est Prof Wage Rate'!$G$35 -> $75.00 | K37: $1,800
A38: 1780.45(c) | B38: Water and Waste System Grant Agreement | C38: Written | D38: 100% | E38: 24 | F38: 1 | G38: 24 | H38: 1.00 | I38: 24 | J38: ='12 Est Prof Wage Rate'!$G$35 -> $75.00 | K38: $1,800
A39: 1780.47(d) & (e ) | B39: Audits and Year-End Financial Reports | C39: Written | D39: 100% | E39: 24 | F39: 3 | G39: 72 | H39: 8.00 | I39: 576 | J39: ='12 Est Prof Wage Rate'!$G$35 -> $75.00 | K39: $43,200
A40: 1780.47(f)(1) | B40: Management report- Quarterly Report | C40: Written | D40: 25% | E40: 6 | F40: 4 | G40: 24 | H40: 4.00 | I40: 96 | J40: ='12 Est Prof Wage Rate'!$G$35 -> $75.00 | K40: $7,200
A41: ACTIONS DURING CONSTRUCTION (USES CONSTRUCTION DATA)
A42: RECORDKEEPING
A43: 1780.47(c) | B43: Borrower shall maintain accounting records for 3 years | C43: Written | D43: 100% | E43: =ROUND((D43*$K$8),0) -> 24 | F43: 1 | G43: =E43*F43 -> 24 | H43: 1.00 | I43: =ROUND((G43*H43),0) -> 24 | J43: ='12 Est Prof Wage Rate'!$G$35 -> $75.00 | K43: =IF((J43*I43)="","",(J43*I43)) -> $1,800

Sheet 12 Not Inc in BH WWPPG
A1: ='12 BH Collection WWLG'!A1 -> RURAL UTILITIES SERVICE
A2: ='12 BH Collection WWLG'!A2 -> WATER AND WASTE LOAN AND GRANT PROGRAM
A3: ='12 BH Collection WWPPG'!A3 -> PREDEVELOPMENT PLANNING GRANTS (PPG)
A4: ='12 BH Collection WWLG'!A3 -> INFORMATION COLLECTION BURDEN HOURS
A5: ='12 BH Collection WWLG'!A4 -> OMB # 0572 - 0121
A6: ='12 BH Collection WWLG'!A5 -> 2024-11-18
A8: Estimated No. of Total Respondents (Applicants) | C8: ='12 BH Collection WWPPG'!C8 -> 27 | J8: Estimated No. of Total Awards (Awardees) | K8: ='12 BH Collection WWPPG'!K8 -> 24
A9: Average hours per response | C9: =I10/G10 -> 1.805 | J9: Number of responses per respondent | K9: =G10/C8 -> 11.59
A10: Gray Columns have automatic formulas. DO NOT input numbers in these columns. | F10: TOTAL | G10: =SUM(G14:G25) -> 313 | I10: =SUM(I14:I25) -> 565 | K10: =SUM(K14:K25) -> $42,375
A11: (A) | B11: (B) | C11: (C) | D11: (D) | E11: (E) | F11: (F) | G11: (G) | H11: (H) | I11: (I) | J11: (J) | K11: (K)
A12: Regulation Reference | B12: Title | C12: Form No. (If Any) | D12: % of Respondents Line Item is Applicable To | E12: Estimated # of Respondents | F12: Reports Filed Annually | G12: Total Responses (E) x (F) | H12: Estimated # of Hours Per Response | I12: Estimated Total Hours (G) x (H) | J12: Prof. Wage Rate | K12: Total Cost (I) x (J)
A13: APPLICATION/ELGIBILITY
A14: 1780.33(a) | B14: Application for Federal Assistance- Initial Application | C14: SF 424 (4040-0004) | D14: 100% | E14: =ROUND((D14*$C$8),0) -> 27 | F14: 2 | G14: =E14*F14 -> 54 | H14: 1.00 | I14: =ROUND((G14*H14),0) -> 54 | J14: ='12 Est Prof Wage Rate'!$G$35 -> $75.00 | K14: =IF((J14*I14)="","",(J14*I14)) -> $4,050
A15: 1780.33(a) | B15: Budget Information--Non-Construction Programs | C15: SF-424A (4040-0006) | D15: 100% | E15: =ROUND((D15*$C$8),0) -> 27 | F15: 2 | G15: =E15*F15 -> 54 | H15: 1.00 | I15: =ROUND((G15*H15),0) -> 54 | J15: ='12 Est Prof Wage Rate'!$G$35 -> $75.00 | K15: =IF((J15*I15)="","",(J15*I15)) -> $4,050
A16: 1780.33(h)(1) | B16: Operating Budget | C16: RD 442-7 (0575-0015) | D16: 100% | E16: 27 | F16: 1 | G16: 27 | H16: 5.00 | I16: 135 | J16: ='12 Est Prof Wage Rate'!$G$35 -> $75.00 | K16: $10,125
A17: 1780.33(h)(3) | B17: Equal Opportunity Agreement | C17: RD 400-1 (0575-0201) | D17: 100% | E17: 27 | F17: 1 | G17: 27 | H17: =10/60 -> 0.17 | I17: 5 | J17: ='12 Est Prof Wage Rate'!$G$35 -> $75.00 | K17: $375
A18: 1780.33(h)(4) | B18: Assurance Agreement | C18: RD 400-4 (0575-0201) | D18: 100% | E18: 27 | F18: 1 | G18: 27 | H18: 0.25 | I18: 7 | J18: ='12 Est Prof Wage Rate'!$G$35 -> $75.00 | K18: $525
A19: 1780.39(f) | B19: Resolution of Members or Stockholders | C19: RD 1942-8 (0575-0015) | D19: 15% | E19: 4 | F19: 1 | G19: =E19*F19 -> 4 | H19: 1.00 | I19: 4 | J19: ='12 Est Prof Wage Rate'!$G$35 -> $75.00 | K19: =IF((J19*I19)="","",(J19*I19)) -> $300
A20: APPROVAL ACTIONS FOLLOWING OBLIGATION (USES OBLIGATION DATA)
A21: 1780.41(a)(3) | B21: Balance Sheet or Financial Statement | C21: RD 442-3 (0572-0137; 0575-0015, 0200) | D21: 100% | E21: =ROUND((D21*$K$8),0) -> 24 | F21: 1 | G21: =E21*F21 -> 24 | H21: 1.00 | I21: =ROUND((G21*H21),0) -> 24 | J21: ='12 Est Prof Wage Rate'!$G$35 -> $75.00 | K21: =IF((J21*I21)="","",(J21*I21)) -> $1,800
A22: 1780.41(a)(6) | B22: Letter of Intent to Meet Conditions | C22: RD 1942-46 (0572-0137; 0575-0015; 0570-0021, 0061, 0062) | D22: 100% | E22: =ROUND((D22*$K$8),0) -> 24 | F22: 1 | G22: =E22*F22 -> 24 | H22: 1.00 | I22: 24 | J22: ='12 Est Prof Wage Rate'!$G$35 -> $75.00 | K22: =IF((J22*I22)="","",(J22*I22)) -> $1,800
A23: 1780.41(a)(7) | B23: Request for Obligation of Funds | C23: RD 1940-1 (0570-0062, 0067) | D23: 100% | E23: 24 | F23: 1 | G23: =E23*F23 -> 24 | H23: 0.25 | I23: 6 | J23: ='12 Est Prof Wage Rate'!$G$35 -> $75.00 | K23: =IF((J23*I23)="","",(J23*I23)) -> $450
A24: 1780.44(c) | B24: Initial Compliance Review | C24: RD 400-8 (0570-0062; 0575-0018, 0189) | D24: 100% | E24: 24 | F24: 1 | G24: =E24*F24 -> 24 | H24: 8.00 | I24: 192 | J24: ='12 Est Prof Wage Rate'!$G$35 -> $75.00 | K24: =IF((J24*I24)="","",(J24*I24)) -> $14,400
A25: 1780.47(f)(2) | B25: Statement of Budget, Income, and Equity | C25: RD 442-2 (0572-0137; 0575-0015, 0200) | D25: 100% | E25: 24 | F25: 1 | G25: =E25*F25 -> 24 | H25: 2.50 | I25: 60 | J25: ='12 Est Prof Wage Rate'!$G$35 -> $75.00 | K25: =IF((J25*I25)="","",(J25*I25)) -> $4,500
A26: ACTIONS DURING CONSTRUCTION (USES CONSTRUCTION DATA)

Sheet 12 BH Collection Colonias
A1: ='12 BH Collection WWLG'!A1 -> RURAL UTILITIES SERVICE
A2: ='12 BH Collection WWLG'!A2 -> WATER AND WASTE LOAN AND GRANT PROGRAM
A3: ALLEVIATE HEALTH RISKS FOR COLONIAS
A4: ='12 BH Collection WWLG'!A3 -> INFORMATION COLLECTION BURDEN HOURS
A5: ='12 BH Collection WWLG'!A4 -> OMB # 0572 - 0121
A6: ='12 BH Collection WWLG'!A5 -> 2024-11-18
A8: Estimated No. of Total Respondents (Applicants) | C8: 9 | J8: Estimated No. of Total Awards (Awardees) | K8: 9
A9: Average hours per response | C9: =I10/G10 -> 3.180 | J9: Number of responses per respondent | K9: =G10/C8 -> 66.22
A10: Gray Columns have automatic formulas. DO NOT input numbers in these columns. | F10: TOTAL | G10: =SUM(G14:G84) -> 596 | I10: =SUM(I14:I84) -> 1,895 | K10: =SUM(K14:K84) -> $142,125
A11: (A) | B11: (B) | C11: (C) | D11: (D) | E11: (E) | F11: (F) | G11: (G) | H11: (H) | I11: (I) | J11: (J) | K11: (K)
A12: Regulation Reference | B12: Title | C12: Form No. (If Any) | D12: % of Respondents Line Item is Applicable To | E12: Estimated # of Respondents | F12: Reports Filed Annually | G12: Total Responses (E) x (F) | H12: Estimated # of Hours Per Response | I12: Estimated Total Hours (G) x (H) | J12: Prof. Wage Rate | K12: Total Cost (I) x (J)
A13: APPLICATION/ELGIBILITY
A14: 1780.1(d) | B14: Documentation of Income Survey | C14: Written | D14: 10% | E14: =ROUND((D14*$C$8),0) -> 1 | F14: 1 | G14: =E14*F14 -> 1 | H14: 8.00 | I14: =ROUND((G14*H14),0) -> 8 | J14: ='12 Est Prof Wage Rate'!$G$35 -> $75.00 | K14: =IF((J14*I14)="","",(J14*I14)) -> $600
A15: 1780.1(f) | B15: Relationship or association ith RUS employees | C15: Written | D15: 100% | E15: =ROUND((D15*$C$8),0) -> 9 | F15: 1 | G15: =E15*F15 -> 9 | H15: 0.25 | I15: =ROUND((G15*H15),0) -> 2 | J15: ='12 Est Prof Wage Rate'!$G$35 -> $75.00 | K15: $150
A16: 1780.1(h) | B16: Evidence proposed facility will be consistent with development plans | C16: Written | D16: 100% | E16: 9 | F16: 1 | G16: 9 | H16: 1.00 | I16: 9 | J16: ='12 Est Prof Wage Rate'!$G$35 -> $75.00 | K16: $675
A17: 1780.7(d) & 1780.33(d) | B17: Statement of availability to obtain credit elsewhere | C17: Written | D17: 100% | E17: 9 | F17: 1 | G17: 9 | H17: 1.00 | I17: 9 | J17: ='12 Est Prof Wage Rate'!$G$35 -> $75.00 | K17: $675
A18: 1780.7(g) | B18: Evidence No Outstanding Judgement Obtained | C18: Written | D18: 100% | E18: 9 | F18: 1 | G18: 9 | H18: 0.25 | I18: 2 | J18: ='12 Est Prof Wage Rate'!$G$35 -> $75.00 | K18: $150
A19: 1780.9(g)(2) | B19: Agreement between Applicant and Individual Users for Water or Sewer service provided through individual installations or small clusters of users within an Applicant's service area | C19: Written | D19: 10% | E19: 1 | F19: 1 | G19: 1 | H19: 1.00 | I19: 1 | J19: ='12 Est Prof Wage Rate'!$G$35 -> $75.00 | K19: $75
A20: 1780.11(a)(2) | B20: Notification of service statement | C20: Written | D20: 15% | E20: 1 | F20: 1 | G20: 1 | H20: 1.00 | I20: 1 | J20: ='12 Est Prof Wage Rate'!$G$35 -> $75.00 | K20: $75
A21: 1780.19 | B21: Evidence of Public Notice of Intent | C21: Written | D21: 100% | E21: 9 | F21: 1 | G21: 9 | H21: 2.00 | I21: 18 | J21: ='12 Est Prof Wage Rate'!$G$35 -> $75.00 | K21: $1,350
A22: 1780.33(b) | B22: Intergovernmental comments | C22: Written | D22: 100% | E22: 9 | F22: 1 | G22: 9 | H22: 1.00 | I22: 9 | J22: ='12 Est Prof Wage Rate'!$G$35 -> $75.00 | K22: $675
A23: 1780.33(c) | B23: Preliminary engineering report | C23: Written | D23: 100% | E23: 9 | F23: 1 | G23: 9 | H23: 40.00 | I23: 360 | J23: ='12 Est Prof Wage Rate'!$G$35 -> $75.00 | K23: $27,000
A24: 1780.33(e) | B24: Supporting documentation | C24: Written | D24: 100% | E24: 9 | F24: 1 | G24: 9 | H24: 4.00 | I24: 36 | J24: ='12 Est Prof Wage Rate'!$G$35 -> $75.00 | K24: $2,700
A25: 1780.33(f) | B25: Environmental Documentation - Categorical exclusion without report | C25: Written | D25: 30% | E25: 3 | F25: 1 | G25: 3 | H25: 1.00 | I25: 3 | J25: ='12 Est Prof Wage Rate'!$G$35 -> $75.00 | K25: $225
A26: 1780.33(f) | B26: Environmental Documentation - Categorical exclusion with report | C26: Written | D26: 60% | E26: 5 | F26: 1 | G26: 5 | H26: 20.00 | I26: 100 | J26: ='12 Est Prof Wage Rate'!$G$35 -> $75.00 | K26: $7,500
A27: 1780.33(f) | B27: Environmental Documentation - Environmental Assessment | C27: Written | D27: 10% | E27: 1 | F27: 1 | G27: 1 | H27: 50.00 | I27: 50 | J27: ='12 Est Prof Wage Rate'!$G$35 -> $75.00 | K27: $3,750
A28: 1780.33(f) | B28: Environmental Documentation - Environmental Impact Statement | C28: Written | D28: 0% | E28: 0 | F28: 1 | G28: 0 | H28: 150.00 | I28: 0 | J28: ='12 Est Prof Wage Rate'!$G$35 -> $75.00 | K28: $0
A29: 1780.33(h)(7) | B29: Certification for Contracts, Grants, and Loans (Regarding Lobbying) | C29: Written | D29: 100% | E29: 9 | F29: 1 | G29: 9 | H29: 0.25 | I29: 2 | J29: ='12 Est Prof Wage Rate'!$G$35 -> $75.00 | K29: $150
A30: 1780.33(h)(8) | B30: Certification on Tying Arrangements | C30: Written | D30: 100% | E30: 9 | F30: 1 | G30: 9 | H30: 0.25 | I30: 2 | J30: ='12 Est Prof Wage Rate'!$G$35 -> $75.00 | K30: $150
A31: 1780.39(b)(1) | B31: Agreement for Engineering Services - Agency standard - EJCDC E-500 | C31: Written | D31: 80% | E31: 7 | F31: 1 | G31: 7 | H31: 8.00 | I31: 56 | J31: ='12 Est Prof Wage Rate'!$G$35 -> $75.00 | K31: =IF((J31*I31)="","",(J31*I31)) -> $4,200
A32: 1780.39(b)(1) | B32: Agreement for Engineering Services - Agency standard - EJCDC E-520 | C32: Written | D32: 20% | E32: 2 | F32: 1 | G32: 2 | H32: 6.00 | I32: 12 | J32: ='12 Est Prof Wage Rate'!$G$35 -> $75.00 | K32: =IF((J32*I32)="","",(J32*I32)) -> $900
A33: 1780.39(b)(1) | B33: Agreement for Engineering Services - Agency standard - EJCDC E-525 | C33: Written | D33: 0% | E33: 0 | F33: 1 | G33: 0 | H33: 6.00 | I33: 0 | J33: ='12 Est Prof Wage Rate'!$G$35 -> $75.00 | K33: $0
A34: 1780.39(b)(1) | B34: Agreement for Engineering and/or Architectural Services - Agency non-standard | C34: Written | D34: 0% | E34: 0 | F34: 1 | G34: 0 | H34: 6.00 | I34: 0 | J34: ='12 Est Prof Wage Rate'!$G$35 -> $75.00 | K34: $0
A35: 1780.39(b)(2) | B35: Agreements for Legal Services | C35: Written | D35: 100% | E35: 9 | F35: 1 | G35: 9 | H35: 6.00 | I35: 54 | J35: ='12 Est Prof Wage Rate'!$G$35 -> $75.00 | K35: $4,050
A36: 1780.39(b)(2) | B36: Agreements for Other Professional Services | C36: Written | D36: 100% | E36: 9 | F36: 1 | G36: 9 | H36: 6.00 | I36: 54 | J36: ='12 Est Prof Wage Rate'!$G$35 -> $75.00 | K36: $4,050
A37: 1780.39(b)(4) | B37: Contracts for other services | C37: Written | D37: 25% | E37: 2 | F37: 1 | G37: 2 | H37: 2.00 | I37: 4 | J37: ='12 Est Prof Wage Rate'!$G$35 -> $75.00 | K37: $300
A38: 1780.39(c)(3) | B38: User Agreement - Water | C38: Written | D38: 10% | E38: 1 | F38: 1 | G38: 1 | H38: 4.00 | I38: 4 | J38: ='12 Est Prof Wage Rate'!$G$35 -> $75.00 | K38: $300
A39: 1780.39(c)(3) | B39: User Agreement - Sewer | C39: Written | D39: 10% | E39: 1 | F39: 1 | G39: 1 | H39: 4.00 | I39: 4 | J39: ='12 Est Prof Wage Rate'!$G$35 -> $75.00 | K39: $300
A40: 1780.39(c)(5)(i) | B40: Positive programs to encourage connections | C40: Written | D40: 20% | E40: 2 | F40: 1 | G40: 2 | H40: 4.00 | I40: 8 | J40: ='12 Est Prof Wage Rate'!$G$35 -> $75.00 | K40: $600
A41: 1780.39(g)(3) | B41: Fidelity or employee dishonesty Bond | C41: Written | D41: 100% | E41: 9 | F41: 1 | G41: 9 | H41: 2.00 | I41: 18 | J41: ='12 Est Prof Wage Rate'!$G$35 -> $75.00 | K41: $1,350
A42: 1780.39(g)(4) | B42: Property insurance | C42: Written | D42: 100% | E42: 9 | F42: 1 | G42: 9 | H42: 1.00 | I42: 9 | J42: ='12 Est Prof Wage Rate'!$G$35 -> $75.00 | K42: $675
A43: 1780.39(g)(5) | B43: General Liability Insurance | C43: Written | D43: 100% | E43: 9 | F43: 1 | G43: 9 | H43: 1.00 | I43: 9 | J43: ='12 Est Prof Wage Rate'!$G$35 -> $75.00 | K43: $675
A44: 1780.39(g)(6) | B44: Flood Insurance | C44: Written | D44: 20% | E44: 2 | F44: 1 | G44: 2 | H44: 1.00 | I44: 2 | J44: ='12 Est Prof Wage Rate'!$G$35 -> $75.00 | K44: $150
A45: 1780.39(g)(7) | B45: Workman's compensation insurance | C45: Written | D45: 100% | E45: 9 | F45: 1 | G45: 9 | H45: 1.00 | I45: 9 | J45: ='12 Est Prof Wage Rate'!$G$35 -> $75.00 | K45: $675
B46: SAM Registration | C46: SAM.gov | D46: 100% | E46: 9 | F46: 1 | G46: 9 | H46: 2.00 | I46: 18 | J46: ='12 Est Prof Wage Rate'!$G$35 -> $75.00 | K46: $1,350
A47: APPROVAL/ACTIONS FOLLOWING OBLIGATION (USES OBLIGATION DATA)
A48: 1780.41(a)(5) | B48: Letter of Conditions | C48: Written | D48: 100% | E48: =ROUND((D48*$K$8),0) -> 9 | F48: 1 | G48: =E48*F48 -> 9 | H48: 1.00 | I48: 9 | J48: ='12 Est Prof Wage Rate'!$G$35 -> $75.00 | K48: =IF((J48*I48)="","",(J48*I48)) -> $675
A49: 1780.44(b) | B49: Verification of Applicant Contribution | C49: Written | D49: 100% | E49: =ROUND((D49*$K$8),0) -> 9 | F49: 1 | G49: =E49*F49 -> 9 | H49: 1.00 | I49: 9 | J49: ='12 Est Prof Wage Rate'!$G$35 -> $75.00 | K49: $675
A50: 1780.44(f) | B50: Evidence of other funds | C50: Written | D50: 100% | E50: 9 | F50: 1 | G50: 9 | H50: 1.00 | I50: 9 | J50: ='12 Est Prof Wage Rate'!$G$35 -> $75.00 | K50: $675
A51: 1780.44(g)(1)(ii) | B51: User Connections | C51: Written | D51: 15% | E51: 1 | F51: 1 | G51: 1 | H51: 4.00 | I51: 4 | J51: ='12 Est Prof Wage Rate'!$G$35 -> $75.00 | K51: $300
A52: 1780.44(g)(3) | B52: Water rights | C52: Written | D52: 15% | E52: 1 | F52: 1 | G52: 1 | H52: 4.00 | I52: 4 | J52: ='12 Est Prof Wage Rate'!$G$35 -> $75.00 | K52: $300
A53: 1780.44(g)(4) | B53: Lease agreement | C53: Written | D53: 15% | E53: 1 | F53: 1 | G53: 1 | H53: 4.00 | I53: 4 | J53: ='12 Est Prof Wage Rate'!$G$35 -> $75.00 | K53: $300
A54: 1780.45(c) | B54: Water and Waste System Grant Agreement | C54: Written | D54: 100% | E54: 9 | F54: 1 | G54: 9 | H54: 1.00 | I54: 9 | J54: ='12 Est Prof Wage Rate'!$G$35 -> $75.00 | K54: $675
A55: 1780.47(d) & (e ) | B55: Audits and Year-End Financial Reports | C55: Written | D55: 100% | E55: 9 | F55: 1 | G55: 9 | H55: 8.00 | I55: 72 | J55: ='12 Est Prof Wage Rate'!$G$35 -> $75.00 | K55: $5,400
A56: 1780.47(f)(1) | B56: Management report- Quarterly Report | C56: Written | D56: 25% | E56: 2 | F56: 4 | G56: 8 | H56: 4.00 | I56: 32 | J56: ='12 Est Prof Wage Rate'!$G$35 -> $75.00 | K56: $2,400
A57: 1780.57 (g) and (h) | B57: Evidence of Conformity with Drinking Water and Water Pollution Control Standards | C57: Written | D57: 100% | E57: 9 | F57: 1 | G57: 9 | H57: 1.00 | I57: 9 | J57: ='12 Est Prof Wage Rate'!$G$35 -> $75.00 | K57: $675
A58: 1780.57(m) | B58: Exception for Metering Devices | C58: Written | D58: 10% | E58: 1 | F58: 1 | G58: 1 | H58: 2.00 | I58: 2 | J58: ='12 Est Prof Wage Rate'!$G$35 -> $75.00 | K58: $150
A59: 1780.63 | B59: Sewage Treatment Contract(s) | C59: Written | D59: 10% | E59: 1 | F59: 1 | G59: 1 | H59: 8.00 | I59: 8 | J59: ='12 Est Prof Wage Rate'!$G$35 -> $75.00 | K59: $600
B60: American Iron and Steel (AIS) Requirement Prior to Construction | C60: Written | D60: 100% | E60: 9 | F60: 1 | G60: 9 | H60: 8.00 | I60: 72 | J60: ='12 Est Prof Wage Rate'!$G$35 -> $75.00 | K60: $5,400
B61: Build America, Buy America Act (BABAA) Requirement Prior to Construction | C61: Written | D61: 100% | E61: 9 | F61: 1 | G61: 9 | H61: 16.00 | I61: 144 | J61: ='12 Est Prof Wage Rate'!$G$35 -> $75.00 | K61: $10,800
A62: ACTIONS DURING CONSTRUCTION (USES CONSTRUCTION DATA)
A63: 1780.57 | B63: Final operating permit(s) for the entire project components | C63: Written | D63: 100% | E63: 9 | F63: 1 | G63: =E63*F63 -> 9 | H63: 2.00 | I63: 18 | J63: ='12 Est Prof Wage Rate'!$G$35 -> $75.00 | K63: =IF((J63*I63)="","",(J63*I63)) -> $1,350
A64: 1780.61(a) | B64: Construction contract documents - EJCDC C-Series | C64: Written | D64: 65% | E64: 6 | F64: 1 | G64: =E64*F64 -> 6 | H64: 8.00 | I64: 48 | J64: ='12 Est Prof Wage Rate'!$G$35 -> $75.00 | K64: $3,600
A65: 1780.61(a) | B65: Construction contract document - EJCDC C-522 for small projects | C65: Written | D65: 25% | E65: 2 | F65: 1 | G65: 2 | H65: 6.00 | I65: 12 | J65: ='12 Est Prof Wage Rate'!$G$35 -> $75.00 | K65: $900
A66: 1780.61(b) | B66: Certificate of Owner's Engineers Certifications | C66: Written | D66: 100% | E66: 9 | F66: 1 | G66: 9 | H66: 1.00 | I66: 9 | J66: ='12 Est Prof Wage Rate'!$G$35 -> $75.00 | K66: $675
A67: 1780.61(b) | B67: Certificate of Owner's Attorney Concurrence | C67: Written | D67: 100% | E67: 9 | F67: 1 | G67: 9 | H67: 8.00 | I67: 72 | J67: ='12 Est Prof Wage Rate'!$G$35 -> $75.00 | K67: $5,400
A68: 1780.70 | B68: Owner's Solicitation and Review of Offers - Competitive Sealed Bids | C68: Written | D68: 55% | E68: 5 | F68: 1 | G68: 5 | H68: 10.00 | I68: 50 | J68: ='12 Est Prof Wage Rate'!$G$35 -> $75.00 | K68: $3,750
A69: 1780.70 | B69: Owner's Solicitation and Review of Offers - Noncompetitive proposals | C69: Written | D69: 10% | E69: 1 | F69: 1 | G69: 1 | H69: 10.00 | I69: 10 | J69: ='12 Est Prof Wage Rate'!$G$35 -> $75.00 | K69: $750
A70: 1780.70 | B70: Owner's Solicitation and Review of Offers - Alternative Delivery Methods | C70: Written | D70: 0% | E70: 0 | F70: 1 | G70: 0 | H70: 10.00 | I70: 0 | J70: ='12 Est Prof Wage Rate'!$G$35 -> $75.00 | K70: $0
A71: 1780.70 | B71: Owner's Solicitation and Review of Offers - Small Projects | C71: Written | D71: 25% | E71: 2 | F71: 1 | G71: 2 | H71: 8.00 | I71: 16 | J71: ='12 Est Prof Wage Rate'!$G$35 -> $75.00 | K71: $1,200
A72: 1780.70 | B72: Owner's Solicitation and Review of Offers - Micro Purchases | C72: Written | D72: 10% | E72: 1 | F72: 1 | G72: 1 | H72: 4.00 | I72: 4 | J72: ='12 Est Prof Wage Rate'!$G$35 -> $75.00 | K72: $300
A73: 1780.74 | B73: Contracts awarded prior to application | C73: Written | D73: 10% | E73: 1 | F73: 1 | G73: 1 | H73: 2.00 | I73: 2 | J73: ='12 Est Prof Wage Rate'!$G$35 -> $75.00 | K73: $150
A74: 1780.76(a) | B74: Pre-Construction Conference | C74: Written | D74: 100% | E74: 9 | F74: 1 | G74: 9 | H74: 4.00 | I74: 36 | J74: ='12 Est Prof Wage Rate'!$G$35 -> $75.00 | K74: $2,700
A75: 1780.76(b) | B75: Monitoring Construction- Owner's Report | C75: Written | D75: 100% | E75: 9 | F75: 12 | G75: 108 | H75: 2.00 | I75: 216 | J75: ='12 Est Prof Wage Rate'!$G$35 -> $75.00 | K75: $16,200
A76: 1780.76(c) | B76: Resident inspector resume | C76: Written | D76: 100% | E76: 9 | F76: 1 | G76: 9 | H76: 1.00 | I76: 9 | J76: ='12 Est Prof Wage Rate'!$G$35 -> $75.00 | K76: $675
A77: 1780.76(d) | B77: Daily inspection report | C77: Written | D77: 100% | E77: 9 | F77: 12 | G77: 108 | H77: 0.50 | I77: 54 | J77: ='12 Est Prof Wage Rate'!$G$35 -> $75.00 | K77: $4,050
B78: Evidence that as built plans have been delivered to Owner | C78: Written | D78: 100% | E78: 9 | F78: 1 | G78: 9 | H78: 1.00 | I78: 9 | J78: ='12 Est Prof Wage Rate'!$G$35 -> $75.00 | K78: $675
B79: Domestic Preference De Minimis List | C79: Written | D79: 50% | E79: 5 | F79: 1 | G79: 5 | H79: 3.00 | I79: =ROUND((G79*H79),0) -> 15 | J79: ='12 Est Prof Wage Rate'!$G$35 -> $75.00 | K79: $1,125
B80: Contractor's Certification of Compliance for AIS and/or BABAA | C80: Written | D80: 100% | E80: 9 | F80: 1 | G80: 9 | H80: 0.50 | I80: 5 | J80: ='12 Est Prof Wage Rate'!$G$35 -> $75.00 | K80: $375
B81: Manufacturer's Certification of Compliance | C81: Written | D81: 100% | E81: 9 | F81: 1 | G81: 9 | H81: 0.50 | I81: 5 | J81: ='12 Est Prof Wage Rate'!$G$35 -> $75.00 | K81: $375
B82: AIS and BABAA Requirements during/post construction | C82: Written | D82: 100% | E82: 9 | F82: 1 | G82: 9 | H82: 4.00 | I82: 36 | J82: ='12 Est Prof Wage Rate'!$G$35 -> $75.00 | K82: $2,700
A83: RECORDKEEPING
A84: 1780.47(c) | B84: Borrower shall maintain accounting records for 3 years | C84: Written | D84: 100% | E84: 9 | F84: 1 | G84: =E84*F84 -> 9 | H84: 1.00 | I84: 9 | J84: ='12 Est Prof Wage Rate'!$G$35 -> $75.00 | K84: =IF((J84*I84)="","",(J84*I84)) -> $675

Sheet 12 Not Inc in BH Colonias
A1: ='12 BH Collection WWLG'!A1 -> RURAL UTILITIES SERVICE
A2: ='12 BH Collection WWLG'!A2 -> WATER AND WASTE LOAN AND GRANT PROGRAM
A3: ='12 BH Collection Colonias'!A3 -> ALLEVIATE HEALTH RISKS FOR COLONIAS
A4: ='12 BH Collection WWLG'!A3 -> INFORMATION COLLECTION BURDEN HOURS
A5: ='12 BH Collection WWLG'!A4 -> OMB # 0572 - 0121
A6: ='12 BH Collection WWLG'!A5 -> 2024-11-18
A8: Estimated No. of Total Respondents (Applicants) | C8: ='12 BH Collection Colonias'!C8 -> 9 | J8: Estimated No. of Total Awards (Awardees) | K8: ='12 BH Collection Colonias'!K8 -> 9
A9: Average hours per response | C9: =I10/G10 -> 0.791 | J9: Number of responses per respondent | K9: =G10/C8 -> 45.22
A10: Gray Columns have automatic formulas. DO NOT input numbers in these columns. | F10: TOTAL | G10: =SUM(G14:G36) -> 407 | I10: =SUM(I14:I36) -> 322 | K10: =SUM(K14:K36) -> $24,150
A11: (A) | B11: (B) | C11: (C) | D11: (D) | E11: (E) | F11: (F) | G11: (G) | H11: (H) | I11: (I) | J11: (J) | K11: (K)
A12: Regulation Reference | B12: Title | C12: Form No. (If Any) | D12: % of Respondents Line Item is Applicable To | E12: Estimated # of Respondents | F12: Reports Filed Annually | G12: Total Responses (E) x (F) | H12: Estimated # of Hours Per Response | I12: Estimated Total Hours (G) x (H) | J12: Prof. Wage Rate | K12: Total Cost (I) x (J)
A13: APPLICATION/ELGIBILITY
A14: 1780.33(a) | B14: Application for Federal Assistance- Initial Application | C14: SF 424 (4040-0004) | D14: 100% | E14: =ROUND((D14*$C$8),0) -> 9 | F14: 2 | G14: =E14*F14 -> 18 | H14: 1.00 | I14: =ROUND((G14*H14),0) -> 18 | J14: ='12 Est Prof Wage Rate'!$G$35 -> $75.00 | K14: =IF((J14*I14)="","",(J14*I14)) -> $1,350
A15: 1780.33(a) | B15: Budget Information--Construction Programs | C15: SF-424C (4040-0008) | D15: 100% | E15: =ROUND((D15*$C$8),0) -> 9 | F15: 2 | G15: =E15*F15 -> 18 | H15: 1.00 | I15: =ROUND((G15*H15),0) -> 18 | J15: ='12 Est Prof Wage Rate'!$G$35 -> $75.00 | K15: =IF((J15*I15)="","",(J15*I15)) -> $1,350
A16: 1780.33(h)(1) | B16: Operating Budget | C16: RD 442-7 (0575-0015) | D16: 100% | E16: 9 | F16: 1 | G16: 9 | H16: 5.00 | I16: 45 | J16: ='12 Est Prof Wage Rate'!$G$35 -> $75.00 | K16: $3,375
A17: 1780.33(h)(3) | B17: Equal Opportunity Agreement | C17: RD 400-1 (0575-0201) | D17: 100% | E17: 9 | F17: 1 | G17: 9 | H17: =10/60 -> 0.17 | I17: 2 | J17: ='12 Est Prof Wage Rate'!$G$35 -> $75.00 | K17: $150
A18: 1780.33(h)(4) | B18: Assurance Agreement | C18: RD 400-4 (0575-0201) | D18: 100% | E18: 9 | F18: 1 | G18: 9 | H18: 0.25 | I18: 2 | J18: ='12 Est Prof Wage Rate'!$G$35 -> $75.00 | K18: $150
A19: 1780.39(f) | B19: Resolution of Members or Stockholders | C19: RD 1942-8 (0575-0015) | D19: 10% | E19: 1 | F19: 1 | G19: =E19*F19 -> 1 | H19: 1.00 | I19: 1 | J19: ='12 Est Prof Wage Rate'!$G$35 -> $75.00 | K19: =IF((J19*I19)="","",(J19*I19)) -> $75
A20: APPROVAL ACTIONS FOLLOWING OBLIGATION (USES OBLIGATION DATA)
A21: 1780.41(a)(3) | B21: Balance Sheet or Financial Statement | C21: RD 442-3 (0572-0137; 0575-0015, 0200) | D21: 100% | E21: =ROUND((D21*$K$8),0) -> 9 | F21: 1 | G21: =E21*F21 -> 9 | H21: 1.00 | I21: 9 | J21: ='12 Est Prof Wage Rate'!$G$35 -> $75.00 | K21: =IF((J21*I21)="","",(J21*I21)) -> $675
A22: 1780.41(a)(6) | B22: Letter of Intent to Meet Conditions | C22: RD 1942-46 (0572-0137; 0575-0015; 0570-0021, 0061, 0062) | D22: 100% | E22: =ROUND((D22*$K$8),0) -> 9 | F22: 1 | G22: =E22*F22 -> 9 | H22: 1.00 | I22: 9 | J22: ='12 Est Prof Wage Rate'!$G$35 -> $75.00 | K22: =IF((J22*I22)="","",(J22*I22)) -> $675
A23: 1780.41(a)(7) | B23: Request for Obligation of Funds | C23: RD 1940-1 (0570-0062, 0067) | D23: 100% | E23: 9 | F23: 1 | G23: =E23*F23 -> 9 | H23: 0.25 | I23: 2 | J23: ='12 Est Prof Wage Rate'!$G$35 -> $75.00 | K23: =IF((J23*I23)="","",(J23*I23)) -> $150
A24: 1780.44(c) | B24: Initial Compliance Review | C24: RD 400-8 (0570-0062; 0575-0018, 0189) | D24: 100% | E24: 9 | F24: 1 | G24: =E24*F24 -> 9 | H24: 8.00 | I24: 72 | J24: ='12 Est Prof Wage Rate'!$G$35 -> $75.00 | K24: =IF((J24*I24)="","",(J24*I24)) -> $5,400
A25: 1780.44(g)(1)(i) | B25: Opinion of Counsel Relative to Right-of-Way and Easements | C25: RD 442-22 (0575-0015) | D25: 100% | E25: 9 | F25: 1 | G25: =E25*F25 -> 9 | H25: 1.00 | I25: 9 | J25: ='12 Est Prof Wage Rate'!$G$35 -> $75.00 | K25: =IF((J25*I25)="","",(J25*I25)) -> $675
A26: 1780.44(g)(2) | B26: Preliminary Title Opinion | C26: RD 1927-9 (0575-0147, 0189) | D26: 100% | E26: 9 | F26: 1 | G26: =E26*F26 -> 9 | H26: 1.50 | I26: 14 | J26: ='12 Est Prof Wage Rate'!$G$35 -> $75.00 | K26: =IF((J26*I26)="","",(J26*I26)) -> $1,050
A27: 1780.44(g)(2) | B27: Final Title Opinion | C27: RD 1927-10 (0575-0147, 0189) | D27: 100% | E27: 9 | F27: 1 | G27: 9 | H27: =20/60 -> 0.33 | I27: 3 | J27: ='12 Est Prof Wage Rate'!$G$35 -> $75.00 | K27: $225
A28: 1780.47(f)(2) | B28: Statement of Budget, Income, and Equity | C28: RD 442-2 (0572-0137; 0575-0015, 0200) | D28: 100% | E28: 9 | F28: 1 | G28: 9 | H28: 2.50 | I28: 23 | J28: ='12 Est Prof Wage Rate'!$G$35 -> $75.00 | K28: $1,725
A29: 1780.62 & 63 | B29: Water Purchase Contract | C29: RD 442-30 (0575-0015) | D29: 10% | E29: 1 | F29: 1 | G29: 1 | H29: 1.00 | I29: 1 | J29: ='12 Est Prof Wage Rate'!$G$35 -> $75.00 | K29: $75
A30: ACTIONS DURING CONSTRUCTION (USES CONSTRUCTION DATA)
A31: 1780.61(a) | B31: Compliance Statement | C31: RD 400-6 (0575-0201) | D31: 100% | E31: 9 | F31: 1 | G31: =E31*F31 -> 9 | H31: =10/60 -> 0.17 | I31: 2 | J31: ='12 Est Prof Wage Rate'!$G$35 -> $75.00 | K31: =IF((J31*I31)="","",(J31*I31)) -> $150
A32: 1780.75 | B32: Contractor's Final Release and Waiver of Lien | C32: RD 1924-9 (0575-0042) | D32: 100% | E32: 9 | F32: 1 | G32: 9 | H32: 0.25 | I32: 2 | J32: ='12 Est Prof Wage Rate'!$G$35 -> $75.00 | K32: $150
A33: 1780.75 | B33: Release by Claimants | C33: RD 1924-10 (0575-0189) | D33: 100% | E33: 9 | F33: 1 | G33: 9 | H33: 0.25 | I33: 2 | J33: ='12 Est Prof Wage Rate'!$G$35 -> $75.00 | K33: $150
A34: 1780.76(e) | B34: Partial Payment Estimate | C34: RD 1924-18 (0575-0042,0189) | D34: 100% | E34: 9 | F34: 12 | G34: 108 | H34: 0.50 | I34: 54 | J34: ='12 Est Prof Wage Rate'!$G$35 -> $75.00 | K34: $4,050
A35: 1780.76(f) | B35: Inspection Report | C35: RD 1924-12 (0575-0042,0189) | D35: 100% | E35: 9 | F35: 12 | G35: 108 | H35: 0.25 | I35: 27 | J35: ='12 Est Prof Wage Rate'!$G$35 -> $75.00 | K35: $2,025
A36: 1780.76(h)(2) | B36: Contract Change Order | C36: RD 1924-7 (0575-0042) | D36: 95% | E36: 9 | F36: 3 | G36: 27 | H36: 0.25 | I36: 7 | J36: ='12 Est Prof Wage Rate'!$G$35 -> $75.00 | K36: $525

Sheet 12 BH Collection Tribal Lands
A1: ='12 BH Collection WWLG'!A1 -> RURAL UTILITIES SERVICE
A2: ='12 BH Collection WWLG'!A2 -> WATER AND WASTE LOAN AND GRANT PROGRAM
A3: ALLEVIATE HEALTH RISKS ON TRIBAL LANDS
A4: ='12 BH Collection WWLG'!A3 -> INFORMATION COLLECTION BURDEN HOURS
A5: ='12 BH Collection WWLG'!A4 -> OMB # 0572 - 0121
A6: ='12 BH Collection WWLG'!A5 -> 2024-11-18
A8: Estimated No. of Total Respondents (Applicants) | C8: 11 | J8: Estimated No. of Total Awards (Awardees) | K8: 11
A9: Average hours per response | C9: =I10/G10 -> 3.228 | J9: Number of responses per respondent | K9: =G10/C8 -> 65.73
A10: Gray Columns have automatic formulas. DO NOT input numbers in these columns. | F10: TOTAL | G10: =SUM(G14:G83) -> 723 | I10: =SUM(I14:I83) -> 2,334 | K10: =SUM(K14:K83) -> $175,050
A11: (A) | B11: (B) | C11: (C) | D11: (D) | E11: (E) | F11: (F) | G11: (G) | H11: (H) | I11: (I) | J11: (J) | K11: (K)
A12: Regulation Reference | B12: Title | C12: Form No. (If Any) | D12: % of Respondents Line Item is Applicable To | E12: Estimated # of Respondents | F12: Reports Filed Annually | G12: Total Responses (E) x (F) | H12: Estimated # of Hours Per Response | I12: Estimated Total Hours (G) x (H) | J12: Prof. Wage Rate | K12: Total Cost (I) x (J)
A13: APPLICATION/ELGIBILITY
A14: 1780.1(d) | B14: Documentation of Income Survey | C14: Written | D14: 10% | E14: =ROUND(($C$8*D14),0) -> 1 | F14: 1 | G14: =E14*F14 -> 1 | H14: 8.00 | I14: =ROUND((G14*H14),0) -> 8 | J14: ='12 Est Prof Wage Rate'!$G$35 -> $75.00 | K14: =IF((J14*I14)="","",(J14*I14)) -> $600
A15: 1780.1(f) | B15: Relationship or association ith RUS employees | C15: Written | D15: 100% | E15: =ROUND(($C$8*D15),0) -> 11 | F15: 1 | G15: =E15*F15 -> 11 | H15: 0.25 | I15: =ROUND((G15*H15),0) -> 3 | J15: ='12 Est Prof Wage Rate'!$G$35 -> $75.00 | K15: $225
A16: 1780.1(h) | B16: Evidence proposed facility will be consistent with development plans | C16: Tribal | D16: 100% | E16: 11 | F16: 1 | G16: 11 | H16: 1.00 | I16: 11 | J16: ='12 Est Prof Wage Rate'!$G$35 -> $75.00 | K16: $825
A17: 1780.7(d) & 1780.33(d) | B17: Statement of availability to obtain credit elsewhere | C17: Written | D17: 100% | E17: 11 | F17: 1 | G17: 11 | H17: 1.00 | I17: 11 | J17: ='12 Est Prof Wage Rate'!$G$35 -> $75.00 | K17: $825
A18: 1780.7(g) | B18: Evidence No Outstanding Judgement Obtained | C18: Written | D18: 100% | E18: 11 | F18: 1 | G18: 11 | H18: 0.25 | I18: 3 | J18: ='12 Est Prof Wage Rate'!$G$35 -> $75.00 | K18: $225
A19: 1780.9(g)(2) | B19: Agreement between Applicant and Individual Users for Water or Sewer service provided through individual installations or small clusters of users within an Applicant's service area | C19: Written | D19: 10% | E19: 1 | F19: 1 | G19: 1 | H19: 1.00 | I19: 1 | J19: ='12 Est Prof Wage Rate'!$G$35 -> $75.00 | K19: $75
A20: 1780.11(a)(2) | B20: Notification of service statement | C20: Written | D20: 15% | E20: 2 | F20: 1 | G20: 2 | H20: 1.00 | I20: 2 | J20: ='12 Est Prof Wage Rate'!$G$35 -> $75.00 | K20: $150
A21: 1780.19 | B21: Evidence of Public Notice of Intent | C21: Written | D21: 100% | E21: 11 | F21: 1 | G21: 11 | H21: 2.00 | I21: 22 | J21: ='12 Est Prof Wage Rate'!$G$35 -> $75.00 | K21: $1,650
A22: 1780.33(b) | B22: Intergovernmental comments | C22: Written | D22: 15% | E22: 2 | F22: 1 | G22: 2 | H22: 1.00 | I22: 2 | J22: ='12 Est Prof Wage Rate'!$G$35 -> $75.00 | K22: $150
A23: 1780.33(c) | B23: Preliminary engineering report | C23: Written | D23: 100% | E23: 11 | F23: 1 | G23: 11 | H23: 40.00 | I23: 440 | J23: ='12 Est Prof Wage Rate'!$G$35 -> $75.00 | K23: $33,000
A24: 1780.33(e) | B24: Supporting documentation | C24: Written | D24: 100% | E24: 11 | F24: 1 | G24: 11 | H24: 4.00 | I24: 44 | J24: ='12 Est Prof Wage Rate'!$G$35 -> $75.00 | K24: $3,300
A25: 1780.33(f) | B25: Environmental Documentation - Categorical exclusion without report | C25: Written | D25: 30% | E25: 3 | F25: 1 | G25: 3 | H25: 1.00 | I25: 3 | J25: ='12 Est Prof Wage Rate'!$G$35 -> $75.00 | K25: $225
A26: 1780.33(f) | B26: Environmental Documentation - Categorical exclusion with report | C26: Written | D26: 60% | E26: 7 | F26: 1 | G26: 7 | H26: 20.00 | I26: 140 | J26: ='12 Est Prof Wage Rate'!$G$35 -> $75.00 | K26: $10,500
A27: 1780.33(f) | B27: Environmental Documentation - Environmental Assessment | C27: Written | D27: 10% | E27: 1 | F27: 1 | G27: 1 | H27: 50.00 | I27: 50 | J27: ='12 Est Prof Wage Rate'!$G$35 -> $75.00 | K27: $3,750
A28: 1780.33(f) | B28: Environmental Documentation - Environmental Impact Statement | C28: Written | D28: 0% | E28: 0 | F28: 1 | G28: 0 | H28: 150.00 | I28: 0 | J28: ='12 Est Prof Wage Rate'!$G$35 -> $75.00 | K28: $0
A29: 1780.33(h)(7) | B29: Certification for Contracts, Grants, and Loans (Regarding Lobbying) | C29: Written | D29: 100% | E29: 11 | F29: 1 | G29: 11 | H29: 0.25 | I29: 3 | J29: ='12 Est Prof Wage Rate'!$G$35 -> $75.00 | K29: $225
A30: 1780.33(h)(8) | B30: Certification on Tying Arrangements | C30: Written | D30: 100% | E30: 11 | F30: 1 | G30: 11 | H30: 0.25 | I30: 3 | J30: ='12 Est Prof Wage Rate'!$G$35 -> $75.00 | K30: $225
A31: 1780.39(b)(1) | B31: Agreement for Engineering Services - Agency standard - EJCDC E-500 | C31: Written | D31: 80% | E31: 9 | F31: 1 | G31: 9 | H31: 8.00 | I31: 72 | J31: ='12 Est Prof Wage Rate'!$G$35 -> $75.00 | K31: =IF((J31*I31)="","",(J31*I31)) -> $5,400
A32: 1780.39(b)(1) | B32: Agreement for Engineering Services - Agency standard - EJCDC E-520 | C32: Written | D32: 20% | E32: 2 | F32: 1 | G32: 2 | H32: 6.00 | I32: 12 | J32: ='12 Est Prof Wage Rate'!$G$35 -> $75.00 | K32: =IF((J32*I32)="","",(J32*I32)) -> $900
A33: 1780.39(b)(1) | B33: Agreement for Engineering Services - Agency standard - EJCDC E-525 | C33: Written | D33: 0% | E33: 0 | F33: 1 | G33: 0 | H33: 6.00 | I33: 0 | J33: ='12 Est Prof Wage Rate'!$G$35 -> $75.00 | K33: $0
A34: 1780.39(b)(1) | B34: Agreement for Engineering and/or Architectural Services - Agency non-standard | C34: Written | D34: 0% | E34: 0 | F34: 1 | G34: 0 | H34: 6.00 | I34: 0 | J34: ='12 Est Prof Wage Rate'!$G$35 -> $75.00 | K34: $0
A35: 1780.39(b)(2) | B35: Agreements for Legal Services | C35: Written | D35: 100% | E35: 11 | F35: 1 | G35: 11 | H35: 6.00 | I35: 66 | J35: ='12 Est Prof Wage Rate'!$G$35 -> $75.00 | K35: $4,950
A36: 1780.39(b)(2) | B36: Agreements for Other Professional Services | C36: Written | D36: 100% | E36: 11 | F36: 1 | G36: =E36*F36 -> 11 | H36: 6.00 | I36: 66 | J36: ='12 Est Prof Wage Rate'!$G$35 -> $75.00 | K36: $4,950
A37: 1780.39(b)(4) | B37: Contracts for other services | C37: Written | D37: 25% | E37: 3 | F37: 1 | G37: 3 | H37: 2.00 | I37: 6 | J37: ='12 Est Prof Wage Rate'!$G$35 -> $75.00 | K37: $450
A38: 1780.39(c)(3) | B38: User Agreement - Water | C38: Written | D38: 10% | E38: 1 | F38: 1 | G38: 1 | H38: 4.00 | I38: 4 | J38: ='12 Est Prof Wage Rate'!$G$35 -> $75.00 | K38: $300
A39: 1780.39(c)(3) | B39: User Agreement - Sewer | C39: Written | D39: 10% | E39: 1 | F39: 1 | G39: 1 | H39: 4.00 | I39: 4 | J39: ='12 Est Prof Wage Rate'!$G$35 -> $75.00 | K39: $300
A40: 1780.39(c)(5)(i) | B40: Positive programs to encourage connections | C40: Written | D40: 20% | E40: 2 | F40: 1 | G40: 2 | H40: 4.00 | I40: 8 | J40: ='12 Est Prof Wage Rate'!$G$35 -> $75.00 | K40: $600
A41: 1780.39(g)(3) | B41: Fidelity or employee dishonesty Bond | C41: Written | D41: 100% | E41: 11 | F41: 1 | G41: 11 | H41: 2.00 | I41: 22 | J41: ='12 Est Prof Wage Rate'!$G$35 -> $75.00 | K41: $1,650
A42: 1780.39(g)(4) | B42: Property insurance | C42: Written | D42: 100% | E42: 11 | F42: 1 | G42: 11 | H42: 1.00 | I42: 11 | J42: ='12 Est Prof Wage Rate'!$G$35 -> $75.00 | K42: $825
A43: 1780.39(g)(5) | B43: General Liability Insurance | C43: Written | D43: 100% | E43: 11 | F43: 1 | G43: 11 | H43: 1.00 | I43: 11 | J43: ='12 Est Prof Wage Rate'!$G$35 -> $75.00 | K43: $825
A44: 1780.39(g)(6) | B44: Flood Insurance | C44: Written | D44: 20% | E44: 2 | F44: 1 | G44: 2 | H44: 1.00 | I44: 2 | J44: ='12 Est Prof Wage Rate'!$G$35 -> $75.00 | K44: $150
A45: 1780.39(g)(7) | B45: Workman's compensation insurance | C45: Written | D45: 100% | E45: 11 | F45: 1 | G45: 11 | H45: 1.00 | I45: 11 | J45: ='12 Est Prof Wage Rate'!$G$35 -> $75.00 | K45: $825
B46: SAM Registration | C46: Written | D46: 100% | E46: 11 | F46: 1 | G46: 11 | H46: 2.00 | I46: 22 | J46: ='12 Est Prof Wage Rate'!$G$35 -> $75.00 | K46: $1,650
A47: APPROVAL/ACTIONS FOLLOWING OBLIGATION (USES OBLIGATION DATA)
A48: 1780.41(a)(5) | B48: Letter of Conditions | C48: Written | D48: 100% | E48: =ROUND((D48*$K$8),0) -> 11 | F48: 1 | G48: 11 | H48: 1.00 | I48: 11 | J48: ='12 Est Prof Wage Rate'!$G$35 -> $75.00 | K48: =IF((J48*I48)="","",(J48*I48)) -> $825
A49: 1780.44(b) | B49: Verification of Applicant Contribution | C49: Written | D49: 100% | E49: =ROUND((D49*$K$8),0) -> 11 | F49: 1 | G49: 11 | H49: 1.00 | I49: 11 | J49: ='12 Est Prof Wage Rate'!$G$35 -> $75.00 | K49: $825
A50: 1780.44(f) | B50: Evidence of other funds | C50: Written | D50: 100% | E50: 11 | F50: 1 | G50: 11 | H50: 1.00 | I50: 11 | J50: ='12 Est Prof Wage Rate'!$G$35 -> $75.00 | K50: $825
A51: 1780.44(g)(1)(ii) | B51: User Connections | C51: Written | D51: 15% | E51: 2 | F51: 1 | G51: 2 | H51: 4.00 | I51: 8 | J51: ='12 Est Prof Wage Rate'!$G$35 -> $75.00 | K51: $600
A52: 1780.44(g)(3) | B52: Water rights | C52: Written | D52: 15% | E52: 2 | F52: 1 | G52: 2 | H52: 4.00 | I52: 8 | J52: ='12 Est Prof Wage Rate'!$G$35 -> $75.00 | K52: $600
A53: 1780.44(g)(4) | B53: Lease agreement | C53: Written | D53: 15% | E53: 2 | F53: 1 | G53: 2 | H53: 4.00 | I53: 8 | J53: ='12 Est Prof Wage Rate'!$G$35 -> $75.00 | K53: $600
A54: 1780.45(c) | B54: Water and Waste System Grant Agreement | C54: Written | D54: 100% | E54: 11 | F54: 1 | G54: 11 | H54: 1.00 | I54: 11 | J54: ='12 Est Prof Wage Rate'!$G$35 -> $75.00 | K54: $825
A55: 1780.47(d) & (e ) | B55: Audits and Year-End Financial Reports | C55: Written | D55: 100% | E55: 11 | F55: 1 | G55: 11 | H55: 8.00 | I55: 88 | J55: ='12 Est Prof Wage Rate'!$G$35 -> $75.00 | K55: $6,600
A56: 1780.47(f)(1) | B56: Management report- Quarterly Report | C56: Written | D56: 25% | E56: 3 | F56: 4 | G56: 12 | H56: 4.00 | I56: 48 | J56: ='12 Est Prof Wage Rate'!$G$35 -> $75.00 | K56: $3,600
A57: 1780.57 (g) and (h) | B57: Evidence of Conformity with Drinking Water and Water Pollution Control Standards | C57: Written | D57: 100% | E57: 11 | F57: 1 | G57: 11 | H57: 1.00 | I57: 11 | J57: ='12 Est Prof Wage Rate'!$G$35 -> $75.00 | K57: $825
A58: 1780.63 | B58: Sewage Treatment Contract(s) | C58: Written | D58: 5% | E58: 1 | F58: 1 | G58: 1 | H58: 2.00 | I58: 2 | J58: ='12 Est Prof Wage Rate'!$G$35 -> $75.00 | K58: $150
B59: American Iron and Steel (AIS) Requirement Prior to Construction | C59: Written | D59: 100% | E59: 11 | F59: 1 | G59: 11 | H59: 8.00 | I59: 88 | J59: ='12 Est Prof Wage Rate'!$G$35 -> $75.00 | K59: $6,600
B60: Build America, Buy America Act (BABAA) Requirement Prior to Construction | C60: Written | D60: 100% | E60: 11 | F60: 1 | G60: 11 | H60: 16.00 | I60: 176 | J60: ='12 Est Prof Wage Rate'!$G$35 -> $75.00 | K60: $13,200
A61: ACTIONS DURING CONSTRUCTION (USES CONSTRUCTION DATA)
A62: 1780.57 | B62: Final operating permit(s) for the entire project components | C62: Written | D62: 100% | E62: 11 | F62: 1 | G62: =E62*F62 -> 11 | H62: 2.00 | I62: 22 | J62: ='12 Est Prof Wage Rate'!$G$35 -> $75.00 | K62: =IF((J62*I62)="","",(J62*I62)) -> $1,650
A63: 1780.61(a) | B63: Construction contract documents - EJCDC C-Series | C63: Written | D63: 80% | E63: 9 | F63: 1 | G63: 9 | H63: 8.00 | I63: 72 | J63: ='12 Est Prof Wage Rate'!$G$35 -> $75.00 | K63: $5,400
A64: 1780.61(a) | B64: Construction contract document - EJCDC C-522 for small projects | C64: Written | D64: 10% | E64: 1 | F64: 1 | G64: 1 | H64: 6.00 | I64: 6 | J64: ='12 Est Prof Wage Rate'!$G$35 -> $75.00 | K64: $450
A65: 1780.61(b) | B65: Certificate of Owner's Engineers Certifications | C65: Written | D65: 100% | E65: 11 | F65: 1 | G65: 11 | H65: 1.00 | I65: 11 | J65: ='12 Est Prof Wage Rate'!$G$35 -> $75.00 | K65: $825
A66: 1780.61(b) | B66: Certificate of Owner's Attorney Concurrence | C66: Written | D66: 100% | E66: 11 | F66: 1 | G66: 11 | H66: 8.00 | I66: 88 | J66: ='12 Est Prof Wage Rate'!$G$35 -> $75.00 | K66: $6,600
A67: 1780.70 | B67: Owner's Solicitation and Review of Offers - Competitive Sealed Bids | C67: Written | D67: 65% | E67: 7 | F67: 1 | G67: 7 | H67: 10.00 | I67: 70 | J67: ='12 Est Prof Wage Rate'!$G$35 -> $75.00 | K67: $5,250
A68: 1780.70 | B68: Owner's Solicitation and Review of Offers - Noncompetitive proposals | C68: Written | D68: 5% | E68: 1 | F68: 1 | G68: 1 | H68: 10.00 | I68: 10 | J68: ='12 Est Prof Wage Rate'!$G$35 -> $75.00 | K68: $750
A69: 1780.70 | B69: Owner's Solicitation and Review of Offers - Alternative Delivery Methods | C69: Written | D69: 0% | E69: 0 | F69: 1 | G69: 0 | H69: 10.00 | I69: 0 | J69: ='12 Est Prof Wage Rate'!$G$35 -> $75.00 | K69: $0
A70: 1780.70 | B70: Owner's Solicitation and Review of Offers - Small Projects | C70: Written | D70: 25% | E70: 3 | F70: 1 | G70: 3 | H70: 8.00 | I70: 24 | J70: ='12 Est Prof Wage Rate'!$G$35 -> $75.00 | K70: $1,800
A71: 1780.70 | B71: Owner's Solicitation and Review of Offers - Micro Purchases | C71: Written | D71: 5% | E71: 1 | F71: 1 | G71: 1 | H71: 4.00 | I71: 4 | J71: ='12 Est Prof Wage Rate'!$G$35 -> $75.00 | K71: $300
A72: 1780.74 | B72: Contracts awarded prior to application | C72: Written | D72: 10% | E72: 1 | F72: 1 | G72: 1 | H72: 2.00 | I72: 2 | J72: ='12 Est Prof Wage Rate'!$G$35 -> $75.00 | K72: $150
A73: 1780.76 (a) | B73: Pre-Construction Conference | C73: Written | D73: 100% | E73: 11 | F73: 1 | G73: 11 | H73: 4.00 | I73: 44 | J73: ='12 Est Prof Wage Rate'!$G$35 -> $75.00 | K73: $3,300
A74: 1780.76(b) | B74: Monitoring Construction- Owner's Report | C74: Written | D74: 100% | E74: 11 | F74: 12 | G74: 132 | H74: 2.00 | I74: 264 | J74: ='12 Est Prof Wage Rate'!$G$35 -> $75.00 | K74: $19,800
A75: 1780.76(c) | B75: Resident inspector resume | C75: Written | D75: 100% | E75: 11 | F75: 1 | G75: 11 | H75: 1.00 | I75: 11 | J75: ='12 Est Prof Wage Rate'!$G$35 -> $75.00 | K75: $825
A76: 1780.76(d) | B76: Daily inspection report | C76: Written | D76: 100% | E76: 11 | F76: 12 | G76: 132 | H76: 0.50 | I76: 66 | J76: ='12 Est Prof Wage Rate'!$G$35 -> $75.00 | K76: $4,950
B77: Evidence that as built plans have been delivered to Owner | C77: Written | D77: 100% | E77: 11 | F77: 1 | G77: 11 | H77: 1.00 | I77: 11 | J77: ='12 Est Prof Wage Rate'!$G$35 -> $75.00 | K77: $825
B78: Domestic Preference De Minimis List | C78: Written | D78: 50% | E78: 6 | F78: 1 | G78: 6 | H78: 3.00 | I78: 18 | J78: ='12 Est Prof Wage Rate'!$G$35 -> $75.00 | K78: $1,350
B79: Contractor's Certification of Compliance for AIS and/or BABAA | C79: Written | D79: 100% | E79: 11 | F79: 1 | G79: 11 | H79: 0.50 | I79: =ROUND((G79*H79),0) -> 6 | J79: ='12 Est Prof Wage Rate'!$G$35 -> $75.00 | K79: $450
B80: Manufacturer's Certification of Compliance | C80: Written | D80: 100% | E80: 11 | F80: 1 | G80: 11 | H80: 0.50 | I80: 6 | J80: ='12 Est Prof Wage Rate'!$G$35 -> $75.00 | K80: $450
B81: AIS and BABAA Requirements during/post construction | C81: Written | D81: 100% | E81: 11 | F81: 1 | G81: 11 | H81: 4.00 | I81: 44 | J81: ='12 Est Prof Wage Rate'!$G$35 -> $75.00 | K81: $3,300
A82: RECORDKEEPING
A83: 1780.47(c) | B83: Borrower shall maintain accounting records for 3 years | C83: Written | D83: 100% | E83: 11 | F83: 1 | G83: =E83*F83 -> 11 | H83: 1.00 | I83: 11 | J83: ='12 Est Prof Wage Rate'!$G$35 -> $75.00 | K83: =IF((J83*I83)="","",(J83*I83)) -> $825

Sheet 12 Not Inc in BH Tribal Lands
A1: ='12 BH Collection WWLG'!A1 -> RURAL UTILITIES SERVICE
A2: ='12 BH Collection WWLG'!A2 -> WATER AND WASTE LOAN AND GRANT PROGRAM
A3: ='12 BH Collection Tribal Lands'!A3 -> ALLEVIATE HEALTH RISKS ON TRIBAL LANDS
A4: ='12 BH Collection WWLG'!A3 -> INFORMATION COLLECTION BURDEN HOURS
A5: ='12 BH Collection WWLG'!A4 -> OMB # 0572 - 0121
A6: ='12 BH Collection WWLG'!A5 -> 2024-11-18
A8: Estimated No. of Total Respondents (Applicants) | C8: ='12 BH Collection Tribal Lands'!C8 -> 11 | J8: Estimated No. of Total Awards (Awardees) | K8: ='12 BH Collection Tribal Lands'!K8 -> 11
A9: Average hours per response | C9: =I10/G10 -> 0.798 | J9: Number of responses per respondent | K9: =G10/C8 -> 44.91
A10: Gray Columns have automatic formulas. DO NOT input numbers in these columns. | F10: TOTAL | G10: =SUM(G14:G36) -> 494 | I10: =SUM(I14:I36) -> 394 | K10: =SUM(K14:K36) -> $29,550
A11: (A) | B11: (B) | C11: (C) | D11: (D) | E11: (E) | F11: (F) | G11: (G) | H11: (H) | I11: (I) | J11: (J) | K11: (K)
A12: Regulation Reference | B12: Title | C12: Form No. (If Any) | D12: % of Respondents Line Item is Applicable To | E12: Estimated # of Respondents | F12: Reports Filed Annually | G12: Total Responses (E) x (F) | H12: Estimated # of Hours Per Response | I12: Estimated Total Hours (G) x (H) | J12: Prof. Wage Rate | K12: Total Cost (I) x (J)
A13: APPLICATION/ELGIBILITY
A14: 1780.33(a) | B14: Application for Federal Assistance- Initial Application | C14: SF 424 (4040-0004) | D14: 100% | E14: =ROUND((D14*$C$8),0) -> 11 | F14: 2 | G14: =E14*F14 -> 22 | H14: 1.00 | I14: =ROUND((G14*H14),0) -> 22 | J14: ='12 Est Prof Wage Rate'!$G$35 -> $75.00 | K14: =IF((J14*I14)="","",(J14*I14)) -> $1,650
A15: 1780.33(a) | B15: Budget Information--Construction Programs | C15: SF-424C (4040-0008) | D15: 100% | E15: =ROUND((D15*$C$8),0) -> 11 | F15: 2 | G15: =E15*F15 -> 22 | H15: 1.00 | I15: =ROUND((G15*H15),0) -> 22 | J15: ='12 Est Prof Wage Rate'!$G$35 -> $75.00 | K15: =IF((J15*I15)="","",(J15*I15)) -> $1,650
A16: 1780.33(h)(1) | B16: Operating Budget | C16: RD 442-7 (0575-0015) | D16: 100% | E16: 11 | F16: 1 | G16: 11 | H16: 5.00 | I16: 55 | J16: ='12 Est Prof Wage Rate'!$G$35 -> $75.00 | K16: $4,125
A17: 1780.33(h)(3) | B17: Equal Opportunity Agreement | C17: RD 400-1 (0575-0201) | D17: 100% | E17: 11 | F17: 1 | G17: 11 | H17: =10/60 -> 0.17 | I17: 2 | J17: ='12 Est Prof Wage Rate'!$G$35 -> $75.00 | K17: $150
A18: 1780.33(h)(4) | B18: Assurance Agreement | C18: RD 400-4 (0575-0201) | D18: 100% | E18: 11 | F18: 1 | G18: 11 | H18: 0.25 | I18: 3 | J18: ='12 Est Prof Wage Rate'!$G$35 -> $75.00 | K18: $225
A19: 1780.39(f) | B19: Resolution of Members or Stockholders | C19: RD 1942-8 (0575-0015) | D19: 10% | E19: 1 | F19: 1 | G19: =E19*F19 -> 1 | H19: 1.00 | I19: 1 | J19: ='12 Est Prof Wage Rate'!$G$35 -> $75.00 | K19: =IF((J19*I19)="","",(J19*I19)) -> $75
A20: APPROVAL ACTIONS FOLLOWING OBLIGATION (USES OBLIGATION DATA)
A21: 1780.41(a)(3) | B21: Balance Sheet or Financial Statement | C21: RD 442-3 (0572-0137; 0575-0015, 0200) | D21: 100% | E21: =ROUND((D21*$K$8),0) -> 11 | F21: 1 | G21: =E21*F21 -> 11 | H21: 1.00 | I21: 11 | J21: ='12 Est Prof Wage Rate'!$G$35 -> $75.00 | K21: =IF((J21*I21)="","",(J21*I21)) -> $825
A22: 1780.41(a)(6) | B22: Letter of Intent to Meet Conditions | C22: RD 1942-46 (0572-0137; 0575-0015; 0570-0021, 0061, 0062) | D22: 100% | E22: =ROUND((D22*$K$8),0) -> 11 | F22: 1 | G22: =E22*F22 -> 11 | H22: 1.00 | I22: 11 | J22: ='12 Est Prof Wage Rate'!$G$35 -> $75.00 | K22: =IF((J22*I22)="","",(J22*I22)) -> $825
A23: 1780.41(a)(7) | B23: Request for Obligation of Funds | C23: RD 1940-1 (0570-0062, 0067) | D23: 100% | E23: 11 | F23: 1 | G23: =E23*F23 -> 11 | H23: 0.25 | I23: 3 | J23: ='12 Est Prof Wage Rate'!$G$35 -> $75.00 | K23: =IF((J23*I23)="","",(J23*I23)) -> $225
A24: 1780.44(c) | B24: Initial Compliance Review | C24: RD 400-8 (0570-0062; 0575-0018, 0189) | D24: 100% | E24: 11 | F24: 1 | G24: =E24*F24 -> 11 | H24: 8.00 | I24: 88 | J24: ='12 Est Prof Wage Rate'!$G$35 -> $75.00 | K24: =IF((J24*I24)="","",(J24*I24)) -> $6,600
A25: 1780.44(g)(1)(i) | B25: Opinion of Counsel Relative to Right-of-Way and Easements | C25: RD 442-22 (0575-0015) | D25: 100% | E25: 11 | F25: 1 | G25: =E25*F25 -> 11 | H25: 1.00 | I25: 11 | J25: ='12 Est Prof Wage Rate'!$G$35 -> $75.00 | K25: =IF((J25*I25)="","",(J25*I25)) -> $825
A26: 1780.44(g)(2) | B26: Preliminary Title Opinion | C26: RD 1927-9 (0575-0147, 0189) | D26: 100% | E26: 11 | F26: 1 | G26: =E26*F26 -> 11 | H26: 1.50 | I26: 17 | J26: ='12 Est Prof Wage Rate'!$G$35 -> $75.00 | K26: =IF((J26*I26)="","",(J26*I26)) -> $1,275
A27: 1780.44(g)(2) | B27: Final Title Opinion | C27: RD 1927-10 (0575-0147, 0189) | D27: 100% | E27: 11 | F27: 1 | G27: 11 | H27: =20/60 -> 0.33 | I27: 4 | J27: ='12 Est Prof Wage Rate'!$G$35 -> $75.00 | K27: $300
A28: 1780.47(f)(2) | B28: Statement of Budget, Income, and Equity | C28: RD 442-2 (0572-0137; 0575-0015, 0200) | D28: 100% | E28: 11 | F28: 1 | G28: 11 | H28: 2.50 | I28: 28 | J28: ='12 Est Prof Wage Rate'!$G$35 -> $75.00 | K28: $2,100
A29: 1780.62 & 63 | B29: Water Purchase Contract | C29: RD 442-30 (0575-0015) | D29: 10% | E29: 1 | F29: 1 | G29: 1 | H29: 1.00 | I29: 1 | J29: ='12 Est Prof Wage Rate'!$G$35 -> $75.00 | K29: $75
A30: ACTIONS DURING CONSTRUCTION (USES CONSTRUCTION DATA)
A31: 1780.61(a) | B31: Compliance Statement | C31: RD 400-6 (0575-0201) | D31: 100% | E31: 11 | F31: 1 | G31: =E31*F31 -> 11 | H31: =10/60 -> 0.17 | I31: 2 | J31: ='12 Est Prof Wage Rate'!$G$35 -> $75.00 | K31: =IF((J31*I31)="","",(J31*I31)) -> $150
A32: 1780.75 | B32: Contractor's Final Release and Waiver of Lien | C32: RD 1924-9 (0575-0042) | D32: 100% | E32: 11 | F32: 1 | G32: 11 | H32: 0.25 | I32: 3 | J32: ='12 Est Prof Wage Rate'!$G$35 -> $75.00 | K32: $225
A33: 1780.75 | B33: Release by Claimants | C33: RD 1924-10 (0575-0189) | D33: 100% | E33: 11 | F33: 1 | G33: 11 | H33: 0.25 | I33: 3 | J33: ='12 Est Prof Wage Rate'!$G$35 -> $75.00 | K33: $225
A34: 1780.76(e) | B34: Partial Payment Estimate | C34: RD 1924-18 (0575-0042,0189) | D34: 100% | E34: 11 | F34: 12 | G34: 132 | H34: 0.50 | I34: 66 | J34: ='12 Est Prof Wage Rate'!$G$35 -> $75.00 | K34: $4,950
A35: 1780.76(f) | B35: Inspection Report | C35: RD 1924-12 (0575-0042,0189) | D35: 100% | E35: 11 | F35: 12 | G35: 132 | H35: 0.25 | I35: 33 | J35: ='12 Est Prof Wage Rate'!$G$35 -> $75.00 | K35: $2,475
A36: 1780.76(h)(2) | B36: Contract Change Order | C36: RD 1924-7 (0575-0042) | D36: 95% | E36: 10 | F36: 3 | G36: 30 | H36: 0.25 | I36: 8 | J36: ='12 Est Prof Wage Rate'!$G$35 -> $75.00 | K36: $600

Sheet 12 BH Collection ECWAG
A1: ='12 BH Collection WWLG'!A1 -> RURAL UTILITIES SERVICE
A2: ='12 BH Collection WWLG'!A2 -> WATER AND WASTE LOAN AND GRANT PROGRAM
A3: EMERGENCY COMMUNITY WATER ASSISTANCE GRANTS (ECWAG)
A4: ='12 BH Collection WWLG'!A3 -> INFORMATION COLLECTION BURDEN HOURS
A5: ='12 BH Collection WWLG'!A4 -> OMB # 0572 - 0121
A6: ='12 BH Collection WWLG'!A5 -> 2024-11-18
A8: Estimated No. of Total Respondents (Applicants) | C8: 41 | J8: Estimated No. of Total Awards (Awardees) | K8: 41
A9: Average hours per response | C9: =I10/G10 -> 2.713 | J9: Number of responses per respondent | K9: =G10/C8 -> 47.98
A10: Gray Columns have automatic formulas. DO NOT input numbers in these columns. | F10: TOTAL | G10: =SUM(G14:G50) -> 1,967 | I10: =SUM(I14:I50) -> 5,336 | K10: =SUM(K14:K50) -> $400,200
A11: (A) | B11: (B) | C11: (C) | D11: (D) | E11: (E) | F11: (F) | G11: (G) | H11: (H) | I11: (I) | J11: (J) | K11: (K)
A12: Regulation Reference | B12: Title | C12: Form No. (If Any) | D12: % of Respondents Line Item is Applicable To | E12: Estimated # of Respondents | F12: Reports Filed Annually | G12: Total Responses (E) x (F) | H12: Estimated # of Hours Per Response | I12: Estimated Total Hours (G) x (H) | J12: Prof. Wage Rate | K12: Total Cost (I) x (J)
A13: APPLICATION/ELGIBILITY
A14: APPROVAL/ACTIONS FOLLOWING OBLIGATION (USES OBLIGATION DATA)
A15: 1780.41(a)(5) | B15: Letter of Conditions | C15: Written | D15: 100% | E15: =ROUND((D15*$K$8),0) -> 41 | F15: 1 | G15: =E15*F15 -> 41 | H15: 1.00 | I15: =ROUND((G15*H15),0) -> 41 | J15: ='12 Est Prof Wage Rate'!$G$35 -> $75.00 | K15: =IF((J15*I15)="","",(J15*I15)) -> $3,075
A16: 1780.44(b) | B16: Verification of Applicant Contribution | C16: Written | D16: 100% | E16: =ROUND((D16*$K$8),0) -> 41 | F16: 1 | G16: 41 | H16: 1.00 | I16: =ROUND((G16*H16),0) -> 41 | J16: ='12 Est Prof Wage Rate'!$G$35 -> $75.00 | K16: $3,075
A17: 1780.44(f) | B17: Evidence of other funds | C17: Written | D17: 100% | E17: 41 | F17: 1 | G17: 41 | H17: 1.00 | I17: 41 | J17: ='12 Est Prof Wage Rate'!$G$35 -> $75.00 | K17: $3,075
A18: 1780.44(g)(1)(ii) | B18: User Connections | C18: Written | D18: 15% | E18: 6 | F18: 1 | G18: 6 | H18: 4.00 | I18: 24 | J18: ='12 Est Prof Wage Rate'!$G$35 -> $75.00 | K18: $1,800
A19: 1780.44(g)(3) | B19: Water rights | C19: Written | D19: 15% | E19: 6 | F19: 1 | G19: 6 | H19: 4.00 | I19: 24 | J19: ='12 Est Prof Wage Rate'!$G$35 -> $75.00 | K19: $1,800
A20: 1780.44(g)(4) | B20: Lease agreement | C20: Written | D20: 15% | E20: 6 | F20: 1 | G20: 6 | H20: 4.00 | I20: 24 | J20: ='12 Est Prof Wage Rate'!$G$35 -> $75.00 | K20: $1,800
A21: 1780.45(c) | B21: ECWAG Grant Agreement | C21: Written | D21: 100% | E21: 41 | F21: 1 | G21: 41 | H21: 1.00 | I21: 41 | J21: ='12 Est Prof Wage Rate'!$G$35 -> $75.00 | K21: $3,075
A22: 1780.47(d) & (e ) | B22: Audits and Year-End Financial Reports | C22: Written | D22: 100% | E22: 41 | F22: 3 | G22: 123 | H22: 8.00 | I22: 984 | J22: ='12 Est Prof Wage Rate'!$G$35 -> $75.00 | K22: $73,800
A23: 1780.47(f)(1) | B23: Management report- Quarterly Report | C23: Written | D23: 25% | E23: 10 | F23: 4 | G23: 40 | H23: 4.00 | I23: 160 | J23: ='12 Est Prof Wage Rate'!$G$35 -> $75.00 | K23: $12,000
A24: 1780.57 (g) and (h) | B24: Evidence of Conformity with Drinking Water and Water Pollution Control Standards | C24: Written | D24: 100% | E24: 41 | F24: 1 | G24: 41 | H24: 1.00 | I24: 41 | J24: ='12 Est Prof Wage Rate'!$G$35 -> $75.00 | K24: $3,075
A25: 1780.63 | B25: Sewage Treatment Contract(s) | C25: Written | D25: 5% | E25: 2 | F25: 1 | G25: 2 | H25: 8.00 | I25: 16 | J25: ='12 Est Prof Wage Rate'!$G$35 -> $75.00 | K25: $1,200
B26: American Iron and Steel (AIS) Requirement Prior to Construction | C26: Written | D26: 100% | E26: 41 | F26: 1 | G26: 41 | H26: 8.00 | I26: 328 | J26: ='12 Est Prof Wage Rate'!$G$35 -> $75.00 | K26: $24,600
B27: Build America, Buy America Act (BABAA) Requirement Prior to Construction | C27: Written | D27: 100% | E27: 41 | F27: 1 | G27: 41 | H27: 16.00 | I27: 656 | J27: ='12 Est Prof Wage Rate'!$G$35 -> $75.00 | K27: $49,200
A28: ACTIONS DURING CONSTRUCTION (USES CONSTRUCTION DATA)
A29: 1780.57 | B29: Final operating permit(s) for the entire project components | C29: Written | D29: 100% | E29: =ROUND((D29*$K$8),0) -> 41 | F29: 1 | G29: =E29*F29 -> 41 | H29: 2.00 | I29: =ROUND((G29*H29),0) -> 82 | J29: ='12 Est Prof Wage Rate'!$G$35 -> $75.00 | K29: =IF((J29*I29)="","",(J29*I29)) -> $6,150
A30: 1780.61(a) | B30: Construction contract documents - EJCDC C-Series | C30: Written | D30: 75% | E30: 31 | F30: 1 | G30: 31 | H30: 8.00 | I30: 248 | J30: ='12 Est Prof Wage Rate'!$G$35 -> $75.00 | K30: $18,600
A31: 1780.61(a) | B31: Construction contract document - EJCDC C-522 for small projects | C31: Written | D31: 20% | E31: 8 | F31: 1 | G31: 8 | H31: 6.00 | I31: 48 | J31: ='12 Est Prof Wage Rate'!$G$35 -> $75.00 | K31: $3,600
A32: 1780.61(b) | B32: Certificate of Owner's Engineers Certifications | C32: Written | D32: 100% | E32: 41 | F32: 1 | G32: 41 | H32: 1.00 | I32: 41 | J32: ='12 Est Prof Wage Rate'!$G$35 -> $75.00 | K32: $3,075
A33: 1780.61(b) | B33: Certificate of Owner's Attorney Concurrence | C33: Written | D33: 100% | E33: 41 | F33: 1 | G33: 41 | H33: 8.00 | I33: 328 | J33: ='12 Est Prof Wage Rate'!$G$35 -> $75.00 | K33: $24,600
A34: 1780.70 | B34: Owner's Solicitation and Review of Offers - Competitive Sealed Bids | C34: Written | D34: 65% | E34: 27 | F34: 1 | G34: 27 | H34: 10.00 | I34: 270 | J34: ='12 Est Prof Wage Rate'!$G$35 -> $75.00 | K34: $20,250
A35: 1780.70 | B35: Owner's Solicitation and Review of Offers - Noncompetitive proposals | C35: Written | D35: 5% | E35: 2 | F35: 1 | G35: 2 | H35: 10.00 | I35: 20 | J35: ='12 Est Prof Wage Rate'!$G$35 -> $75.00 | K35: $1,500
A36: 1780.70 | B36: Owner's Solicitation and Review of Offers - Alternative Delivery Methods | C36: Written | D36: 0% | E36: 0 | F36: 1 | G36: 0 | H36: 10.00 | I36: 0 | J36: ='12 Est Prof Wage Rate'!$G$35 -> $75.00 | K36: $0
A37: 1780.70 | B37: Owner's Solicitation and Review of Offers - Small Projects | C37: Written | D37: 25% | E37: 10 | F37: 1 | G37: 10 | H37: 8.00 | I37: 80 | J37: ='12 Est Prof Wage Rate'!$G$35 -> $75.00 | K37: $6,000
A38: 1780.70 | B38: Owner's Solicitation and Review of Offers - Micro Purchases | C38: Written | D38: 5% | E38: 2 | F38: 1 | G38: 2 | H38: 4.00 | I38: 8 | J38: ='12 Est Prof Wage Rate'!$G$35 -> $75.00 | K38: $600
A39: 1780.74 | B39: Contracts awarded prior to application | C39: Written | D39: 5% | E39: 2 | F39: 1 | G39: 2 | H39: 2.00 | I39: 4 | J39: ='12 Est Prof Wage Rate'!$G$35 -> $75.00 | K39: $300
A40: 1780.76 (a) | B40: Pre-Construction Conference | C40: Written | D40: 100% | E40: 41 | F40: 1 | G40: 41 | H40: 4.00 | I40: 164 | J40: ='12 Est Prof Wage Rate'!$G$35 -> $75.00 | K40: $12,300
A41: 1780.76(b) | B41: Monitoring Construction- Owner's Report | C41: Written | D41: 100% | E41: 41 | F41: 12 | G41: 492 | H41: 2.00 | I41: 984 | J41: ='12 Est Prof Wage Rate'!$G$35 -> $75.00 | K41: $73,800
A42: 1780.76(c) | B42: Resident inspector resume | C42: Written | D42: 100% | E42: 41 | F42: 1 | G42: 41 | H42: 1.00 | I42: 41 | J42: ='12 Est Prof Wage Rate'!$G$35 -> $75.00 | K42: $3,075
A43: 1780.76(d) | B43: Daily inspection report | C43: Written | D43: 100% | E43: 41 | F43: 12 | G43: 492 | H43: 0.50 | I43: 246 | J43: ='12 Est Prof Wage Rate'!$G$35 -> $75.00 | K43: $18,450
B44: Evidence that as built plans have been delivered to Owner | C44: Written | D44: 100% | E44: 41 | F44: 1 | G44: 41 | H44: 1.00 | I44: 41 | J44: ='12 Est Prof Wage Rate'!$G$35 -> $75.00 | K44: $3,075
B45: Domestic Preference De Minimis List | C45: Written | D45: 50% | E45: 21 | F45: 1 | G45: 21 | H45: 3.00 | I45: 63 | J45: ='12 Est Prof Wage Rate'!$G$35 -> $75.00 | K45: $4,725
B46: Contractor's Certification of Compliance for AIS and/or BABAA | C46: Written | D46: 100% | E46: 41 | F46: 1 | G46: 41 | H46: 0.50 | I46: 21 | J46: ='12 Est Prof Wage Rate'!$G$35 -> $75.00 | K46: $1,575
B47: Manufacturer's Certification of Compliance | C47: Written | D47: 100% | E47: 41 | F47: 1 | G47: 41 | H47: 0.50 | I47: 21 | J47: ='12 Est Prof Wage Rate'!$G$35 -> $75.00 | K47: $1,575
B48: AIS and BABAA Requirements during/post construction | C48: Written | D48: 100% | E48: 41 | F48: 1 | G48: 41 | H48: 4.00 | I48: 164 | J48: ='12 Est Prof Wage Rate'!$G$35 -> $75.00 | K48: $12,300
A49: RECORDKEEPING
A50: 1780.47(c) | B50: Borrower shall maintain accounting records for 3 years | C50: Written | D50: 100% | E50: =ROUND((D50*$K$8),0) -> 41 | F50: 1 | G50: =E50*F50 -> 41 | H50: 1.00 | I50: =ROUND((G50*H50),0) -> 41 | J50: ='12 Est Prof Wage Rate'!$G$35 -> $75.00 | K50: =IF((J50*I50)="","",(J50*I50)) -> $3,075

Sheet 12 Not Inc in BH ECWAG
A1: ='12 BH Collection WWLG'!A1 -> RURAL UTILITIES SERVICE
A2: ='12 BH Collection WWLG'!A2 -> WATER AND WASTE LOAN AND GRANT PROGRAM
A3: ='12 BH Collection ECWAG'!A3 -> EMERGENCY COMMUNITY WATER ASSISTANCE GRANTS (ECWAG)
A4: ='12 BH Collection WWLG'!A3 -> INFORMATION COLLECTION BURDEN HOURS
A5: ='12 BH Collection WWLG'!A4 -> OMB # 0572 - 0121
A6: ='12 BH Collection WWLG'!A5 -> 2024-11-18
A8: Estimated No. of Total Respondents (Applicants) | C8: ='12 BH Collection ECWAG'!C8 -> 41 | J8: Estimated No. of Total Awards (Awardees) | K8: ='12 BH Collection ECWAG'!K8 -> 41
A9: Average hours per response | C9: =I10/G10 -> 0.687 | J9: Number of responses per respondent | K9: =G10/C8 -> 37.95
A10: Gray Columns have automatic formulas. DO NOT input numbers in these columns. | F10: TOTAL | G10: =SUM(G14:G30) -> 1,556 | I10: =SUM(I14:I30) -> 1,069 | K10: =SUM(K14:K30) -> $80,175
A11: (A) | B11: (B) | C11: (C) | D11: (D) | E11: (E) | F11: (F) | G11: (G) | H11: (H) | I11: (I) | J11: (J) | K11: (K)
A12: Regulation Reference | B12: Title | C12: Form No. (If Any) | D12: % of Respondents Line Item is Applicable To | E12: Estimated # of Respondents | F12: Reports Filed Annually | G12: Total Responses (E) x (F) | H12: Estimated # of Hours Per Response | I12: Estimated Total Hours (G) x (H) | J12: Prof. Wage Rate | K12: Total Cost (I) x (J)
A13: APPLICATION/ELGIBILITY
A14: APPROVAL ACTIONS FOLLOWING OBLIGATION (USES OBLIGATION DATA)
A15: 1780.41(a)(3) | B15: Balance Sheet or Financial Statement | C15: RD 442-3 (0572-0137; 0575-0015, 0200) | D15: 100% | E15: =ROUND((D15*$K$8),0) -> 41 | F15: 1 | G15: =E15*F15 -> 41 | H15: 1.00 | I15: =ROUND((G15*H15),0) -> 41 | J15: ='12 Est Prof Wage Rate'!$G$35 -> $75.00 | K15: =IF((J15*I15)="","",(J15*I15)) -> $3,075
A16: 1780.41(a)(6) | B16: Letter of Intent to Meet Conditions | C16: RD 1942-46 (0572-0137; 0575-0015; 0570-0021, 0061, 0062) | D16: 100% | E16: =ROUND((D16*$K$8),0) -> 41 | F16: 1 | G16: =E16*F16 -> 41 | H16: 1.00 | I16: =ROUND((G16*H16),0) -> 41 | J16: ='12 Est Prof Wage Rate'!$G$35 -> $75.00 | K16: =IF((J16*I16)="","",(J16*I16)) -> $3,075
A17: 1780.41(a)(7) | B17: Request for Obligation of Funds | C17: RD 1940-1 (0570-0062, 0067) | D17: 100% | E17: 41 | F17: 1 | G17: =E17*F17 -> 41 | H17: 0.25 | I17: 10 | J17: ='12 Est Prof Wage Rate'!$G$35 -> $75.00 | K17: =IF((J17*I17)="","",(J17*I17)) -> $750
A18: 1780.44(c) | B18: Initial Compliance Review | C18: RD 400-8 (0570-0062; 0575-0018, 0189) | D18: 100% | E18: 41 | F18: 1 | G18: =E18*F18 -> 41 | H18: 8.00 | I18: 328 | J18: ='12 Est Prof Wage Rate'!$G$35 -> $75.00 | K18: =IF((J18*I18)="","",(J18*I18)) -> $24,600
A19: 1780.44(g)(1)(i) | B19: Opinion of Counsel Relative to Right-of-Way and Easements | C19: RD 442-22 (0575-0015) | D19: 100% | E19: 41 | F19: 1 | G19: =E19*F19 -> 41 | H19: 1.00 | I19: 41 | J19: ='12 Est Prof Wage Rate'!$G$35 -> $75.00 | K19: =IF((J19*I19)="","",(J19*I19)) -> $3,075
A20: 1780.44(g)(2) | B20: Preliminary Title Opinion | C20: RD 1927-9 (0575-0147, 0189) | D20: 100% | E20: 41 | F20: 1 | G20: =E20*F20 -> 41 | H20: 1.50 | I20: 62 | J20: ='12 Est Prof Wage Rate'!$G$35 -> $75.00 | K20: =IF((J20*I20)="","",(J20*I20)) -> $4,650
A21: 1780.44(g)(2) | B21: Final Title Opinion | C21: RD 1927-10 (0575-0147, 0189) | D21: 100% | E21: 41 | F21: 1 | G21: 41 | H21: =20/60 -> 0.33 | I21: 14 | J21: ='12 Est Prof Wage Rate'!$G$35 -> $75.00 | K21: $1,050
A22: 1780.47(f)(2) | B22: Statement of Budget, Income, and Equity | C22: RD 442-2 (0572-0137; 0575-0015, 0200) | D22: 100% | E22: 41 | F22: 1 | G22: 41 | H22: 2.50 | I22: 103 | J22: ='12 Est Prof Wage Rate'!$G$35 -> $75.00 | K22: $7,725
A23: 1780.62 & 63 | B23: Water Purchase Contract | C23: RD 442-30 (0575-0015) | D23: 10% | E23: 4 | F23: 1 | G23: 4 | H23: 1.00 | I23: 4 | J23: ='12 Est Prof Wage Rate'!$G$35 -> $75.00 | K23: $300
A24: ACTIONS DURING CONSTRUCTION (USES CONSTRUCTION DATA)
A25: 1780.61(a) | B25: Compliance Statement | C25: RD 400-6 (0575-0201) | D25: 100% | E25: 41 | F25: 1 | G25: =E25*F25 -> 41 | H25: =10/60 -> 0.17 | I25: 7 | J25: ='12 Est Prof Wage Rate'!$G$35 -> $75.00 | K25: =IF((J25*I25)="","",(J25*I25)) -> $525
A26: 1780.75 | B26: Contractor's Final Release and Waiver of Lien | C26: RD 1924-9 (0575-0042) | D26: 100% | E26: 41 | F26: 1 | G26: 41 | H26: 0.25 | I26: 10 | J26: ='12 Est Prof Wage Rate'!$G$35 -> $75.00 | K26: $750
A27: 1780.75 | B27: Release by Claimants | C27: RD 1924-10 (0575-0189) | D27: 100% | E27: 41 | F27: 1 | G27: 41 | H27: 0.25 | I27: 10 | J27: ='12 Est Prof Wage Rate'!$G$35 -> $75.00 | K27: $750
A28: 1780.76(e) | B28: Partial Payment Estimate | C28: RD 1924-18 (0575-0042,0189) | D28: 100% | E28: 41 | F28: 12 | G28: 492 | H28: 0.50 | I28: 246 | J28: ='12 Est Prof Wage Rate'!$G$35 -> $75.00 | K28: $18,450
A29: 1780.76(f) | B29: Inspection Report | C29: RD 1924-12 (0575-0042,0189) | D29: 100% | E29: 41 | F29: 12 | G29: 492 | H29: 0.25 | I29: 123 | J29: ='12 Est Prof Wage Rate'!$G$35 -> $75.00 | K29: $9,225
A30: 1780.76(h)(2) | B30: Contract Change Order | C30: RD 1924-7 (0575-0042) | D30: 95% | E30: 39 | F30: 3 | G30: 117 | H30: 0.25 | I30: 29 | J30: ='12 Est Prof Wage Rate'!$G$35 -> $75.00 | K30: $2,175

Sheet 12 BH Collection RAVG-Reg
A1: ='12 BH Collection WWLG'!A1 -> RURAL UTILITIES SERVICE
A2: ='12 BH Collection WWLG'!A2 -> WATER AND WASTE LOAN AND GRANT PROGRAM
A3: RURAL AND NATIVE ALASKAN VILLAGES GRANTS (RAVG-REGULAR)
A4: ='12 BH Collection WWLG'!A3 -> INFORMATION COLLECTION BURDEN HOURS
A5: ='12 BH Collection WWLG'!A4 -> OMB # 0572 - 0121
A6: ='12 BH Collection WWLG'!A5 -> 2024-11-18
A8: Estimated No. of Total Respondents (Applicants) | C8: 23 | J8: Estimated No. of Total Awards (Awardees) | K8: 14
A9: Average hours per response | C9: =I10/G10 -> 3.557 | J9: Number of responses per respondent | K9: =G10/C8 -> 49.48
A10: Gray Columns have automatic formulas. DO NOT input numbers in these columns. | F10: TOTAL | G10: =SUM(G14:G83) -> 1,138 | I10: =SUM(I14:I83) -> 4,048 | K10: =SUM(K14:K83) -> $303,600
A11: (A) | B11: (B) | C11: (C) | D11: (D) | E11: (E) | F11: (F) | G11: (G) | H11: (H) | I11: (I) | J11: (J) | K11: (K)
A12: Regulation Reference | B12: Title | C12: Form No. (If Any) | D12: % of Respondents Line Item is Applicable To | E12: Estimated # of Respondents | F12: Reports Filed Annually | G12: Total Responses (E) x (F) | H12: Estimated # of Hours Per Response | I12: Estimated Total Hours (G) x (H) | J12: Prof. Wage Rate | K12: Total Cost (I) x (J)
A13: APPLICATION/ELGIBILITY
A14: 1780.1(d) | B14: Documentation of Income Survey | C14: Written | D14: 10% | E14: =ROUND(($C$8*D14),0) -> 2 | F14: 1 | G14: =E14*F14 -> 2 | H14: 8.00 | I14: =ROUND((G14*H14),0) -> 16 | J14: ='12 Est Prof Wage Rate'!$G$35 -> $75.00 | K14: =IF((J14*I14)="","",(J14*I14)) -> $1,200
A15: 1780.1(f) | B15: Relationship or association ith RUS employees | C15: Written | D15: 100% | E15: =ROUND(($C$8*D15),0) -> 23 | F15: 1 | G15: =E15*F15 -> 23 | H15: 0.25 | I15: =ROUND((G15*H15),0) -> 6 | J15: ='12 Est Prof Wage Rate'!$G$35 -> $75.00 | K15: $450
A16: 1780.1(h) | B16: Evidence proposed facility will be consistent with development plans | C16: Written | D16: 100% | E16: 23 | F16: 1 | G16: 23 | H16: 1.00 | I16: 23 | J16: ='12 Est Prof Wage Rate'!$G$35 -> $75.00 | K16: $1,725
A17: 1780.7(d) & 1780.33(d) | B17: Statement of availability to obtain credit elsewhere | C17: Written | D17: 100% | E17: 23 | F17: 1 | G17: 23 | H17: 1.00 | I17: 23 | J17: ='12 Est Prof Wage Rate'!$G$35 -> $75.00 | K17: $1,725
A18: 1780.7(g) | B18: Evidence No Outstanding Judgement Obtained | C18: Written | D18: 100% | E18: 23 | F18: 1 | G18: 23 | H18: 0.25 | I18: 6 | J18: ='12 Est Prof Wage Rate'!$G$35 -> $75.00 | K18: $450
A19: 1780.9(g)(2) | B19: Agreement between Applicant and Individual Users for Water or Sewer service provided through individual installations or small clusters of users within an Applicant's service area | C19: Written | D19: 10% | E19: 2 | F19: 1 | G19: 2 | H19: 1.00 | I19: 2 | J19: ='12 Est Prof Wage Rate'!$G$35 -> $75.00 | K19: $150
A20: 1780.11(a)(2) | B20: Notification of service statement | C20: Written | D20: 15% | E20: 3 | F20: 1 | G20: 3 | H20: 1.00 | I20: 3 | J20: ='12 Est Prof Wage Rate'!$G$35 -> $75.00 | K20: $225
A21: 1780.19 | B21: Evidence of Public Notice of Intent | C21: Written | D21: 100% | E21: 23 | F21: 1 | G21: 23 | H21: 2.00 | I21: 46 | J21: ='12 Est Prof Wage Rate'!$G$35 -> $75.00 | K21: $3,450
A22: 1780.33(b) | B22: Intergovernmental comments | C22: Written | D22: 100% | E22: 23 | F22: 1 | G22: 23 | H22: 1.00 | I22: 23 | J22: ='12 Est Prof Wage Rate'!$G$35 -> $75.00 | K22: $1,725
A23: 1780.33(c) | B23: Preliminary engineering report | C23: Written | D23: 100% | E23: 23 | F23: 1 | G23: 23 | H23: 40.00 | I23: 920 | J23: ='12 Est Prof Wage Rate'!$G$35 -> $75.00 | K23: $69,000
A24: 1780.33(e) | B24: Supporting documentation | C24: Written | D24: 100% | E24: 23 | F24: 1 | G24: 23 | H24: 4.00 | I24: 92 | J24: ='12 Est Prof Wage Rate'!$G$35 -> $75.00 | K24: $6,900
A25: 1780.33(f) | B25: Environmental Documentation - Categorical exclusion without report | C25: Written | D25: 30% | E25: 7 | F25: 1 | G25: 7 | H25: 1.00 | I25: 7 | J25: ='12 Est Prof Wage Rate'!$G$35 -> $75.00 | K25: $525
A26: 1780.33(f) | B26: Environmental Documentation - Categorical exclusion with report | C26: Written | D26: 60% | E26: 14 | F26: 1 | G26: 14 | H26: 20.00 | I26: 280 | J26: ='12 Est Prof Wage Rate'!$G$35 -> $75.00 | K26: $21,000
A27: 1780.33(f) | B27: Environmental Documentation - Environmental Assessment | C27: Written | D27: 10% | E27: 2 | F27: 1 | G27: 2 | H27: 50.00 | I27: 100 | J27: ='12 Est Prof Wage Rate'!$G$35 -> $75.00 | K27: $7,500
A28: 1780.33(f) | B28: Environmental Documentation - Environmental Impact Statement | C28: Written | D28: 0% | E28: 0 | F28: 1 | G28: 0 | H28: 150.00 | I28: 0 | J28: ='12 Est Prof Wage Rate'!$G$35 -> $75.00 | K28: $0
A29: 1780.33(h)(7) | B29: Certification for Contracts, Grants, and Loans (Regarding Lobbying) | C29: Written | D29: 100% | E29: 23 | F29: 1 | G29: 23 | H29: 0.25 | I29: 6 | J29: ='12 Est Prof Wage Rate'!$G$35 -> $75.00 | K29: $450
A30: 1780.33(h)(8) | B30: Certification on Tying Arrangements | C30: Written | D30: 100% | E30: 23 | F30: 1 | G30: 23 | H30: 0.25 | I30: 6 | J30: ='12 Est Prof Wage Rate'!$G$35 -> $75.00 | K30: $450
A31: 1780.39(b)(1) | B31: Agreement for Engineering Services - Agency standard - EJCDC E-500 | C31: Written | D31: 80% | E31: 18 | F31: 1 | G31: 18 | H31: 8.00 | I31: 144 | J31: ='12 Est Prof Wage Rate'!$G$35 -> $75.00 | K31: =IF((J31*I31)="","",(J31*I31)) -> $10,800
A32: 1780.39(b)(1) | B32: Agreement for Engineering Services - Agency standard - EJCDC E-520 | C32: Written | D32: 20% | E32: 5 | F32: 1 | G32: 5 | H32: 6.00 | I32: 30 | J32: ='12 Est Prof Wage Rate'!$G$35 -> $75.00 | K32: =IF((J32*I32)="","",(J32*I32)) -> $2,250
A33: 1780.39(b)(1) | B33: Agreement for Engineering Services - Agency standard - EJCDC E-525 | C33: Written | D33: 0% | E33: 0 | F33: 1 | G33: 0 | H33: 6.00 | I33: 0 | J33: ='12 Est Prof Wage Rate'!$G$35 -> $75.00 | K33: $0
A34: 1780.39(b)(1) | B34: Agreement for Engineering and/or Architectural Services - Agency non-standard | C34: Written | D34: 0% | E34: 0 | F34: 1 | G34: 0 | H34: 6.00 | I34: 0 | J34: ='12 Est Prof Wage Rate'!$G$35 -> $75.00 | K34: $0
A35: 1780.39(b)(2) | B35: Agreements for Legal Services | C35: Written | D35: 100% | E35: 23 | F35: 1 | G35: 23 | H35: 6.00 | I35: 138 | J35: ='12 Est Prof Wage Rate'!$G$35 -> $75.00 | K35: $10,350
A36: 1780.39(b)(2) | B36: Agreements for Other Professional Services | C36: Written | D36: 100% | E36: 23 | F36: 1 | G36: 23 | H36: 6.00 | I36: 138 | J36: ='12 Est Prof Wage Rate'!$G$35 -> $75.00 | K36: $10,350
A37: 1780.39(b)(4) | B37: Contracts for other services | C37: Written | D37: 25% | E37: 6 | F37: 1 | G37: 6 | H37: 2.00 | I37: 12 | J37: ='12 Est Prof Wage Rate'!$G$35 -> $75.00 | K37: $900
A38: 1780.39(c)(3) | B38: User Agreement - Water | C38: Written | D38: 10% | E38: 2 | F38: 1 | G38: 2 | H38: 4.00 | I38: 8 | J38: ='12 Est Prof Wage Rate'!$G$35 -> $75.00 | K38: $600
A39: 1780.39(c)(3) | B39: User Agreement - Sewer | C39: Written | D39: 10% | E39: 2 | F39: 1 | G39: 2 | H39: 4.00 | I39: 8 | J39: ='12 Est Prof Wage Rate'!$G$35 -> $75.00 | K39: $600
A40: 1780.39(c)(5)(i) | B40: Positive programs to encourage connections | C40: Written | D40: 20% | E40: 5 | F40: 1 | G40: 5 | H40: 4.00 | I40: 20 | J40: ='12 Est Prof Wage Rate'!$G$35 -> $75.00 | K40: $1,500
A41: 1780.39(g)(3) | B41: Fidelity or employee dishonesty Bond | C41: Written | D41: 100% | E41: 23 | F41: 1 | G41: 23 | H41: 2.00 | I41: 46 | J41: ='12 Est Prof Wage Rate'!$G$35 -> $75.00 | K41: $3,450
A42: 1780.39(g)(4) | B42: Property insurance | C42: Written | D42: 100% | E42: 23 | F42: 1 | G42: 23 | H42: 1.00 | I42: 23 | J42: ='12 Est Prof Wage Rate'!$G$35 -> $75.00 | K42: $1,725
A43: 1780.39(g)(5) | B43: General Liability Insurance | C43: Written | D43: 100% | E43: 23 | F43: 1 | G43: 23 | H43: 1.00 | I43: 23 | J43: ='12 Est Prof Wage Rate'!$G$35 -> $75.00 | K43: $1,725
A44: 1780.39(g)(6) | B44: Flood Insurance | C44: Written | D44: 20% | E44: 5 | F44: 1 | G44: 5 | H44: 1.00 | I44: 5 | J44: ='12 Est Prof Wage Rate'!$G$35 -> $75.00 | K44: $375
A45: 1780.39(g)(7) | B45: Workman's compensation insurance | C45: Written | D45: 100% | E45: 23 | F45: 1 | G45: 23 | H45: 1.00 | I45: 23 | J45: ='12 Est Prof Wage Rate'!$G$35 -> $75.00 | K45: $1,725
B46: SAM Registration | C46: Written | D46: 100% | E46: 23 | F46: 1 | G46: 23 | H46: 2.00 | I46: 46 | J46: ='12 Est Prof Wage Rate'!$G$35 -> $75.00 | K46: $3,450
A47: APPROVAL/ACTIONS FOLLOWING OBLIGATION (USES OBLIGATION DATA)
A48: 1780.41(a)(5) | B48: Letter of Conditions | C48: Written | D48: 100% | E48: =ROUND((D48*$K$8),0) -> 14 | F48: 1 | G48: 14 | H48: 1.00 | I48: 14 | J48: ='12 Est Prof Wage Rate'!$G$35 -> $75.00 | K48: =IF((J48*I48)="","",(J48*I48)) -> $1,050
A49: 1780.44(b) | B49: Verification of Applicant Contribution | C49: Written | D49: 100% | E49: =ROUND((D49*$K$8),0) -> 14 | F49: 1 | G49: 14 | H49: 1.00 | I49: 14 | J49: ='12 Est Prof Wage Rate'!$G$35 -> $75.00 | K49: $1,050
A50: 1780.44(f) | B50: Evidence of other funds | C50: Written | D50: 100% | E50: 14 | F50: 1 | G50: 14 | H50: 1.00 | I50: 14 | J50: ='12 Est Prof Wage Rate'!$G$35 -> $75.00 | K50: $1,050
A51: 1780.44(g)(1)(ii) | B51: User Connections | C51: Written | D51: 15% | E51: 2 | F51: 1 | G51: 2 | H51: 4.00 | I51: 8 | J51: ='12 Est Prof Wage Rate'!$G$35 -> $75.00 | K51: $600
A52: 1780.44(g)(3) | B52: Water rights | C52: Written | D52: 15% | E52: 2 | F52: 1 | G52: 2 | H52: 4.00 | I52: 8 | J52: ='12 Est Prof Wage Rate'!$G$35 -> $75.00 | K52: $600
A53: 1780.44(g)(4) | B53: Lease agreement | C53: Written | D53: 15% | E53: 2 | F53: 1 | G53: 2 | H53: 4.00 | I53: 8 | J53: ='12 Est Prof Wage Rate'!$G$35 -> $75.00 | K53: $600
A54: 1780.45(c) | B54: Water and Waste System Grant Agreement | C54: Written | D54: 100% | E54: 14 | F54: 1 | G54: 14 | H54: 1.00 | I54: 14 | J54: ='12 Est Prof Wage Rate'!$G$35 -> $75.00 | K54: $1,050
A55: 1780.47(d) & (e ) | B55: Audits and Year-End Financial Reports | C55: Written | D55: 100% | E55: 14 | F55: 3 | G55: 42 | H55: 8.00 | I55: 336 | J55: ='12 Est Prof Wage Rate'!$G$35 -> $75.00 | K55: $25,200
A56: 1780.47(f)(1) | B56: Management report- Quarterly Report | C56: Written | D56: 25% | E56: 4 | F56: 4 | G56: 16 | H56: 4.00 | I56: 64 | J56: ='12 Est Prof Wage Rate'!$G$35 -> $75.00 | K56: $4,800
A57: 1780.57 (g) and (h) | B57: Evidence of Conformity with Drinking Water and Water Pollution Control Standards | C57: Written | D57: 100% | E57: 14 | F57: 1 | G57: 14 | H57: 1.00 | I57: 14 | J57: ='12 Est Prof Wage Rate'!$G$35 -> $75.00 | K57: $1,050
A58: 1780.63 | B58: Sewage Treatment Contract(s) | C58: Written | D58: 5% | E58: 1 | F58: 1 | G58: 1 | H58: 2.00 | I58: 2 | J58: ='12 Est Prof Wage Rate'!$G$35 -> $75.00 | K58: $150
B59: American Iron and Steel (AIS) Requirement Prior to Construction | C59: Written | D59: 100% | E59: 14 | F59: 1 | G59: 14 | H59: 8.00 | I59: 112 | J59: ='12 Est Prof Wage Rate'!$G$35 -> $75.00 | K59: $8,400
B60: Build America, Buy America Act (BABAA) Requirement Prior to Construction | C60: Written | D60: 100% | E60: 14 | F60: 1 | G60: 14 | H60: 16.00 | I60: 224 | J60: ='12 Est Prof Wage Rate'!$G$35 -> $75.00 | K60: $16,800
A61: ACTIONS DURING CONSTRUCTION (USES CONSTRUCTION DATA)
A62: 1780.57 | B62: Final operating permit(s) for the entire project components | C62: Written | D62: 100% | E62: 14 | F62: 1 | G62: =E62*F62 -> 14 | H62: 2.00 | I62: 28 | J62: ='12 Est Prof Wage Rate'!$G$35 -> $75.00 | K62: =IF((J62*I62)="","",(J62*I62)) -> $2,100
A63: 1780.61(a) | B63: Construction contract documents - EJCDC C-Series | C63: Written | D63: 84% | E63: 12 | F63: 1 | G63: 12 | H63: 8.00 | I63: 96 | J63: ='12 Est Prof Wage Rate'!$G$35 -> $75.00 | K63: $7,200
A64: 1780.61(a) | B64: Construction contract document - EJCDC C-522 for small projects | C64: Written | D64: 8% | E64: 1 | F64: 1 | G64: 1 | H64: 6.00 | I64: 6 | J64: ='12 Est Prof Wage Rate'!$G$35 -> $75.00 | K64: $450
A65: 1780.61(b) | B65: Certificate of Owner's Engineers Certifications | C65: Written | D65: 100% | E65: 14 | F65: 1 | G65: 14 | H65: 1.00 | I65: 14 | J65: ='12 Est Prof Wage Rate'!$G$35 -> $75.00 | K65: $1,050
A66: 1780.61(b) | B66: Certificate of Owner's Attorney Concurrence | C66: Written | D66: 100% | E66: 14 | F66: 1 | G66: 14 | H66: 8.00 | I66: 112 | J66: ='12 Est Prof Wage Rate'!$G$35 -> $75.00 | K66: $8,400
A67: 1780.70 | B67: Owner's Solicitation and Review of Offers - Competitive Sealed Bids | C67: Written | D67: 54% | E67: 8 | F67: 1 | G67: 8 | H67: 10.00 | I67: 80 | J67: ='12 Est Prof Wage Rate'!$G$35 -> $75.00 | K67: $6,000
A68: 1780.70 | B68: Owner's Solicitation and Review of Offers - Noncompetitive proposals | C68: Written | D68: 8% | E68: 1 | F68: 1 | G68: 1 | H68: 10.00 | I68: 10 | J68: ='12 Est Prof Wage Rate'!$G$35 -> $75.00 | K68: $750
A69: 1780.70 | B69: Owner's Solicitation and Review of Offers - Alternative Delivery Methods | C69: Written | D69: 0% | E69: 0 | F69: 1 | G69: 0 | H69: 10.00 | I69: 0 | J69: ='12 Est Prof Wage Rate'!$G$35 -> $75.00 | K69: $0
A70: 1780.70 | B70: Owner's Solicitation and Review of Offers - Small Projects | C70: Written | D70: 30% | E70: 4 | F70: 1 | G70: 4 | H70: 8.00 | I70: 32 | J70: ='12 Est Prof Wage Rate'!$G$35 -> $75.00 | K70: $2,400
A71: 1780.70 | B71: Owner's Solicitation and Review of Offers - Micro Purchases | C71: Written | D71: 8% | E71: 1 | F71: 1 | G71: 1 | H71: 4.00 | I71: 4 | J71: ='12 Est Prof Wage Rate'!$G$35 -> $75.00 | K71: $300
A72: 1780.74 | B72: Contracts awarded prior to application | C72: Written | D72: 8% | E72: 1 | F72: 1 | G72: 1 | H72: 2.00 | I72: 2 | J72: ='12 Est Prof Wage Rate'!$G$35 -> $75.00 | K72: $150
A73: 1780.76 (a) | B73: Pre-Construction Conference | C73: Written | D73: 100% | E73: 14 | F73: 1 | G73: 14 | H73: 4.00 | I73: 56 | J73: ='12 Est Prof Wage Rate'!$G$35 -> $75.00 | K73: $4,200
A74: 1780.76(b) | B74: Monitoring Construction- Owner's Report | C74: Written | D74: 100% | E74: 14 | F74: 12 | G74: 168 | H74: 2.00 | I74: 336 | J74: ='12 Est Prof Wage Rate'!$G$35 -> $75.00 | K74: $25,200
A75: 1780.76(c) | B75: Resident inspector resume | C75: Written | D75: 100% | E75: 14 | F75: 1 | G75: 14 | H75: 1.00 | I75: 14 | J75: ='12 Est Prof Wage Rate'!$G$35 -> $75.00 | K75: $1,050
A76: 1780.76(d) | B76: Daily inspection report | C76: Written | D76: 100% | E76: 14 | F76: 12 | G76: 168 | H76: 0.50 | I76: 84 | J76: ='12 Est Prof Wage Rate'!$G$35 -> $75.00 | K76: $6,300
B77: Evidence that as built plans have been delivered to Owner | C77: Written | D77: 100% | E77: 14 | F77: 1 | G77: 14 | H77: 1.00 | I77: 14 | J77: ='12 Est Prof Wage Rate'!$G$35 -> $75.00 | K77: $1,050
B78: Domestic Preference De Minimis List | C78: Written | D78: 50% | E78: 7 | F78: 1 | G78: 7 | H78: 3.00 | I78: 21 | J78: ='12 Est Prof Wage Rate'!$G$35 -> $75.00 | K78: $1,575
B79: Contractor's Certification of Compliance for AIS and/or BABAA | C79: Written | D79: 100% | E79: 14 | F79: 1 | G79: 14 | H79: 0.50 | I79: =ROUND((G79*H79),0) -> 7 | J79: ='12 Est Prof Wage Rate'!$G$35 -> $75.00 | K79: $525
B80: Manufacturer's Certification of Compliance | C80: Written | D80: 100% | E80: 14 | F80: 1 | G80: 14 | H80: 0.50 | I80: 7 | J80: ='12 Est Prof Wage Rate'!$G$35 -> $75.00 | K80: $525
B81: AIS and BABAA Requirements during/post construction | C81: Written | D81: 100% | E81: 14 | F81: 1 | G81: 14 | H81: 4.00 | I81: 56 | J81: ='12 Est Prof Wage Rate'!$G$35 -> $75.00 | K81: $4,200
A82: RECORDKEEPING
A83: 1780.47(c) | B83: Borrower shall maintain accounting records for 3 years | C83: Written | D83: 100% | E83: 14 | F83: 1 | G83: =E83*F83 -> 14 | H83: 1.00 | I83: 14 | J83: ='12 Est Prof Wage Rate'!$G$35 -> $75.00 | K83: =IF((J83*I83)="","",(J83*I83)) -> $1,050

Sheet 12 Not Inc in BH RAVG-Reg
A1: ='12 BH Collection WWLG'!A1 -> RURAL UTILITIES SERVICE
A2: ='12 BH Collection WWLG'!A2 -> WATER AND WASTE LOAN AND GRANT PROGRAM
A3: ='12 BH Collection RAVG-Reg'!A3 -> RURAL AND NATIVE ALASKAN VILLAGES GRANTS (RAVG-REGULAR)
A4: ='12 BH Collection WWLG'!A3 -> INFORMATION COLLECTION BURDEN HOURS
A5: ='12 BH Collection WWLG'!A4 -> OMB # 0572 - 0121
A6: ='12 BH Collection WWLG'!A5 -> 2024-11-18
A8: Estimated No. of Total Respondents (Applicants) | C8: ='12 BH Collection RAVG-Reg'!C8 -> 23 | J8: Estimated No. of Total Awards (Awardees) | K8: ='12 BH Collection RAVG-Reg'!K8 -> 14
A9: Average hours per response | C9: =I10/G10 -> 0.844 | J9: Number of responses per respondent | K9: =G10/C8 -> 30.13
A10: Gray Columns have automatic formulas. DO NOT input numbers in these columns. | F10: TOTAL | G10: =SUM(G14:G36) -> 693 | I10: =SUM(I14:I36) -> 585 | K10: =SUM(K14:K36) -> $43,875
A11: (A) | B11: (B) | C11: (C) | D11: (D) | E11: (E) | F11: (F) | G11: (G) | H11: (H) | I11: (I) | J11: (J) | K11: (K)
A12: Regulation Reference | B12: Title | C12: Form No. (If Any) | D12: % of Respondents Line Item is Applicable To | E12: Estimated # of Respondents | F12: Reports Filed Annually | G12: Total Responses (E) x (F) | H12: Estimated # of Hours Per Response | I12: Estimated Total Hours (G) x (H) | J12: Prof. Wage Rate | K12: Total Cost (I) x (J)
A13: APPLICATION/ELGIBILITY
A14: 1780.33(a) | B14: Application for Federal Assistance- Initial Application | C14: SF 424 (4040-0004) | D14: 100% | E14: =ROUND((D14*$C$8),0) -> 23 | F14: 2 | G14: =E14*F14 -> 46 | H14: 1.00 | I14: =ROUND((G14*H14),0) -> 46 | J14: ='12 Est Prof Wage Rate'!$G$35 -> $75.00 | K14: =IF((J14*I14)="","",(J14*I14)) -> $3,450
A15: 1780.33(a) | B15: Budget Information--Construction Programs | C15: SF-424C (4040-0008) | D15: 100% | E15: =ROUND((D15*$C$8),0) -> 23 | F15: 2 | G15: =E15*F15 -> 46 | H15: 1.00 | I15: =ROUND((G15*H15),0) -> 46 | J15: ='12 Est Prof Wage Rate'!$G$35 -> $75.00 | K15: =IF((J15*I15)="","",(J15*I15)) -> $3,450
A16: 1780.33(h)(1) | B16: Operating Budget | C16: RD 442-7 (0575-0015) | D16: 100% | E16: 23 | F16: 1 | G16: 23 | H16: 5.00 | I16: 115 | J16: ='12 Est Prof Wage Rate'!$G$35 -> $75.00 | K16: $8,625
A17: 1780.33(h)(3) | B17: Equal Opportunity Agreement | C17: RD 400-1 (0575-0201) | D17: 100% | E17: 23 | F17: 1 | G17: 23 | H17: =10/60 -> 0.17 | I17: 4 | J17: ='12 Est Prof Wage Rate'!$G$35 -> $75.00 | K17: $300
A18: 1780.33(h)(4) | B18: Assurance Agreement | C18: RD 400-4 (0575-0201) | D18: 100% | E18: 23 | F18: 1 | G18: 23 | H18: 0.25 | I18: 6 | J18: ='12 Est Prof Wage Rate'!$G$35 -> $75.00 | K18: $450
A19: 1780.39(f) | B19: Resolution of Members or Stockholders | C19: RD 1942-8 (0575-0015) | D19: 10% | E19: 2 | F19: 1 | G19: =E19*F19 -> 2 | H19: 1.00 | I19: 2 | J19: ='12 Est Prof Wage Rate'!$G$35 -> $75.00 | K19: =IF((J19*I19)="","",(J19*I19)) -> $150
A20: APPROVAL ACTIONS FOLLOWING OBLIGATION (USES OBLIGATION DATA)
A21: 1780.41(a)(3) | B21: Balance Sheet or Financial Statement | C21: RD 442-3 (0572-0137; 0575-0015, 0200) | D21: 100% | E21: =ROUND((D21*$K$8),0) -> 14 | F21: 1 | G21: =E21*F21 -> 14 | H21: 1.00 | I21: 14 | J21: ='12 Est Prof Wage Rate'!$G$35 -> $75.00 | K21: =IF((J21*I21)="","",(J21*I21)) -> $1,050
A22: 1780.41(a)(6) | B22: Letter of Intent to Meet Conditions | C22: RD 1942-46 (0572-0137; 0575-0015; 0570-0021, 0061, 0062) | D22: 100% | E22: =ROUND((D22*$K$8),0) -> 14 | F22: 1 | G22: =E22*F22 -> 14 | H22: 1.00 | I22: 14 | J22: ='12 Est Prof Wage Rate'!$G$35 -> $75.00 | K22: =IF((J22*I22)="","",(J22*I22)) -> $1,050
A23: 1780.41(a)(7) | B23: Request for Obligation of Funds | C23: RD 1940-1 (0570-0062, 0067) | D23: 100% | E23: 14 | F23: 1 | G23: =E23*F23 -> 14 | H23: 0.25 | I23: 4 | J23: ='12 Est Prof Wage Rate'!$G$35 -> $75.00 | K23: =IF((J23*I23)="","",(J23*I23)) -> $300
A24: 1780.44(c) | B24: Initial Compliance Review | C24: RD 400-8 (0570-0062; 0575-0018, 0189) | D24: 100% | E24: 14 | F24: 1 | G24: =E24*F24 -> 14 | H24: 8.00 | I24: 112 | J24: ='12 Est Prof Wage Rate'!$G$35 -> $75.00 | K24: =IF((J24*I24)="","",(J24*I24)) -> $8,400
A25: 1780.44(g)(1)(i) | B25: Opinion of Counsel Relative to Right-of-Way and Easements | C25: RD 442-22 (0575-0015) | D25: 100% | E25: 14 | F25: 1 | G25: =E25*F25 -> 14 | H25: 1.00 | I25: 14 | J25: ='12 Est Prof Wage Rate'!$G$35 -> $75.00 | K25: =IF((J25*I25)="","",(J25*I25)) -> $1,050
A26: 1780.44(g)(2) | B26: Preliminary Title Opinion | C26: RD 1927-9 (0575-0147, 0189) | D26: 100% | E26: 14 | F26: 1 | G26: =E26*F26 -> 14 | H26: 1.50 | I26: 21 | J26: ='12 Est Prof Wage Rate'!$G$35 -> $75.00 | K26: =IF((J26*I26)="","",(J26*I26)) -> $1,575
A27: 1780.44(g)(2) | B27: Final Title Opinion | C27: RD 1927-10 (0575-0147, 0189) | D27: 100% | E27: 14 | F27: 1 | G27: 14 | H27: =20/60 -> 0.33 | I27: 5 | J27: ='12 Est Prof Wage Rate'!$G$35 -> $75.00 | K27: $375
A28: 1780.47(f)(2) | B28: Statement of Budget, Income, and Equity | C28: RD 442-2 (0572-0137; 0575-0015, 0200) | D28: 100% | E28: 14 | F28: 1 | G28: 14 | H28: 2.50 | I28: 35 | J28: ='12 Est Prof Wage Rate'!$G$35 -> $75.00 | K28: $2,625
A29: 1780.62 & 63 | B29: Water Purchase Contract | C29: RD 442-30 (0575-0015) | D29: 10% | E29: 1 | F29: 1 | G29: 1 | H29: 1.00 | I29: 1 | J29: ='12 Est Prof Wage Rate'!$G$35 -> $75.00 | K29: $75
A30: ACTIONS DURING CONSTRUCTION (USES CONSTRUCTION DATA)
A31: 1780.61(a) | B31: Compliance Statement | C31: RD 400-6 (0575-0201) | D31: 100% | E31: 14 | F31: 1 | G31: =E31*F31 -> 14 | H31: =10/60 -> 0.17 | I31: 2 | J31: ='12 Est Prof Wage Rate'!$G$35 -> $75.00 | K31: =IF((J31*I31)="","",(J31*I31)) -> $150
A32: 1780.75 | B32: Contractor's Final Release and Waiver of Lien | C32: RD 1924-9 (0575-0042) | D32: 100% | E32: 14 | F32: 1 | G32: 14 | H32: 0.25 | I32: 4 | J32: ='12 Est Prof Wage Rate'!$G$35 -> $75.00 | K32: $300
A33: 1780.75 | B33: Release by Claimants | C33: RD 1924-10 (0575-0189) | D33: 100% | E33: 14 | F33: 1 | G33: 14 | H33: 0.25 | I33: 4 | J33: ='12 Est Prof Wage Rate'!$G$35 -> $75.00 | K33: $300
A34: 1780.76(e) | B34: Partial Payment Estimate | C34: RD 1924-18 (0575-0042,0189) | D34: 100% | E34: 14 | F34: 12 | G34: 168 | H34: 0.50 | I34: 84 | J34: ='12 Est Prof Wage Rate'!$G$35 -> $75.00 | K34: $6,300
A35: 1780.76(f) | B35: Inspection Report | C35: RD 1924-12 (0575-0042,0189) | D35: 100% | E35: 14 | F35: 12 | G35: 168 | H35: 0.25 | I35: 42 | J35: ='12 Est Prof Wage Rate'!$G$35 -> $75.00 | K35: $3,150
A36: 1780.76(h)(2) | B36: Contract Change Order | C36: RD 1924-7 (0575-0042) | D36: 95% | E36: 13 | F36: 3 | G36: 39 | H36: 0.25 | I36: 10 | J36: ='12 Est Prof Wage Rate'!$G$35 -> $75.00 | K36: $750

Sheet 12 BH Collection RAVG PPG
A1: ='12 BH Collection WWLG'!A1 -> RURAL UTILITIES SERVICE
A2: ='12 BH Collection WWLG'!A2 -> WATER AND WASTE LOAN AND GRANT PROGRAM
A3: RURAL AND NATIVE ALASKAN VILLAGES GRANTS - PREDEVELOPMENT PLANNING GRANTS (RAVG PPG)
A4: ='12 BH Collection WWLG'!A3 -> INFORMATION COLLECTION BURDEN HOURS
A5: ='12 BH Collection WWLG'!A4 -> OMB # 0572 - 0121
A6: ='12 BH Collection WWLG'!A5 -> 2024-11-18
A8: Estimated No. of Total Respondents (Applicants) | C8: 20 | J8: Estimated No. of Total Awards (Awardees) | K8: 20
A9: Average hours per response | C9: =I10/G10 -> 1.995 | J9: Number of responses per respondent | K9: =G10/C8 -> 18.20
A10: Gray Columns have automatic formulas. DO NOT input numbers in these columns. | F10: TOTAL | G10: =SUM(G14:G43) -> 364 | I10: =SUM(I14:I43) -> 726 | K10: =SUM(K14:K43) -> $54,450
A11: (A) | B11: (B) | C11: (C) | D11: (D) | E11: (E) | F11: (F) | G11: (G) | H11: (H) | I11: (I) | J11: (J) | K11: (K)
A12: Regulation Reference | B12: Title | C12: Form No. (If Any) | D12: % of Respondents Line Item is Applicable To | E12: Estimated # of Respondents | F12: Reports Filed Annually | G12: Total Responses (E) x (F) | H12: Estimated # of Hours Per Response | I12: Estimated Total Hours (G) x (H) | J12: Prof. Wage Rate | K12: Total Cost (I) x (J)
A13: APPLICATION/ELGIBILITY
A14: 1780.1(d) | B14: Documentation of Income Survey | C14: Written | D14: 5% | E14: =ROUND((D14*$C$8),0) -> 1 | F14: 1 | G14: =E14*F14 -> 1 | H14: 8.00 | I14: =ROUND((G14*H14),0) -> 8 | J14: ='12 Est Prof Wage Rate'!$G$35 -> $75.00 | K14: =IF((J14*I14)="","",(J14*I14)) -> $600
A15: 1780.1(f) | B15: Relationship or association ith RUS employees | C15: Written | D15: 100% | E15: =ROUND((D15*$C$8),0) -> 20 | F15: 1 | G15: =E15*F15 -> 20 | H15: 0.25 | I15: =ROUND((G15*H15),0) -> 5 | J15: ='12 Est Prof Wage Rate'!$G$35 -> $75.00 | K15: $375
A16: 1780.1(h) | B16: Evidence proposed facility will be consistent with development plans | C16: Written | D16: 100% | E16: 20 | F16: 1 | G16: 20 | H16: 1.00 | I16: 20 | J16: ='12 Est Prof Wage Rate'!$G$35 -> $75.00 | K16: $1,500
A17: 1780.7(d) & 1780.33(d) | B17: Statement of availability to obtain credit elsewhere | C17: Written | D17: 100% | E17: 20 | F17: 1 | G17: 20 | H17: 1.00 | I17: 20 | J17: ='12 Est Prof Wage Rate'!$G$35 -> $75.00 | K17: $1,500
A18: 1780.7(g) | B18: Evidence No Outstanding Judgement Obtained | C18: Written | D18: 100% | E18: 20 | F18: 1 | G18: 20 | H18: 0.25 | I18: 5 | J18: ='12 Est Prof Wage Rate'!$G$35 -> $75.00 | K18: $375
A19: 1780.11(a)(2) | B19: Notification of service statement | C19: Written | D19: 15% | E19: 3 | F19: 1 | G19: 3 | H19: 1.00 | I19: 3 | J19: ='12 Est Prof Wage Rate'!$G$35 -> $75.00 | K19: $225
A20: 1780.19 | B20: Evidence of Public Notice of Intent | C20: Written | D20: 100% | E20: 20 | F20: 1 | G20: 20 | H20: 2.00 | I20: 40 | J20: ='12 Est Prof Wage Rate'!$G$35 -> $75.00 | K20: $3,000
A21: 1780.33(b) | B21: Intergovernmental comments | C21: Written | D21: 100% | E21: 20 | F21: 1 | G21: 20 | H21: 1.00 | I21: 20 | J21: ='12 Est Prof Wage Rate'!$G$35 -> $75.00 | K21: $1,500
A22: 1780.33(c) | B22: Preliminary engineering report | C22: Written | D22: 0% | E22: 0 | F22: 1 | G22: 0 | H22: 40.00 | I22: 0 | J22: ='12 Est Prof Wage Rate'!$G$35 -> $75.00 | K22: $0
A23: 1780.33(e) | B23: Supporting documentation | C23: Written | D23: 100% | E23: 20 | F23: 1 | G23: 20 | H23: 4.00 | I23: 80 | J23: ='12 Est Prof Wage Rate'!$G$35 -> $75.00 | K23: $6,000
A24: 1780.33(f) | B24: Environmental Documentation - Categorical exclusion without report | C24: Written | D24: 100% | E24: 20 | F24: 1 | G24: 20 | H24: 1.00 | I24: 20 | J24: ='12 Est Prof Wage Rate'!$G$35 -> $75.00 | K24: $1,500
A25: 1780.33(f) | B25: Environmental Documentation - Categorical exclusion with report | C25: Written | D25: 0% | E25: 0 | F25: 1 | G25: 0 | H25: 20.00 | I25: 0 | J25: ='12 Est Prof Wage Rate'!$G$35 -> $75.00 | K25: $0
A26: 1780.33(f) | B26: Environmental Documentation - Environmental Assessment | C26: Written | D26: 0% | E26: 0 | F26: 1 | G26: 0 | H26: 50.00 | I26: 0 | J26: ='12 Est Prof Wage Rate'!$G$35 -> $75.00 | K26: $0
A27: 1780.33(f) | B27: Environmental Documentation - Environmental Impact Statement | C27: Written | D27: 0% | E27: 0 | F27: 1 | G27: 0 | H27: 150.00 | I27: 0 | J27: ='12 Est Prof Wage Rate'!$G$35 -> $75.00 | K27: $0
A28: 1780.33(h)(7) | B28: Certification for Contracts, Grants, and Loans (Regarding Lobbying) | C28: Written | D28: 100% | E28: 20 | F28: 1 | G28: 20 | H28: 0.25 | I28: 5 | J28: ='12 Est Prof Wage Rate'!$G$35 -> $75.00 | K28: $375
A29: 1780.39(b)(1) | B29: Agreement for Engineering Services - Agency standard - EJCDC E-500 | C29: Written | D29: 0% | E29: 0 | F29: 1 | G29: 0 | H29: 8.00 | I29: 0 | J29: ='12 Est Prof Wage Rate'!$G$35 -> $75.00 | K29: =IF((J29*I29)="","",(J29*I29)) -> $0
A30: 1780.39(b)(1) | B30: Agreement for Engineering Services - Agency standard - EJCDC E-520 | C30: Written | D30: 0% | E30: 0 | F30: 1 | G30: 0 | H30: 6.00 | I30: 0 | J30: ='12 Est Prof Wage Rate'!$G$35 -> $75.00 | K30: =IF((J30*I30)="","",(J30*I30)) -> $0
A31: 1780.39(b)(1) | B31: Agreement for Engineering Services - Agency standard - EJCDC E-525 | C31: Written | D31: 100% | E31: 20 | F31: 1 | G31: 20 | H31: 6.00 | I31: 120 | J31: ='12 Est Prof Wage Rate'!$G$35 -> $75.00 | K31: $9,000
A32: 1780.39(b)(1) | B32: Agreement for Engineering and/or Architectural Services - Agency non-standard | C32: Written | D32: 0% | E32: 0 | F32: 1 | G32: 0 | H32: 6.00 | I32: 0 | J32: ='12 Est Prof Wage Rate'!$G$35 -> $75.00 | K32: $0
B33: SAM Registration | C33: Written | D33: 100% | E33: 20 | F33: 1 | G33: 20 | H33: 2.00 | I33: 40 | J33: ='12 Est Prof Wage Rate'!$G$35 -> $75.00 | K33: $3,000
A34: APPROVAL/ACTIONS FOLLOWING OBLIGATION (USES OBLIGATION DATA)
A35: 1780.41(a)(5) | B35: Letter of Conditions | C35: Written | D35: 100% | E35: =ROUND((D35*$K$8),0) -> 20 | F35: 1 | G35: 20 | H35: 1.00 | I35: 20 | J35: ='12 Est Prof Wage Rate'!$G$35 -> $75.00 | K35: =IF((J35*I35)="","",(J35*I35)) -> $1,500
A36: 1780.44(b) | B36: Verification of Applicant Contribution | C36: Written | D36: 100% | E36: =ROUND((D36*$K$8),0) -> 20 | F36: 1 | G36: 20 | H36: 1.00 | I36: 20 | J36: ='12 Est Prof Wage Rate'!$G$35 -> $75.00 | K36: $1,500
A37: 1780.44(f) | B37: Evidence of other funds | C37: Written | D37: 100% | E37: 20 | F37: 1 | G37: 20 | H37: 1.00 | I37: 20 | J37: ='12 Est Prof Wage Rate'!$G$35 -> $75.00 | K37: $1,500
A38: 1780.45(c) | B38: Water and Waste System Grant Agreement | C38: Written | D38: 100% | E38: 20 | F38: 1 | G38: 20 | H38: 1.00 | I38: 20 | J38: ='12 Est Prof Wage Rate'!$G$35 -> $75.00 | K38: $1,500
A39: 1780.47(d) & (e ) | B39: Audits and Year-End Financial Reports | C39: Written | D39: 100% | E39: 20 | F39: 1 | G39: 20 | H39: 8.00 | I39: 160 | J39: ='12 Est Prof Wage Rate'!$G$35 -> $75.00 | K39: $12,000
A40: 1780.47(f)(1) | B40: Management report- Quarterly Report | C40: Written | D40: 25% | E40: 5 | F40: 4 | G40: 20 | H40: 4.00 | I40: 80 | J40: ='12 Est Prof Wage Rate'!$G$35 -> $75.00 | K40: $6,000
A41: ACTIONS DURING CONSTRUCTION (USES CONSTRUCTION DATA)
A42: RECORDKEEPING
A43: 1780.47(c) | B43: Borrower shall maintain accounting records for 3 years | C43: Written | D43: 100% | E43: =ROUND((D43*$K$8),0) -> 20 | F43: 1 | G43: =E43*F43 -> 20 | H43: 1.00 | I43: =ROUND((G43*H43),0) -> 20 | J43: ='12 Est Prof Wage Rate'!$G$35 -> $75.00 | K43: =IF((J43*I43)="","",(J43*I43)) -> $1,500

Sheet 12 Not Inc in BH RAVG PPG
A1: ='12 BH Collection WWLG'!A1 -> RURAL UTILITIES SERVICE
A2: ='12 BH Collection WWLG'!A2 -> WATER AND WASTE LOAN AND GRANT PROGRAM
A3: ='12 BH Collection RAVG PPG'!A3 -> RURAL AND NATIVE ALASKAN VILLAGES GRANTS - PREDEVELOPMENT PLANNING GRANTS (RAVG PPG)
A4: ='12 BH Collection WWLG'!A3 -> INFORMATION COLLECTION BURDEN HOURS
A5: ='12 BH Collection WWLG'!A4 -> OMB # 0572 - 0121
A6: ='12 BH Collection WWLG'!A5 -> 2024-11-18
A8: Estimated No. of Total Respondents (Applicants) | C8: 20 | J8: Estimated No. of Total Awards (Awardees) | K8: 20
A9: Average hours per response | C9: =I10/G10 -> 2.005 | J9: Number of responses per respondent | K9: =G10/C8 -> 10.10
A10: Gray Columns have automatic formulas. DO NOT input numbers in these columns. | F10: TOTAL | G10: =SUM(G14:G25) -> 202 | I10: =SUM(I14:I25) -> 405 | K10: =SUM(K14:K25) -> $30,375
A11: (A) | B11: (B) | C11: (C) | D11: (D) | E11: (E) | F11: (F) | G11: (G) | H11: (H) | I11: (I) | J11: (J) | K11: (K)
A12: Regulation Reference | B12: Title | C12: Form No. (If Any) | D12: % of Respondents Line Item is Applicable To | E12: Estimated # of Respondents | F12: Reports Filed Annually | G12: Total Responses (E) x (F) | H12: Estimated # of Hours Per Response | I12: Estimated Total Hours (G) x (H) | J12: Prof. Wage Rate | K12: Total Cost (I) x (J)
A13: APPLICATION/ELGIBILITY
A14: 1780.33(a) | B14: Application for Federal Assistance- Initial Application | C14: SF 424 (4040-0004) | D14: 100% | E14: =ROUND((D14*$C$8),0) -> 20 | F14: 1 | G14: =E14*F14 -> 20 | H14: 1.00 | I14: =ROUND((G14*H14),0) -> 20 | J14: ='12 Est Prof Wage Rate'!$G$35 -> $75.00 | K14: =IF((J14*I14)="","",(J14*I14)) -> $1,500
A15: 1780.33(a) | B15: Budget Information--Non-Construction Programs | C15: SF-424A (4040-0006) | D15: 100% | E15: =ROUND((D15*$C$8),0) -> 20 | F15: 1 | G15: =E15*F15 -> 20 | H15: 1.00 | I15: =ROUND((G15*H15),0) -> 20 | J15: ='12 Est Prof Wage Rate'!$G$35 -> $75.00 | K15: =IF((J15*I15)="","",(J15*I15)) -> $1,500
A16: 1780.33(h)(1) | B16: Operating Budget | C16: RD 442-7 (0575-0015) | D16: 100% | E16: 20 | F16: 1 | G16: 20 | H16: 5.00 | I16: 100 | J16: ='12 Est Prof Wage Rate'!$G$35 -> $75.00 | K16: $7,500
A17: 1780.33(h)(3) | B17: Equal Opportunity Agreement | C17: RD 400-1 (0575-0201) | D17: 100% | E17: 20 | F17: 1 | G17: 20 | H17: =10/60 -> 0.17 | I17: 3 | J17: ='12 Est Prof Wage Rate'!$G$35 -> $75.00 | K17: $225
A18: 1780.33(h)(4) | B18: Assurance Agreement | C18: RD 400-4 (0575-0201) | D18: 100% | E18: 20 | F18: 1 | G18: 20 | H18: 0.25 | I18: 5 | J18: ='12 Est Prof Wage Rate'!$G$35 -> $75.00 | K18: $375
A19: 1780.39(f) | B19: Resolution of Members or Stockholders | C19: RD 1942-8 (0575-0015) | D19: 10% | E19: 2 | F19: 1 | G19: 2 | H19: 1.00 | I19: 2 | J19: ='12 Est Prof Wage Rate'!$G$35 -> $75.00 | K19: =IF((J19*I19)="","",(J19*I19)) -> $150
A20: APPROVAL ACTIONS FOLLOWING OBLIGATION (USES OBLIGATION DATA)
A21: 1780.41(a)(3) | B21: Balance Sheet or Financial Statement | C21: RD 442-3 (0572-0137; 0575-0015, 0200) | D21: 100% | E21: =ROUND((D21*$K$8),0) -> 20 | F21: 1 | G21: =E21*F21 -> 20 | H21: 1.00 | I21: 20 | J21: ='12 Est Prof Wage Rate'!$G$35 -> $75.00 | K21: =IF((J21*I21)="","",(J21*I21)) -> $1,500
A22: 1780.41(a)(6) | B22: Letter of Intent to Meet Conditions | C22: RD 1942-46 (0572-0137; 0575-0015; 0570-0021, 0061, 0062) | D22: 100% | E22: =ROUND((D22*$K$8),0) -> 20 | F22: 1 | G22: 20 | H22: 1.00 | I22: 20 | J22: ='12 Est Prof Wage Rate'!$G$35 -> $75.00 | K22: =IF((J22*I22)="","",(J22*I22)) -> $1,500
A23: 1780.41(a)(7) | B23: Request for Obligation of Funds | C23: RD 1940-1 (0570-0062, 0067) | D23: 100% | E23: 20 | F23: 1 | G23: 20 | H23: 0.25 | I23: 5 | J23: ='12 Est Prof Wage Rate'!$G$35 -> $75.00 | K23: =IF((J23*I23)="","",(J23*I23)) -> $375
A24: 1780.44(c) | B24: Initial Compliance Review | C24: RD 400-8 (0570-0062; 0575-0018, 0189) | D24: 100% | E24: 20 | F24: 1 | G24: 20 | H24: 8.00 | I24: 160 | J24: ='12 Est Prof Wage Rate'!$G$35 -> $75.00 | K24: =IF((J24*I24)="","",(J24*I24)) -> $12,000
A25: 1780.47(f)(2) | B25: Statement of Budget, Income, and Equity | C25: RD 442-2 (0572-0137; 0575-0015, 0200) | D25: 100% | E25: 20 | F25: 1 | G25: 20 | H25: 2.50 | I25: 50 | J25: ='12 Est Prof Wage Rate'!$G$35 -> $75.00 | K25: =IF((J25*I25)="","",(J25*I25)) -> $3,750
A26: ACTIONS DURING CONSTRUCTION (USES CONSTRUCTION DATA)

Sheet 12 Est Prof Wage Rate
A1: ='12 BH Collection WWLG'!A1 -> RURAL UTILITIES SERVICE
A2: ='12 BH Collection WWLG'!A2 -> WATER AND WASTE LOAN AND GRANT PROGRAM
A3: ='12 BH Collection WWLG'!A3 -> INFORMATION COLLECTION BURDEN HOURS
A4: ='12 BH Collection WWLG'!A4 -> OMB # 0572 - 0121
A5: ='12 BH Collection WWLG'!A5 -> 2024-11-18
A7: Instructions:
A8: 1. Use the U.S. Bureau of Labor Statistics Occupational Emplyment and Wage Statistics Link below to complete Columns A, B, C for the table below.
A9: a. Click the link: | B9: https://www.bls.gov/oes/tables.htm
A10: b. Under the latest Month Year (May 2023) click Occupation Profiles
A11: c. Use the Occupational Titles to choose which professions (A) need to be added to the table below. You can more than one occupation or just one.
A12: d. The code in front of each Occupational Title is the Occupation Code that goes in (B) for the table below.
A13: e. When you click on each Occupational Titles, choose the Mean Hourly Wage to input in (C) for the table below.
A14: 2. Use the U.S. Bureau of Labor Economic News Release, Employer Costs for Employee Compension to complete Column D for the table below.
A15: a. Click the link: | B15: https://www.bls.gov/news.release/ecec.toc.htm
A16: b. Choose "The PDF verison of the news release" link
A17: c. The latest (June 18, 2024) News Release for Employer Costs for Employee Compensation - March 2024 opens in separate tab.
A18: d. On first page, second paragraph use the benefit costs % of: | D18: 29.70%
A19: 3. For each profession fill in the % for (F). The total for the column should be 100%.
A20: a. Note that if there is only one profession then (F) would be 100%.
A22: Gray Columns have automatic formulas. DO NOT input numbers in these columns.
A23: (A) | B23: (B) | C23: (C) | D23: (D) | E23: (E) | F23: (F) | G23: (G)
A24: Profession | B24: Bureau of Labor Occupation Code 1.d | C24: Mean Wage 1.e | D24: Benefits 2 (C) * (2.d) | E24: Total Hourly Wage (C ) + (D) | F24: % Time Spent on Burden | G24: Weighted Hourly Salary (E) * (F)
A25: General and Operations Manager | B25: 11-1021 | C25: $62.18 | D25: =IF(C25=0,"",(C25*$D$18)) -> $18.47 | E25: =IF(SUM(C25:D25)=0,"",SUM(C25:D25)) -> $80.65 | F25: 60% | G25: =ROUND(IF(E25="","",(E25*F25)),1) -> $48.40
A26: Civil Engineers | B26: 17-2051 | C26: $48.64 | D26: =IF(C26=0,"",(C26*$D$18)) -> $14.45 | E26: =IF(SUM(C26:D26)=0,"",SUM(C26:D26)) -> $63.09 | F26: 20% | G26: =ROUND(IF(E26="","",(E26*F26)),1) -> $12.60
A27: Lawyers | B27: 23-1011 | C27: $84.84 | D27: =IF(C27=0,"",(C27*$D$18)) -> $25.20 | E27: =IF(SUM(C27:D27)=0,"",SUM(C27:D27)) -> $110.04 | F27: 10% | G27: $11.00
A28: Court, Municipal, and License Clerks | B28: 43-4031 | C28: $23.44 | D28: =IF(C28=0,"",(C28*$D$18)) -> $6.96 | E28: =IF(SUM(C28:D28)=0,"",SUM(C28:D28)) -> $30.40 | F28: 10% | G28: $3.00
A35: TOTAL | D35: =IF(C35=0,"",(C35*#REF!)) ->  | F35: =SUM(F25:F34) -> 100% | G35: =SUM(G25:G34) -> $75.00

Sheet 14 Ann Cost to Fed Gov Est WWLG
A1: ='12 BH Collection WWLG'!A1 -> RURAL UTILITIES SERVICE
A2: ='12 BH Collection WWLG'!A2 -> WATER AND WASTE LOAN AND GRANT PROGRAM
A3: ='12 BH Collection WWLG'!A3 -> INFORMATION COLLECTION BURDEN HOURS
A4: ='12 BH Collection WWLG'!A4 -> OMB # 0572 - 0121
A5: ='12 BH Collection WWLG'!A5 -> 2024-11-18
A7: 1. OPM GS & SES Pay Tables:
A8: Click Link | B8: Pay & Leave (opm.gov)
A9: Click "pay tables" from first paragraph
A10: Click current Year at top under Salaries & Wages
A12: a. OPM GS Pay Tables: Under "General Schedule (GS) & Locality Pay Tables" click 20## GS Pay Tables (ex. 2024 GS Pay Tables)
A13: Then choose Annual Rate Table for St. Louis - St. Charles - Farmington, MO-IL
A15: b. OPM SES Schedules: Under "Executive & Senior Level Employee Pay Tables" click "Rates of Pay for the Executive Schedule"
A16: Then choose Annual Rate Table for Basic Rates of Pay for Members of the Senior Executive Service.
A18: 2. Benefit % (OMB Memo M-08 13) | B18: https://www.whitehouse.gov/wp-content/uploads/legacy_drupal_files/omb/memoranda/2008/m08-13.pdf | K18: 36.25%
A20: Gray & Blue Columns have automatic formulas. DO NOT input numbers in these columns. | G20: Total | H20: =H22+H30+H37 -> 686 | I20: =I22+I30+I37 -> $45,728 | K20: =K22+K30+K37 -> $16,517,259
A21: Staff Position | B21: GS Grade | C21: GS Step | D21: GS Salary | E21: Hourly Rate Calc | F21: Benefits Calc | G21: Total Salary Rate Calc | H21: Hours Required | I21: Cost Subtotals | J21: # of Responses | K21: Total Costs
A22: Application/Elgibility | H22: =SUM(H23:H29) -> 268.00 | I22: =SUM(I23:I29) -> $17,987 | J22: ='12 BH Collection WWLG'!C7 -> 525 | K22: =ROUND((J22*I22),0) -> $9,443,371
A23: Loan Technician - Field Office | B23: 7 | C23: 5 | D23: $56,898 | E23: =(D23/52)/40 -> $27.35 | F23: =E23*$K$18 -> $9.92 | G23: =E23+F23 -> $37.27 | H23: 8.00 | I23: =H23*G23 -> $298.17
A24: Loan Specialist - Field Office | B24: 12 | C24: 5 | D24: $100,926 | E24: =(D24/52)/40 -> $48.52 | F24: =E24*$K$18 -> $17.59 | G24: =E24+F24 -> $66.11 | H24: 100.00 | I24: =H24*G24 -> $6,611.14
A25: Program Director - State Office | B25: 13 | C25: 5 | D25: $120,018 | E25: =(D25/52)/40 -> $57.70 | F25: =E25*$K$18 -> $20.92 | G25: =E25+F25 -> $78.62 | H25: 20.00 | I25: =H25*G25 -> $1,572.35
A26: Loan Specialist - State Office | B26: 12 | C26: 5 | D26: $100,926 | E26: $48.52 | F26: $17.59 | G26: $66.11 | H26: 40.00 | I26: $2,644.46
A27: State Engineer - State Office | B27: 12 | C27: 5 | D27: $100,926 | E27: $48.52 | F27: $17.59 | G27: $66.11 | H27: 40.00 | I27: $2,644.46
A28: State Environmental Coordinator - State Office | B28: 12 | C28: 5 | D28: $100,926 | E28: $48.52 | F28: $17.59 | G28: $66.11 | H28: 40.00 | I28: $2,644.46
A29: Loan Specialist - National Office | B29: 13 | C29: 5 | D29: $120,018 | E29: $57.70 | F29: $20.92 | G29: $78.62 | H29: 20.00 | I29: $1,572.35
A30: Approval Actions Following Obligation | H30: =SUM(H31:H36) -> 188.00 | I30: =SUM(I31:I36) -> $12,573 | J30: ='12 BH Collection WWLG'!$K$7 -> 255 | K30: =ROUND((J30*I30),0) -> $3,206,217
A31: Loan Technician - Field Office | B31: 7 | C31: 5 | D31: $56,898 | E31: =(D31/52)/40 -> $27.35 | F31: =E31*$K$18 -> $9.92 | G31: =E31+F31 -> $37.27 | H31: 8.00 | I31: =H31*G31 -> $298.17
A32: Loan Specialist - Field Office | B32: 12 | C32: 5 | D32: $100,926 | E32: =(D32/52)/40 -> $48.52 | F32: =E32*$K$18 -> $17.59 | G32: =E32+F32 -> $66.11 | H32: 100.00 | I32: =H32*G32 -> $6,611.14
A33: Program Director - State Office | B33: 13 | C33: 5 | D33: $120,018 | E33: =(D33/52)/40 -> $57.70 | F33: =E33*$K$18 -> $20.92 | G33: =E33+F33 -> $78.62 | H33: 20.00 | I33: $1,572.35
A34: Loan Specialist - State Office | B34: 12 | C34: 5 | D34: $100,926 | E34: $48.52 | F34: $17.59 | G34: $66.11 | H34: 40.00 | I34: $2,644.46
A35: State Engineer - State Office | B35: 12 | C35: 5 | D35: $100,926 | E35: $48.52 | F35: $17.59 | G35: $66.11 | H35: 10.00 | I35: $661.11
A36: Loan Specialist - National Office | B36: 13 | C36: 5 | D36: $120,018 | E36: $57.70 | F36: $20.92 | G36: $78.62 | H36: 10.00 | I36: $786.18
A37: Actions During Construction | H37: =SUM(H38:H42) -> 230.00 | I37: =SUM(I38:I42) -> $15,167 | J37: ='12 BH Collection WWLG'!$K$7 -> 255 | K37: =ROUND((J37*I37),0) -> $3,867,671
A38: Loan Technician - Field Office | B38: 7 | C38: 5 | D38: $56,898 | E38: =(D38/52)/40 -> $27.35 | F38: =E38*$K$18 -> $9.92 | G38: =E38+F38 -> $37.27 | H38: 10.00 | I38: =H38*G38 -> $372.71
A39: Loan Specialist - Field Office | B39: 12 | C39: 5 | D39: $100,926 | E39: =(D39/52)/40 -> $48.52 | F39: =E39*$K$18 -> $17.59 | G39: =E39+F39 -> $66.11 | H39: 100.00 | I39: $6,611.14
A40: Program Director - State Office | B40: 13 | C40: 5 | D40: $120,018 | E40: =(D40/52)/40 -> $57.70 | F40: =E40*$K$18 -> $20.92 | G40: $78.62 | H40: 20.00 | I40: $1,572.35
A41: Loan Specialist - State Office | B41: 12 | C41: 5 | D41: $100,926 | E41: =(D41/52)/40 -> $48.52 | F41: =E41*$K$18 -> $17.59 | G41: =E41+F41 -> $66.11 | H41: 20.00 | I41: $1,322.23
A42: State Engineer - State Office | B42: 12 | C42: 5 | D42: $100,926 | E42: $48.52 | F42: $17.59 | G42: $66.11 | H42: 80.00 | I42: $5,288.91

Sheet 14 Ann Cost toFedGovEst WWPPG
A1: ='12 BH Collection WWLG'!A1 -> RURAL UTILITIES SERVICE
A2: ='12 BH Collection WWLG'!A2 -> WATER AND WASTE LOAN AND GRANT PROGRAM
A3: ='12 BH Collection WWPPG'!A3 -> PREDEVELOPMENT PLANNING GRANTS (PPG)
A4: ='12 BH Collection WWLG'!A3 -> INFORMATION COLLECTION BURDEN HOURS
A5: ='12 BH Collection WWLG'!A4 -> OMB # 0572 - 0121
A6: ='12 BH Collection WWLG'!A5 -> 2024-11-18
A8: 1. OPM GS & SES Pay Tables:
A9: Click Link | B9: Pay & Leave (opm.gov)
A10: Click "pay tables" from first paragraph
A11: Click current Year at top under Salaries & Wages
A13: a. OPM GS Pay Tables: Under "General Schedule (GS) & Locality Pay Tables" click 20## GS Pay Tables (ex. 2024 GS Pay Tables)
A14: Then choose Annual Rate Table for St. Louis - St. Charles - Farmington, MO-IL
A16: b. OPM SES Schedules: Under "Executive & Senior Level Employee Pay Tables" click "Rates of Pay for the Executive Schedule"
A17: Then choose Annual Rate Table for Basic Rates of Pay for Members of the Senior Executive Service.
A19: 2. Benefit % (OMB Memo M-08 13) | B19: https://www.whitehouse.gov/wp-content/uploads/legacy_drupal_files/omb/memoranda/2008/m08-13.pdf | K19: 36.25%
A21: Gray & Blue Columns have automatic formulas. DO NOT input numbers in these columns. | G21: Total | H21: =H23+H31+H38 -> 456 | I21: =I23+I31+I38 -> $30,561 | K21: =K23+K31+K38 -> $787,421
A22: Staff Position | B22: GS Grade | C22: GS Step | D22: GS Salary | E22: Hourly Rate Calc | F22: Benefits Calc | G22: Total Salary Rate Calc | H22: Hours Required | I22: Cost Subtotals | J22: # of Responses | K22: Total Costs
A23: Application/Elgibility | H23: =SUM(H24:H30) -> 268 | I23: =SUM(I24:I30) -> $17,987 | J23: ='12 BH Collection WWPPG'!C8 -> 27 | K23: =ROUND((J23*I23),0) -> $485,659
A24: Loan Technician - Field Office | B24: 7 | C24: 5 | D24: $56,898 | E24: =(D24/52)/40 -> $27.35 | F24: =E24*$K$19 -> $9.92 | G24: =E24+F24 -> $37.27 | H24: 8.00 | I24: =H24*G24 -> $298.17
A25: Loan Specialist - Field Office | B25: 12 | C25: 5 | D25: $100,926 | E25: =(D25/52)/40 -> $48.52 | F25: =E25*$K$19 -> $17.59 | G25: =E25+F25 -> $66.11 | H25: 100.00 | I25: =H25*G25 -> $6,611.14
A26: Program Director - State Office | B26: 13 | C26: 5 | D26: $120,018 | E26: =(D26/52)/40 -> $57.70 | F26: =E26*$K$19 -> $20.92 | G26: =E26+F26 -> $78.62 | H26: 20.00 | I26: =H26*G26 -> $1,572.35
A27: Loan Specialist - State Office | B27: 12 | C27: 5 | D27: $100,926 | E27: $48.52 | F27: $17.59 | G27: $66.11 | H27: 40.00 | I27: $2,644.46
A28: State Engineer - State Office | B28: 12 | C28: 5 | D28: $100,926 | E28: $48.52 | F28: $17.59 | G28: $66.11 | H28: 40.00 | I28: $2,644.46
A29: State Environmental Coordinator - State Office | B29: 12 | C29: 5 | D29: $100,926 | E29: $48.52 | F29: $17.59 | G29: $66.11 | H29: 40.00 | I29: $2,644.46
A30: Loan Specialist - National Office | B30: 13 | C30: 5 | D30: $120,018 | E30: $57.70 | F30: $20.92 | G30: $78.62 | H30: 20.00 | I30: $1,572.35
A31: Approval Actions Following Obligation | H31: =SUM(H32:H37) -> 188 | I31: =SUM(I32:I37) -> $12,573 | J31: ='12 BH Collection WWPPG'!K8 -> 24 | K31: =ROUND((J31*I31),0) -> $301,762
A32: Loan Technician - Field Office | B32: 7 | C32: 5 | D32: $56,898 | E32: =(D32/52)/40 -> $27.35 | F32: =E32*$K$19 -> $9.92 | G32: =E32+F32 -> $37.27 | H32: 8.00 | I32: =H32*G32 -> $298.17
A33: Loan Specialist - Field Office | B33: 12 | C33: 5 | D33: $100,926 | E33: =(D33/52)/40 -> $48.52 | F33: =E33*$K$19 -> $17.59 | G33: =E33+F33 -> $66.11 | H33: 100.00 | I33: $6,611.14
A34: Program Director - State Office | B34: 13 | C34: 5 | D34: $120,018 | E34: $57.70 | F34: =E34*$K$19 -> $20.92 | G34: $78.62 | H34: 20.00 | I34: $1,572.35
A35: Loan Specialist - State Office | B35: 12 | C35: 5 | D35: $100,926 | E35: $48.52 | F35: $17.59 | G35: $66.11 | H35: 40.00 | I35: $2,644.46
A36: State Engineer - State Office | B36: 12 | C36: 5 | D36: $100,926 | E36: $48.52 | F36: $17.59 | G36: $66.11 | H36: 10.00 | I36: $661.11
A37: Loan Specialist - National Office | B37: 13 | C37: 5 | D37: $120,018 | E37: $57.70 | F37: $20.92 | G37: $78.62 | H37: 10.00 | I37: $786.18
A38: Actions During Construction | H38: =SUM(H39:H40) -> $0 | I38: =SUM(I39:I40) -> $0 | K38: =ROUND((J38*I38),0) -> $0

Sheet 14 AnnCost toFedGovEst Colonias
A1: ='12 BH Collection WWLG'!A1 -> RURAL UTILITIES SERVICE
A2: ='12 BH Collection WWLG'!A2 -> WATER AND WASTE LOAN AND GRANT PROGRAM
A3: ='12 BH Collection Colonias'!A3 -> ALLEVIATE HEALTH RISKS FOR COLONIAS
A4: ='12 BH Collection WWLG'!A3 -> INFORMATION COLLECTION BURDEN HOURS
A5: ='12 BH Collection WWLG'!A4 -> OMB # 0572 - 0121
A6: ='12 BH Collection WWLG'!A5 -> 2024-11-18
A8: 1. OPM GS & SES Pay Tables:
A9: Click Link | B9: Pay & Leave (opm.gov)
A10: Click "pay tables" from first paragraph
A11: Click current Year at top under Salaries & Wages
A13: a. OPM GS Pay Tables: Under "General Schedule (GS) & Locality Pay Tables" click 20## GS Pay Tables (ex. 2024 GS Pay Tables)
A14: Then choose Annual Rate Table for St. Louis - St. Charles - Farmington, MO-IL
A16: b. OPM SES Schedules: Under "Executive & Senior Level Employee Pay Tables" click "Rates of Pay for the Executive Schedule"
A17: Then choose Annual Rate Table for Basic Rates of Pay for Members of the Senior Executive Service.
A19: 2. Benefit % (OMB Memo M-08 13) | B19: https://www.whitehouse.gov/wp-content/uploads/legacy_drupal_files/omb/memoranda/2008/m08-13.pdf | K19: 36.25%
A21: Gray & Blue Columns have automatic formulas. DO NOT input numbers in these columns. | G21: Total | H21: =H23+H31+H38 -> 686 | I21: =I23+I31+I38 -> $45,728 | K21: =K23+K31+K38 -> $411,553
A22: Staff Position | B22: GS Grade | C22: GS Step | D22: GS Salary | E22: Hourly Rate Calc | F22: Benefits Calc | G22: Total Salary Rate Calc | H22: Hours Required | I22: Cost Subtotals | J22: # of Responses | K22: Total Costs
A23: Application/Elgibility | H23: =SUM(H24:H30) -> 268 | I23: =SUM(I24:I30) -> $17,987 | J23: ='12 BH Collection Colonias'!C8 -> 9 | K23: =ROUND((J23*I23),0) -> $161,886
A24: Loan Technician - Field Office | B24: 7 | C24: 5 | D24: $56,898 | E24: =(D24/52)/40 -> $27.35 | F24: =E24*$K$19 -> $9.92 | G24: =E24+F24 -> $37.27 | H24: 8.00 | I24: =H24*G24 -> $298.17
A25: Loan Specialist - Field Office | B25: 12 | C25: 5 | D25: $100,926 | E25: =(D25/52)/40 -> $48.52 | F25: =E25*$K$19 -> $17.59 | G25: =E25+F25 -> $66.11 | H25: 100.00 | I25: =H25*G25 -> $6,611.14
A26: Program Director - State Office | B26: 13 | C26: 5 | D26: $120,018 | E26: =(D26/52)/40 -> $57.70 | F26: =E26*$K$19 -> $20.92 | G26: =E26+F26 -> $78.62 | H26: 20.00 | I26: =H26*G26 -> $1,572.35
A27: Loan Specialist - State Office | B27: 12 | C27: 5 | D27: $100,926 | E27: $48.52 | F27: $17.59 | G27: $66.11 | H27: 40.00 | I27: $2,644.46
A28: State Engineer - State Office | B28: 12 | C28: 5 | D28: $100,926 | E28: $48.52 | F28: $17.59 | G28: $66.11 | H28: 40.00 | I28: $2,644.46
A29: State Environmental Coordinator - State Office | B29: 12 | C29: 5 | D29: $100,926 | E29: $48.52 | F29: $17.59 | G29: $66.11 | H29: 40.00 | I29: $2,644.46
A30: Loan Specialist - National Office | B30: 13 | C30: 5 | D30: $120,018 | E30: $57.70 | F30: $20.92 | G30: $78.62 | H30: 20.00 | I30: $1,572.35
A31: Approval Actions Following Obligation | H31: =SUM(H32:H37) -> 188 | I31: =SUM(I32:I37) -> $12,573 | J31: ='12 BH Collection Colonias'!$K$8 -> 9 | K31: =ROUND((J31*I31),0) -> $113,161
A32: Loan Technician - Field Office | B32: 7 | C32: 5 | D32: $56,898 | E32: =(D32/52)/40 -> $27.35 | F32: =E32*$K$19 -> $9.92 | G32: =E32+F32 -> $37.27 | H32: 8.00 | I32: =H32*G32 -> $298.17
A33: Loan Specialist - Field Office | B33: 12 | C33: 5 | D33: $100,926 | E33: =(D33/52)/40 -> $48.52 | F33: =E33*$K$19 -> $17.59 | G33: =E33+F33 -> $66.11 | H33: 100.00 | I33: $6,611.14
A34: Program Director - State Office | B34: 13 | C34: 5 | D34: $120,018 | E34: $57.70 | F34: =E34*$K$19 -> $20.92 | G34: $78.62 | H34: 20.00 | I34: $1,572.35
A35: Loan Specialist - State Office | B35: 12 | C35: 5 | D35: $100,926 | E35: $48.52 | F35: $17.59 | G35: $66.11 | H35: 40.00 | I35: $2,644.46
A36: State Engineer - State Office | B36: 12 | C36: 5 | D36: $100,926 | E36: $48.52 | F36: $17.59 | G36: $66.11 | H36: 10.00 | I36: $661.11
A37: Loan Specialist - National Office | B37: 13 | C37: 5 | D37: $120,018 | E37: $57.70 | F37: $20.92 | G37: $78.62 | H37: 10.00 | I37: $786.18
A38: Actions During Construction | H38: =SUM(H39:H48) -> 230.00 | I38: =SUM(I39:I43) -> $15,167 | J38: ='12 BH Collection Colonias'!$K$8 -> 9 | K38: =ROUND((J38*I38),0) -> $136,506
A39: Loan Technician - Field Office | B39: 7 | C39: 5 | D39: $56,898 | E39: =(D39/52)/40 -> $27.35 | F39: =E39*$K$19 -> $9.92 | G39: =E39+F39 -> $37.27 | H39: 10.00 | I39: =H39*G39 -> $372.71
A40: Loan Specialist - Field Office | B40: 12 | C40: 5 | D40: $100,926 | E40: =(D40/52)/40 -> $48.52 | F40: =E40*$K$19 -> $17.59 | G40: =E40+F40 -> $66.11 | H40: 100.00 | I40: $6,611.14
A41: Program Director - State Office | B41: 13 | C41: 5 | D41: $120,018 | E41: =(D41/52)/40 -> $57.70 | F41: =E41*$K$19 -> $20.92 | G41: $78.62 | H41: 20.00 | I41: $1,572.35
A42: Loan Specialist - State Office | B42: 12 | C42: 5 | D42: $100,926 | E42: $48.52 | F42: =E42*$K$19 -> $17.59 | G42: $66.11 | H42: 20.00 | I42: $1,322.23
A43: State Engineer - State Office | B43: 12 | C43: 5 | D43: $100,926 | E43: $48.52 | F43: $17.59 | G43: $66.11 | H43: 80.00 | I43: $5,288.91

Sheet 14 AnnCost toFedGovEst Tribal
A1: ='12 BH Collection WWLG'!A1 -> RURAL UTILITIES SERVICE
A2: ='12 BH Collection WWLG'!A2 -> WATER AND WASTE LOAN AND GRANT PROGRAM
A3: ='12 BH Collection Tribal Lands'!A3 -> ALLEVIATE HEALTH RISKS ON TRIBAL LANDS
A4: ='12 BH Collection WWLG'!A3 -> INFORMATION COLLECTION BURDEN HOURS
A5: ='12 BH Collection WWLG'!A4 -> OMB # 0572 - 0121
A6: ='12 BH Collection WWLG'!A5 -> 2024-11-18
A8: 1. OPM GS & SES Pay Tables:
A9: Click Link | B9: Pay & Leave (opm.gov)
A10: Click "pay tables" from first paragraph
A11: Click current Year at top under Salaries & Wages
A13: a. OPM GS Pay Tables: Under "General Schedule (GS) & Locality Pay Tables" click 20## GS Pay Tables (ex. 2024 GS Pay Tables)
A14: Then choose Annual Rate Table for St. Louis - St. Charles - Farmington, MO-IL
A16: b. OPM SES Schedules: Under "Executive & Senior Level Employee Pay Tables" click "Rates of Pay for the Executive Schedule"
A17: Then choose Annual Rate Table for Basic Rates of Pay for Members of the Senior Executive Service.
A19: 2. Benefit % (OMB Memo M-08 13) | B19: https://www.whitehouse.gov/wp-content/uploads/legacy_drupal_files/omb/memoranda/2008/m08-13.pdf | K19: 36.25%
A21: Gray & Blue Columns have automatic formulas. DO NOT input numbers in these columns. | G21: Total | H21: =H23+H31+H38 -> 686 | I21: =I23+I31+I38 -> $45,728 | K21: =K23+K31+K38 -> $503,009
A22: Staff Position | B22: GS Grade | C22: GS Step | D22: GS Salary | E22: Hourly Rate Calc | F22: Benefits Calc | G22: Total Salary Rate Calc | H22: Hours Required | I22: Cost Subtotals | J22: # of Responses | K22: Total Costs
A23: Application/Elgibility | H23: =SUM(H24:H30) -> 268 | I23: =SUM(I24:I30) -> $17,987 | J23: ='12 BH Collection Tribal Lands'!C8 -> 11 | K23: =ROUND((J23*I23),0) -> $197,861
A24: Loan Technician - Field Office | B24: 7 | C24: 5 | D24: $56,898 | E24: =(D24/52)/40 -> $27.35 | F24: =E24*$K$19 -> $9.92 | G24: =E24+F24 -> $37.27 | H24: 8.00 | I24: =H24*G24 -> $298.17
A25: Loan Specialist - Field Office | B25: 12 | C25: 5 | D25: $100,926 | E25: =(D25/52)/40 -> $48.52 | F25: =E25*$K$19 -> $17.59 | G25: =E25+F25 -> $66.11 | H25: 100.00 | I25: =H25*G25 -> $6,611.14
A26: Program Director - State Office | B26: 13 | C26: 5 | D26: $120,018 | E26: =(D26/52)/40 -> $57.70 | F26: =E26*$K$19 -> $20.92 | G26: =E26+F26 -> $78.62 | H26: 20.00 | I26: =H26*G26 -> $1,572.35
A27: Loan Specialist - State Office | B27: 12 | C27: 5 | D27: $100,926 | E27: $48.52 | F27: $17.59 | G27: $66.11 | H27: 40.00 | I27: $2,644.46
A28: State Engineer - State Office | B28: 12 | C28: 5 | D28: $100,926 | E28: $48.52 | F28: $17.59 | G28: $66.11 | H28: 40.00 | I28: $2,644.46
A29: State Environmental Coordinator - State Office | B29: 12 | C29: 5 | D29: $100,926 | E29: $48.52 | F29: $17.59 | G29: $66.11 | H29: 40.00 | I29: $2,644.46
A30: Loan Specialist - National Office | B30: 13 | C30: 5 | D30: $120,018 | E30: $57.70 | F30: $20.92 | G30: $78.62 | H30: 20.00 | I30: $1,572.35
A31: Approval Actions Following Obligation | H31: =SUM(H32:H37) -> 188 | I31: =SUM(I32:I37) -> $12,573 | J31: ='12 BH Collection Tribal Lands'!$K$8 -> 11 | K31: =ROUND((J31*I31),0) -> $138,307
A32: Loan Technician - Field Office | B32: 7 | C32: 5 | D32: $56,898 | E32: =(D32/52)/40 -> $27.35 | F32: =E32*$K$19 -> $9.92 | G32: =E32+F32 -> $37.27 | H32: 8.00 | I32: =H32*G32 -> $298.17
A33: Loan Specialist - Field Office | B33: 12 | C33: 5 | D33: $100,926 | E33: =(D33/52)/40 -> $48.52 | F33: =E33*$K$19 -> $17.59 | G33: =E33+F33 -> $66.11 | H33: 100.00 | I33: $6,611.14
A34: Program Director - State Office | B34: 13 | C34: 5 | D34: $120,018 | E34: $57.70 | F34: =E34*$K$19 -> $20.92 | G34: $78.62 | H34: 20.00 | I34: $1,572.35
A35: Loan Specialist - State Office | B35: 12 | C35: 5 | D35: $100,926 | E35: $48.52 | F35: $17.59 | G35: $66.11 | H35: 40.00 | I35: $2,644.46
A36: State Engineer - State Office | B36: 12 | C36: 5 | D36: $100,926 | E36: $48.52 | F36: $17.59 | G36: $66.11 | H36: 10.00 | I36: $661.11
A37: Loan Specialist - National Office | B37: 13 | C37: 5 | D37: $120,018 | E37: $57.70 | F37: $20.92 | G37: $78.62 | H37: 10.00 | I37: $786.18
A38: Actions During Construction | H38: =SUM(H39:H48) -> 230 | I38: =SUM(I39:I43) -> $15,167 | J38: ='12 BH Collection Tribal Lands'!$K$8 -> 11 | K38: =ROUND((J38*I38),0) -> $166,841
A39: Loan Technician - Field Office | B39: 7 | C39: 5 | D39: $56,898 | E39: =(D39/52)/40 -> $27.35 | F39: =E39*$K$19 -> $9.92 | G39: =E39+F39 -> $37.27 | H39: 10.00 | I39: =H39*G39 -> $372.71
A40: Loan Specialist - Field Office | B40: 12 | C40: 5 | D40: $100,926 | E40: =(D40/52)/40 -> $48.52 | F40: =E40*$K$19 -> $17.59 | G40: =E40+F40 -> $66.11 | H40: 100.00 | I40: $6,611.14
A41: Program Director - State Office | B41: 13 | C41: 5 | D41: $120,018 | E41: =(D41/52)/40 -> $57.70 | F41: =E41*$K$19 -> $20.92 | G41: $78.62 | H41: 20.00 | I41: $1,572.35
A42: Loan Specialist - State Office | B42: 12 | C42: 5 | D42: $100,926 | E42: $48.52 | F42: =E42*$K$19 -> $17.59 | G42: $66.11 | H42: 20.00 | I42: $1,322.23
A43: State Engineer - State Office | B43: 12 | C43: 5 | D43: $100,926 | E43: $48.52 | F43: $17.59 | G43: $66.11 | H43: 80.00 | I43: $5,288.91

Sheet 14 AnnCost toFedGovEst ECWAG
A1: ='12 BH Collection WWLG'!A1 -> RURAL UTILITIES SERVICE
A2: ='12 BH Collection WWLG'!A2 -> WATER AND WASTE LOAN AND GRANT PROGRAM
A3: ='12 BH Collection ECWAG'!A3 -> EMERGENCY COMMUNITY WATER ASSISTANCE GRANTS (ECWAG)
A4: ='12 BH Collection WWLG'!A3 -> INFORMATION COLLECTION BURDEN HOURS
A5: ='12 BH Collection WWLG'!A4 -> OMB # 0572 - 0121
A6: ='12 BH Collection WWLG'!A5 -> 2024-11-18
A8: 1. OPM GS & SES Pay Tables:
A9: Click Link | B9: Pay & Leave (opm.gov)
A10: Click "pay tables" from first paragraph
A11: Click current Year at top under Salaries & Wages
A13: a. OPM GS Pay Tables: Under "General Schedule (GS) & Locality Pay Tables" click 20## GS Pay Tables (ex. 2024 GS Pay Tables)
A14: Then choose Annual Rate Table for St. Louis - St. Charles - Farmington, MO-IL
A16: b. OPM SES Schedules: Under "Executive & Senior Level Employee Pay Tables" click "Rates of Pay for the Executive Schedule"
A17: Then choose Annual Rate Table for Basic Rates of Pay for Members of the Senior Executive Service.
A19: 2. Benefit % (OMB Memo M-08 13) | B19: https://www.whitehouse.gov/wp-content/uploads/legacy_drupal_files/omb/memoranda/2008/m08-13.pdf | K19: 36.25%
A21: Gray & Blue Columns have automatic formulas. DO NOT input numbers in these columns. | G21: Total | H21: =H23+H24+H31 -> 418 | I21: =I23+I24+I31 -> $27,741 | K21: =K23+K24+K31 -> $1,137,370
A22: Staff Position | B22: GS Grade | C22: GS Step | D22: GS Salary | E22: Hourly Rate Calc | F22: Benefits Calc | G22: Total Salary Rate Calc | H22: Hours Required | I22: Cost Subtotals | J22: # of Responses | K22: Total Costs
A23: Application/Elgibility | H23: 0 | I23: $0 | J23: ='12 BH Collection ECWAG'!C8 -> 41 | K23: =ROUND((J23*I23),0) -> $0
A24: Approval Actions Following Obligation | H24: =SUM(H25:H30) -> 188 | I24: =SUM(I25:I30) -> $12,573 | J24: ='12 BH Collection ECWAG'!$K$8 -> 41 | K24: =ROUND((J24*I24),0) -> $515,509
A25: Loan Technician - Field Office | B25: 7 | C25: 5 | D25: $56,898 | E25: =(D25/52)/40 -> $27.35 | F25: =E25*$K$19 -> $9.92 | G25: =E25+F25 -> $37.27 | H25: 8.00 | I25: =H25*G25 -> $298.17
A26: Loan Specialist - Field Office | B26: 12 | C26: 5 | D26: $100,926 | E26: =(D26/52)/40 -> $48.52 | F26: =E26*$K$19 -> $17.59 | G26: =E26+F26 -> $66.11 | H26: 100.00 | I26: =H26*G26 -> $6,611.14
A27: Program Director - State Office | B27: 13 | C27: 5 | D27: $120,018 | E27: $57.70 | F27: =E27*$K$19 -> $20.92 | G27: $78.62 | H27: 20.00 | I27: $1,572.35
A28: Loan Specialist - State Office | B28: 12 | C28: 5 | D28: $100,926 | E28: $48.52 | F28: $17.59 | G28: $66.11 | H28: 40.00 | I28: $2,644.46
A29: State Engineer - State Office | B29: 12 | C29: 5 | D29: $100,926 | E29: $48.52 | F29: $17.59 | G29: $66.11 | H29: 10.00 | I29: $661.11
A30: Loan Specialist - National Office | B30: 13 | C30: 5 | D30: $120,018 | E30: $57.70 | F30: $20.92 | G30: $78.62 | H30: 10.00 | I30: $786.18
A31: Actions During Construction | H31: =SUM(H32:H36) -> 230 | I31: =SUM(I32:I36) -> $15,167 | J31: ='12 BH Collection ECWAG'!$K$8 -> 41 | K31: =ROUND((J31*I31),0) -> $621,861
A32: Loan Technician - Field Office | B32: 7 | C32: 5 | D32: $56,898 | E32: =(D32/52)/40 -> $27.35 | F32: =E32*$K$19 -> $9.92 | G32: =E32+F32 -> $37.27 | H32: 10.00 | I32: =H32*G32 -> $372.71
A33: Loan Specialist - Field Office | B33: 12 | C33: 5 | D33: $100,926 | E33: =(D33/52)/40 -> $48.52 | F33: =E33*$K$19 -> $17.59 | G33: =E33+F33 -> $66.11 | H33: 100.00 | I33: $6,611.14
A34: Program Director - State Office | B34: 13 | C34: 5 | D34: $120,018 | E34: =(D34/52)/40 -> $57.70 | F34: =E34*$K$19 -> $20.92 | G34: $78.62 | H34: 20.00 | I34: $1,572.35
A35: Loan Specialist - State Office | B35: 12 | C35: 5 | D35: $100,926 | E35: $48.52 | F35: =E35*$K$19 -> $17.59 | G35: $66.11 | H35: 20.00 | I35: $1,322.23
A36: State Engineer - State Office | B36: 12 | C36: 5 | D36: $100,926 | E36: $48.52 | F36: $17.59 | G36: $66.11 | H36: 80.00 | I36: $5,288.91

Sheet 14 AnnCost toFedGovEst RAVGReg
A1: ='12 BH Collection WWLG'!A1 -> RURAL UTILITIES SERVICE
A2: ='12 BH Collection WWLG'!A2 -> WATER AND WASTE LOAN AND GRANT PROGRAM
A3: ='12 BH Collection RAVG-Reg'!A3 -> RURAL AND NATIVE ALASKAN VILLAGES GRANTS (RAVG-REGULAR)
A4: ='12 BH Collection WWLG'!A3 -> INFORMATION COLLECTION BURDEN HOURS
A5: ='12 BH Collection WWLG'!A4 -> OMB # 0572 - 0121
A6: ='12 BH Collection WWLG'!A5 -> 2024-11-18
A8: 1. OPM GS & SES Pay Tables:
A9: Click Link | B9: Pay & Leave (opm.gov)
A10: Click "pay tables" from first paragraph
A11: Click current Year at top under Salaries & Wages
A13: a. OPM GS Pay Tables: Under "General Schedule (GS) & Locality Pay Tables" click 20## GS Pay Tables (ex. 2024 GS Pay Tables)
A14: Then choose Annual Rate Table for St. Louis - St. Charles - Farmington, MO-IL
A16: b. OPM SES Schedules: Under "Executive & Senior Level Employee Pay Tables" click "Rates of Pay for the Executive Schedule"
A17: Then choose Annual Rate Table for Basic Rates of Pay for Members of the Senior Executive Service.
A19: 2. Benefit % (OMB Memo M-08 13) | B19: https://www.whitehouse.gov/wp-content/uploads/legacy_drupal_files/omb/memoranda/2008/m08-13.pdf | K19: 36.25%
A21: Gray & Blue Columns have automatic formulas. DO NOT input numbers in these columns. | G21: Total | H21: =H23+H31+H38 -> 686 | I21: =I23+I31+I38 -> $45,728 | K21: =K23+K31+K38 -> $802,081
A22: Staff Position | B22: GS Grade | C22: GS Step | D22: GS Salary | E22: Hourly Rate Calc | F22: Benefits Calc | G22: Total Salary Rate Calc | H22: Hours Required | I22: Cost Subtotals | J22: # of Responses | K22: Total Costs
A23: Application/Elgibility | H23: =SUM(H24:H30) -> $268 | I23: =SUM(I24:I30) -> $17,987 | J23: ='12 BH Collection RAVG-Reg'!C8 -> 23 | K23: =ROUND((J23*I23),0) -> $413,710
A24: Loan Technician - Field Office | B24: 7 | C24: 5 | D24: $56,898 | E24: =(D24/52)/40 -> $27.35 | F24: =E24*$K$19 -> $9.92 | G24: =E24+F24 -> $37.27 | H24: 8.00 | I24: =H24*G24 -> $298.17
A25: Loan Specialist - Field Office | B25: 12 | C25: 5 | D25: $100,926 | E25: =(D25/52)/40 -> $48.52 | F25: =E25*$K$19 -> $17.59 | G25: =E25+F25 -> $66.11 | H25: 100.00 | I25: =H25*G25 -> $6,611.14
A26: Program Director - State Office | B26: 13 | C26: 5 | D26: $120,018 | E26: =(D26/52)/40 -> $57.70 | F26: =E26*$K$19 -> $20.92 | G26: =E26+F26 -> $78.62 | H26: 20.00 | I26: =H26*G26 -> $1,572.35
A27: Loan Specialist - State Office | B27: 12 | C27: 5 | D27: $100,926 | E27: $48.52 | F27: $17.59 | G27: $66.11 | H27: 40.00 | I27: $2,644.46
A28: State Engineer - State Office | B28: 12 | C28: 5 | D28: $100,926 | E28: $48.52 | F28: $17.59 | G28: $66.11 | H28: 40.00 | I28: $2,644.46
A29: State Environmental Coordinator - State Office | B29: 12 | C29: 5 | D29: $100,926 | E29: $48.52 | F29: $17.59 | G29: $66.11 | H29: 40.00 | I29: $2,644.46
A30: Loan Specialist - National Office | B30: 13 | C30: 5 | D30: $120,018 | E30: $57.70 | F30: $20.92 | G30: $78.62 | H30: 20.00 | I30: $1,572.35
A31: Approval Actions Following Obligation | H31: =SUM(H32:H37) -> $188 | I31: =SUM(I32:I37) -> $12,573 | J31: ='12 BH Collection RAVG-Reg'!$K$8 -> 14 | K31: =ROUND((J31*I31),0) -> $176,028
A32: Loan Technician - Field Office | B32: 7 | C32: 5 | D32: $56,898 | E32: =(D32/52)/40 -> $27.35 | F32: =E32*$K$19 -> $9.92 | G32: =E32+F32 -> $37.27 | H32: 8.00 | I32: =H32*G32 -> $298.17
A33: Loan Specialist - Field Office | B33: 12 | C33: 5 | D33: $100,926 | E33: =(D33/52)/40 -> $48.52 | F33: =E33*$K$19 -> $17.59 | G33: =E33+F33 -> $66.11 | H33: 100.00 | I33: $6,611.14
A34: Program Director - State Office | B34: 13 | C34: 5 | D34: $120,018 | E34: $57.70 | F34: =E34*$K$19 -> $20.92 | G34: $78.62 | H34: 20.00 | I34: $1,572.35
A35: Loan Specialist - State Office | B35: 12 | C35: 5 | D35: $100,926 | E35: $48.52 | F35: $17.59 | G35: $66.11 | H35: 40.00 | I35: $2,644.46
A36: State Engineer - State Office | B36: 12 | C36: 5 | D36: $100,926 | E36: $48.52 | F36: $17.59 | G36: $66.11 | H36: 10.00 | I36: $661.11
A37: Loan Specialist - National Office | B37: 13 | C37: 5 | D37: $120,018 | E37: $57.70 | F37: $20.92 | G37: $78.62 | H37: 10.00 | I37: $786.18
A38: Actions During Construction | H38: =SUM(H39:H43) -> $230 | I38: =SUM(I39:I43) -> $15,167 | J38: ='12 BH Collection RAVG-Reg'!$K$8 -> 14 | K38: =ROUND((J38*I38),0) -> $212,343
A39: Loan Technician - Field Office | B39: 7 | C39: 5 | D39: $56,898 | E39: =(D39/52)/40 -> $27.35 | F39: =E39*$K$19 -> $9.92 | G39: =E39+F39 -> $37.27 | H39: 10.00 | I39: =H39*G39 -> $372.71
A40: Loan Specialist - Field Office | B40: 12 | C40: 5 | D40: $100,926 | E40: =(D40/52)/40 -> $48.52 | F40: =E40*$K$19 -> $17.59 | G40: =E40+F40 -> $66.11 | H40: 100.00 | I40: $6,611.14
A41: Program Director - State Office | B41: 13 | C41: 5 | D41: $120,018 | E41: =(D41/52)/40 -> $57.70 | F41: =E41*$K$19 -> $20.92 | G41: $78.62 | H41: 20.00 | I41: $1,572.35
A42: Loan Specialist - State Office | B42: 12 | C42: 5 | D42: $100,926 | E42: $48.52 | F42: =E42*$K$19 -> $17.59 | G42: $66.11 | H42: 20.00 | I42: $1,322.23
A43: State Engineer - State Office | B43: 12 | C43: 5 | D43: $100,926 | E43: $48.52 | F43: $17.59 | G43: $66.11 | H43: 80.00 | I43: $5,288.91

Sheet 14 Ann Cost toFedGovEst RAVGPPG
A1: ='12 BH Collection WWLG'!A1 -> RURAL UTILITIES SERVICE
A2: ='12 BH Collection WWLG'!A2 -> WATER AND WASTE LOAN AND GRANT PROGRAM
A3: ='12 BH Collection RAVG PPG'!A3 -> RURAL AND NATIVE ALASKAN VILLAGES GRANTS - PREDEVELOPMENT PLANNING GRANTS (RAVG PPG)
A4: ='12 BH Collection WWLG'!A3 -> INFORMATION COLLECTION BURDEN HOURS
A5: ='12 BH Collection WWLG'!A4 -> OMB # 0572 - 0121
A6: ='12 BH Collection WWLG'!A5 -> 2024-11-18
A8: 1. OPM GS & SES Pay Tables:
A9: Click Link | B9: Pay & Leave (opm.gov)
A10: Click "pay tables" from first paragraph
A11: Click current Year at top under Salaries & Wages
A13: a. OPM GS Pay Tables: Under "General Schedule (GS) & Locality Pay Tables" click 20## GS Pay Tables (ex. 2024 GS Pay Tables)
A14: Then choose Annual Rate Table for St. Louis - St. Charles - Farmington, MO-IL
A16: b. OPM SES Schedules: Under "Executive & Senior Level Employee Pay Tables" click "Rates of Pay for the Executive Schedule"
A17: Then choose Annual Rate Table for Basic Rates of Pay for Members of the Senior Executive Service.
A19: 2. Benefit % (OMB Memo M-08 13) | B19: https://www.whitehouse.gov/wp-content/uploads/legacy_drupal_files/omb/memoranda/2008/m08-13.pdf | K19: 36.25%
A21: Gray & Blue Columns have automatic formulas. DO NOT input numbers in these columns. | G21: Total | H21: =H23+H31+H38 -> 456 | I21: =I23+I31+I38 -> $30,561 | K21: =K23+K31+K38 -> $611,215
A22: Staff Position | B22: GS Grade | C22: GS Step | D22: GS Salary | E22: Hourly Rate Calc | F22: Benefits Calc | G22: Total Salary Rate Calc | H22: Hours Required | I22: Cost Subtotals | J22: # of Responses | K22: Total Costs
A23: Application/Elgibility | H23: =SUM(H24:H30) -> $268 | I23: =SUM(I24:I30) -> $17,987 | J23: ='12 BH Collection RAVG PPG'!C8 -> 20 | K23: =ROUND((J23*I23),0) -> $359,747
A24: Loan Technician - Field Office | B24: 7 | C24: 5 | D24: $56,898 | E24: =(D24/52)/40 -> $27.35 | F24: =E24*$K$19 -> $9.92 | G24: =E24+F24 -> $37.27 | H24: 8.00 | I24: =H24*G24 -> $298.17
A25: Loan Specialist - Field Office | B25: 12 | C25: 5 | D25: $100,926 | E25: =(D25/52)/40 -> $48.52 | F25: =E25*$K$19 -> $17.59 | G25: =E25+F25 -> $66.11 | H25: 100.00 | I25: =H25*G25 -> $6,611.14
A26: Program Director - State Office | B26: 13 | C26: 5 | D26: $120,018 | E26: =(D26/52)/40 -> $57.70 | F26: =E26*$K$19 -> $20.92 | G26: =E26+F26 -> $78.62 | H26: 20.00 | I26: =H26*G26 -> $1,572.35
A27: Loan Specialist - State Office | B27: 12 | C27: 5 | D27: $100,926 | E27: $48.52 | F27: $17.59 | G27: $66.11 | H27: 40.00 | I27: $2,644.46
A28: State Engineer - State Office | B28: 12 | C28: 5 | D28: $100,926 | E28: $48.52 | F28: $17.59 | G28: $66.11 | H28: 40.00 | I28: $2,644.46
A29: State Environmental Coordinator - State Office | B29: 12 | C29: 5 | D29: $100,926 | E29: $48.52 | F29: $17.59 | G29: $66.11 | H29: 40.00 | I29: $2,644.46
A30: Loan Specialist - National Office | B30: 13 | C30: 5 | D30: $120,018 | E30: $57.70 | F30: $20.92 | G30: $78.62 | H30: 20.00 | I30: $1,572.35
A31: Approval Actions Following Obligation | H31: =SUM(H32:H37) -> $188 | I31: =SUM(I32:I37) -> $12,573 | J31: ='12 BH Collection RAVG PPG'!$K$8 -> 20 | K31: =ROUND((J31*I31),0) -> $251,468
A32: Loan Technician - Field Office | B32: 7 | C32: 5 | D32: $56,898 | E32: =(D32/52)/40 -> $27.35 | F32: =E32*$K$19 -> $9.92 | G32: =E32+F32 -> $37.27 | H32: 8.00 | I32: =H32*G32 -> $298.17
A33: Loan Specialist - Field Office | B33: 12 | C33: 5 | D33: $100,926 | E33: =(D33/52)/40 -> $48.52 | F33: =E33*$K$19 -> $17.59 | G33: =E33+F33 -> $66.11 | H33: 100.00 | I33: $6,611.14
A34: Program Director - State Office | B34: 13 | C34: 5 | D34: $120,018 | E34: $57.70 | F34: =E34*$K$19 -> $20.92 | G34: $78.62 | H34: 20.00 | I34: $1,572.35
A35: Loan Specialist - State Office | B35: 12 | C35: 5 | D35: $100,926 | E35: $48.52 | F35: $17.59 | G35: $66.11 | H35: 40.00 | I35: $2,644.46
A36: State Engineer - State Office | B36: 12 | C36: 5 | D36: $100,926 | E36: $48.52 | F36: $17.59 | G36: $66.11 | H36: 10.00 | I36: $661.11
A37: Loan Specialist - National Office | B37: 13 | C37: 5 | D37: $120,018 | E37: $57.70 | F37: $20.92 | G37: $78.62 | H37: 10.00 | I37: $786.18
A38: Actions During Construction | H38: =SUM(H39:H41) -> $0 | I38: =SUM(I39:I41) -> $0 | J38: ='12 BH Collection RAVG PPG'!$K$8 -> 20 | K38: =ROUND((J38*I38),0) -> $0
